{"text_format":"1","workbook":"xlsx","n_sheets":3,"sheets":["Januar","IND1","Tabelle1"],"not_rendered":{"charts":0,"images":0,"macros":1,"external_links":0,"defined_names":1,"comments":0,"pivot_tables":0},"unopened":[],"bounds":{"document_bytes":16777216,"sheet_cells":100000,"rows_first":2000,"rows_last":500,"rows_between":2000,"halvings":0,"cell_chars":16384,"cell_head_chars":4096},"cells_cut":0,"cells_raw":0,"read":"whole","date_system":"1900"}

{"sheet":"Januar","index":0,"n_rows":59,"n_cols":156,"rows_kept":59,"cut":false,"hidden":false,"merged":[[7,11,7,13],[7,14,7,16],[52,2,52,3],[53,2,53,3],[54,2,54,3],[40,16,41,16],[30,3,30,4],[31,3,31,4],[32,3,32,4],[33,3,33,4],[34,3,34,4],[23,3,23,4],[24,3,24,4],[25,3,25,4],[26,3,26,4],[27,3,27,4],[55,2,55,3],[56,2,56,3],[7,8,7,10],[46,2,46,3],[47,2,47,3],[48,2,48,3],[49,2,49,3],[50,2,50,3],[51,2,51,3],[45,2,45,4],[35,3,35,4],[36,3,36,4],[37,3,37,4],[38,3,38,4],[39,3,39,4],[29,3,29,4],[40,137,41,137],[40,140,41,140],[40,151,41,151],[40,152,41,152],[40,155,41,155],[40,136,41,136],[40,77,41,77],[40,80,41,80],[40,91,41,91],[40,92,41,92],[40,95,41,95],[40,106,41,106],[40,107,41,107],[40,110,41,110],[40,121,41,121],[40,122,41,122],[40,125,41,125],[40,76,41,76],[40,17,41,17],[40,20,41,20],[40,31,41,31],[40,32,41,32],[40,35,41,35],[40,46,41,46],[40,47,41,47],[40,50,41,50],[40,61,41,61],[40,62,41,62],[40,65,41,65],[28,3,28,4],[17,3,17,4],[18,3,18,4],[19,3,19,4],[20,3,20,4],[21,3,21,4],[22,3,22,4],[16,3,16,4],[7,1,8,1],[7,2,8,2],[7,3,8,4],[7,5,8,5],[9,3,9,4],[10,3,10,4],[11,3,11,4],[12,3,12,4],[13,3,13,4],[14,3,14,4],[15,3,15,4],[4,141,5,155],[2,0,2,5],[3,0,3,1],[4,6,5,20],[4,21,5,35],[4,36,5,50],[4,51,5,65],[4,66,5,80],[4,81,5,95],[4,96,5,110],[4,111,5,125],[4,126,5,140]]}
[]
[null,null,null,null,null,null,null,null,null,null,null,null,"Examble with dutys",null,null,"(1,2,3)"]
[{"$f":"'IND1'!B1","v":"Duty Plan / US-Cop (Athena, Oregon 97813, USA)"},null,null,null,null,null,null,null,null,null,null,null,"if i insert manually this hours in the fields from and to in the duty 1,2 or 3...the working times in the sheet \"IND1\" should appear automatically in the timeline."]
["WorkingDays:",null,22,"Monat:","2020-01-01","Athena"]
[null,null,null,null,null,null,{"$f":"'IND1'!E10","v":"JeWo"},null,null,null,null,null,null,null,null,null,null,null,null,null,null,{"$f":"'IND1'!E11","v":"ChEm"},null,null,null,null,null,null,null,null,null,null,null,null,null,null,{"$f":"'IND1'!E12","v":"MeNo"},null,null,null,null,null,null,null,null,null,null,null,null,null,null,{"$f":"'IND1'!E14","v":"NiCh"},null,null,null,null,null,null,null,null,null,null,null,null,null,null,null,null,null,null,null,null,null,null,null,null,null,null,null,null,null,null,null,null,null,null,null,null,null,null,null,null,null,null,null,null,null,null,null,null,null,null,null,null,null,null,null,null,null,null,null,null,null,null,null,null,null,null,null,null,null,null,null,null,null,null,null,null,null,null,null,null,null,null,null,null,null,null,null,null,null,{"$f":"'IND1'!E9","v":"OlKa"}]
[]
[null,null,null,null,null,null,"  ",null,null,null,null,null,null,null,null,null,null,null,"  ",null,null,"  ",null,null,null,null,null,null,null,null,null,null,null,"  ",null,null,"  ",null,null,null,null,null,null,null,null,null,null,null,"  ",null,null,"  ",null,null,null,null,null,null,null,null,null,null,null,"  ",null,null,"  ",null,null,null,null,null,null,null,null,null,null,null,"  ",null,null,"  ",null,null,null,null,null,null,null,null,null,null,null,"  ",null,null,"  ",null,null,null,null,null,null,null,null,null,null,null,"  ",null,null,"  ",null,null,null,null,null,null,null,null,null,null,null,"  ",null,null,"  ",null,null,null,null,null,null,null,null,null,null,null,"  ",null,null,"  ",null,null,null,null,null,null,null,null,null,null,null,"  "]
[null,"DAT",{"$f":"E4","v":"2020-01-01"},"Allgemeindienste:",null,"Gruppendienste:","DAT",null,"Duty 1",null,null,"Duty 2",null,null,"Duty 3",null,null,null,"Abweichung",null,null,"DAT",null,"Dienst  1       ",null,null,"Dienst  2          ",null,null,"Bereitschaft       ",null,null,null,"Abweichung",null,null,"DAT",null,"Dienst  1       ",null,null,"Dienst  2          ",null,null,"Bereitschaft       ",null,null,null,"Abweichung",null,null,"DAT",null,"Dienst  1       ",null,null,"Dienst  2          ",null,null,"Bereitschaft       ",null,null,null,"Abweichung",null,null,"DAT",null,"Dienst  1       ",null,null,"Dienst  2          ",null,null,"Bereitschaft       ",null,null,null,"Abweichung",null,null,"DAT",null,"Dienst  1       ",null,null,"Dienst  2          ",null,null,"Bereitschaft       ",null,null,null,"Abweichung",null,null,"DAT",null,"Dienst  1       ",null,null,"Dienst  2          ",null,null,"Bereitschaft       ",null,null,null,"Abweichung",null,null,"DAT",null,"Dienst  1       ",null,null,"Dienst  2          ",null,null,"Bereitschaft       ",null,null,null,"Abweichung",null,null,"DAT",null,"Dienst  1       ",null,null,"Dienst  2          ",null,null,"Bereitschaft       ",null,null,null,"Abweichung",null,null,"DAT",null,"Dienst  1       ",null,null,"Dienst  2          ",null,null,"Bereitschaft       ",null,null,null,"Abweichung"]
[null,null,null,null,null,null,null,null,"from","to","h","from ","to","h","from","to ","h","SUM TTL","von","bis"," +/-",null,null,"von","bis","Std","von","bis","Std","von","bis","Std","SUM TTL","von","bis"," +/-",null,null,"von","bis","Std","von","bis","Std","von","bis","Std","SUM TTL","von","bis"," +/-",null,null,"von","bis","Std","von","bis","Std","von","bis","Std","SUM TTL","von","bis"," +/-",null,null,"von","bis","Std","von","bis","Std","von","bis","Std","SUM TTL","von","bis"," +/-",null,null,"von","bis","Std","von","bis","Std","von","bis","Std","SUM TTL","von","bis"," +/-",null,null,"von","bis","Std","von","bis","Std","von","bis","Std","SUM TTL","von","bis"," +/-",null,null,"von","bis","Std","von","bis","Std","von","bis","Std","SUM TTL","von","bis"," +/-",null,null,"von","bis","Std","von","bis","Std","von","bis","Std","SUM TTL","von","bis"," +/-",null,null,"von","bis","Std","von","bis","Std","von","bis","Std","SUM TTL","von","bis"," +/-"]
[null,{"$f":"C8","v":"2020-01-01"},{"$f":"C8","v":"2020-01-01"},null,null,null,{"$f":"B10","v":"2020-01-01"},{"$f":"C10","v":"2020-01-01"},"10:00:00","15:00:00",{"$f":"IF(OR(I10=\"U\",I10=\"K\",I10=\"FB\"),$J$2,IF(J10<I10,((J10+1)-I10)*24,(J10-I10)*24))","v":5},"17:00:00","21:00:00",0.91666666666666663,"22:00:00","00:00:00",2,{"$f":"Q10+N10+K10","v":7.9166666666666661},null,null,{"$f":"IF(T10<S10,((T10+1)-S10)*24,(T10-S10)*24)","v":0},{"$f":"G10","v":"2020-01-01"},{"$f":"H10","v":"2020-01-01"},null,null,{"$f":"IF(OR(X10=\"U\",X10=\"K\",X10=\"FB\"),$J$2,IF(Y10<X10,((Y10+1)-X10)*24,(Y10-X10)*24))","v":0},null,null,{"$f":"IF(OR(X10=\"U\",X10=\"K\",X10=\"FB\"),$J$2,IF(AB10<AA10,((AB10+1)-AA10)*24,(AB10-AA10)*24))","v":0},null,null,0,{"$f":"AF10+AC10+Z10","v":0},null,null,{"$f":"IF(AI10<AH10,((AI10+1)-AH10)*24,(AI10-AH10)*24)","v":0},{"$f":"V10","v":"2020-01-01"},{"$f":"W10","v":"2020-01-01"},null,null,{"$f":"IF(OR(AM10=\"U\",AM10=\"K\",AM10=\"FB\"),$J$2,IF(AN10<AM10,((AN10+1)-AM10)*24,(AN10-AM10)*24))","v":0},null,null,{"$f":"IF(OR(AM10=\"U\",AM10=\"K\",AM10=\"FB\"),$J$2,IF(AQ10<AP10,((AQ10+1)-AP10)*24,(AQ10-AP10)*24))","v":0},null,null,0,{"$f":"AU10+AR10+AO10","v":0},null,null,{"$f":"IF(AX10<AW10,((AX10+1)-AW10)*24,(AX10-AW10)*24)","v":0},{"$f":"AK10","v":"2020-01-01"},{"$f":"AL10","v":"2020-01-01"},null,null,{"$f":"IF(OR(BB10=\"U\",BB10=\"K\",BB10=\"FB\"),$J$2,IF(BC10<BB10,((BC10+1)-BB10)*24,(BC10-BB10)*24))","v":0},null,null,{"$f":"IF(OR(BB10=\"U\",BB10=\"K\",BB10=\"FB\"),$J$2,IF(BF10<BE10,((BF10+1)-BE10)*24,(BF10-BE10)*24))","v":0},null,null,0,{"$f":"BJ10+BG10+BD10","v":0},null,null,{"$f":"IF(BM10<BL10,((BM10+1)-BL10)*24,(BM10-BL10)*24)","v":0},{"$f":"AZ10","v":"2020-01-01"},{"$f":"BA10","v":"2020-01-01"},null,null,{"$f":"IF(OR(BQ10=\"U\",BQ10=\"K\",BQ10=\"FB\"),$J$2,IF(BR10<BQ10,((BR10+1)-BQ10)*24,(BR10-BQ10)*24))","v":0},null,null,{"$f":"IF(OR(BQ10=\"U\",BQ10=\"K\",BQ10=\"FB\"),$J$2,IF(BU10<BT10,((BU10+1)-BT10)*24,(BU10-BT10)*24))","v":0},null,null,0,{"$f":"BY10+BV10+BS10","v":0},null,null,{"$f":"IF(CB10<CA10,((CB10+1)-CA10)*24,(CB10-CA10)*24)","v":0},{"$f":"BO10","v":"2020-01-01"},{"$f":"BP10","v":"2020-01-01"},null,null,{"$f":"IF(OR(CF10=\"U\",CF10=\"K\",CF10=\"FB\"),$J$2,IF(CG10<CF10,((CG10+1)-CF10)*24,(CG10-CF10)*24))","v":0},null,null,{"$f":"IF(OR(CF10=\"U\",CF10=\"K\",CF10=\"FB\"),$J$2,IF(CJ10<CI10,((CJ10+1)-CI10)*24,(CJ10-CI10)*24))","v":0},null,null,0,{"$f":"CN10+CK10+CH10","v":0},null,null,{"$f":"IF(CQ10<CP10,((CQ10+1)-CP10)*24,(CQ10-CP10)*24)","v":0},{"$f":"CD10","v":"2020-01-01"},{"$f":"CE10","v":"2020-01-01"},null,null,{"$f":"IF(OR(CU10=\"U\",CU10=\"K\",CU10=\"FB\"),$J$2,IF(CV10<CU10,((CV10+1)-CU10)*24,(CV10-CU10)*24))","v":0},null,null,{"$f":"IF(OR(CU10=\"U\",CU10=\"K\",CU10=\"FB\"),$J$2,IF(CY10<CX10,((CY10+1)-CX10)*24,(CY10-CX10)*24))","v":0},null,null,0,{"$f":"DC10+CZ10+CW10","v":0},null,null,{"$f":"IF(DF10<DE10,((DF10+1)-DE10)*24,(DF10-DE10)*24)","v":0},{"$f":"CS10","v":"2020-01-01"},{"$f":"CT10","v":"2020-01-01"},null,null,{"$f":"IF(OR(DJ10=\"U\",DJ10=\"K\",DJ10=\"FB\"),$J$2,IF(DK10<DJ10,((DK10+1)-DJ10)*24,(DK10-DJ10)*24))","v":0},null,null,{"$f":"IF(OR(DJ10=\"U\",DJ10=\"K\",DJ10=\"FB\"),$J$2,IF(DN10<DM10,((DN10+1)-DM10)*24,(DN10-DM10)*24))","v":0},null,null,0,{"$f":"DR10+DO10+DL10","v":0},null,null,{"$f":"IF(DU10<DT10,((DU10+1)-DT10)*24,(DU10-DT10)*24)","v":0},{"$f":"DH10","v":"2020-01-01"},{"$f":"DI10","v":"2020-01-01"},null,null,{"$f":"IF(OR(DY10=\"U\",DY10=\"K\",DY10=\"FB\"),$J$2,IF(DZ10<DY10,((DZ10+1)-DY10)*24,(DZ10-DY10)*24))","v":0},null,null,{"$f":"IF(OR(DY10=\"U\",DY10=\"K\",DY10=\"FB\"),$J$2,IF(EC10<EB10,((EC10+1)-EB10)*24,(EC10-EB10)*24))","v":0},null,null,0,{"$f":"EG10+ED10+EA10","v":0},null,null,{"$f":"IF(EJ10<EI10,((EJ10+1)-EI10)*24,(EJ10-EI10)*24)","v":0},{"$f":"DW10","v":"2020-01-01"},{"$f":"DX10","v":"2020-01-01"},null,null,{"$f":"IF(OR(EN10=\"U\",EN10=\"K\",EN10=\"FB\"),$J$2,IF(EO10<EN10,((EO10+1)-EN10)*24,(EO10-EN10)*24))","v":0},null,null,{"$f":"IF(OR(EN10=\"U\",EN10=\"K\",EN10=\"FB\"),$J$2,IF(ER10<EQ10,((ER10+1)-EQ10)*24,(ER10-EQ10)*24))","v":0},null,null,0,{"$f":"EV10+ES10+EP10","v":0},null,null,{"$f":"IF(EY10<EX10,((EY10+1)-EX10)*24,(EY10-EX10)*24)","v":0}]
[null,{"$f":"B10+1","v":"2020-01-02"},{"$f":"C10+1","v":"2020-01-02"},null,null,null,{"$f":"B11","v":"2020-01-02"},"2020-01-02",null,null,{"$f":"IF(OR(I11=\"U\",I11=\"K\",I11=\"FB\"),$J$2,IF(J11<I11,((J11+1)-I11)*24,(J11-I11)*24))","v":0},null,null,{"$f":"IF(OR(I11=\"U\",I11=\"K\",I11=\"FB\"),$J$2,IF(M11<L11,((M11+1)-L11)*24,(M11-L11)*24))","v":0},null,null,0,{"$f":"Q11+N11+K11","v":0},null,null,{"$f":"IF(T11<S11,((T11+1)-S11)*24,(T11-S11)*24)","v":0},{"$f":"G11","v":"2020-01-02"},"2020-01-02",null,null,{"$f":"IF(OR(X11=\"U\",X11=\"K\",X11=\"FB\"),$J$2,IF(Y11<X11,((Y11+1)-X11)*24,(Y11-X11)*24))","v":0},null,null,{"$f":"IF(OR(X11=\"U\",X11=\"K\",X11=\"FB\"),$J$2,IF(AB11<AA11,((AB11+1)-AA11)*24,(AB11-AA11)*24))","v":0},null,null,0,{"$f":"AF11+AC11+Z11","v":0},null,null,{"$f":"IF(AI11<AH11,((AI11+1)-AH11)*24,(AI11-AH11)*24)","v":0},{"$f":"V11","v":"2020-01-02"},"2020-01-02",null,null,{"$f":"IF(OR(AM11=\"U\",AM11=\"K\",AM11=\"FB\"),$J$2,IF(AN11<AM11,((AN11+1)-AM11)*24,(AN11-AM11)*24))","v":0},null,null,{"$f":"IF(OR(AM11=\"U\",AM11=\"K\",AM11=\"FB\"),$J$2,IF(AQ11<AP11,((AQ11+1)-AP11)*24,(AQ11-AP11)*24))","v":0},null,null,0,{"$f":"AU11+AR11+AO11","v":0},null,null,{"$f":"IF(AX11<AW11,((AX11+1)-AW11)*24,(AX11-AW11)*24)","v":0},{"$f":"AK11","v":"2020-01-02"},"2020-01-02",null,null,{"$f":"IF(OR(BB11=\"U\",BB11=\"K\",BB11=\"FB\"),$J$2,IF(BC11<BB11,((BC11+1)-BB11)*24,(BC11-BB11)*24))","v":0},null,null,{"$f":"IF(OR(BB11=\"U\",BB11=\"K\",BB11=\"FB\"),$J$2,IF(BF11<BE11,((BF11+1)-BE11)*24,(BF11-BE11)*24))","v":0},null,null,0,{"$f":"BJ11+BG11+BD11","v":0},null,null,{"$f":"IF(BM11<BL11,((BM11+1)-BL11)*24,(BM11-BL11)*24)","v":0},{"$f":"AZ11","v":"2020-01-02"},"2020-01-02",null,null,{"$f":"IF(OR(BQ11=\"U\",BQ11=\"K\",BQ11=\"FB\"),$J$2,IF(BR11<BQ11,((BR11+1)-BQ11)*24,(BR11-BQ11)*24))","v":0},null,null,{"$f":"IF(OR(BQ11=\"U\",BQ11=\"K\",BQ11=\"FB\"),$J$2,IF(BU11<BT11,((BU11+1)-BT11)*24,(BU11-BT11)*24))","v":0},null,null,0,{"$f":"BY11+BV11+BS11","v":0},null,null,{"$f":"IF(CB11<CA11,((CB11+1)-CA11)*24,(CB11-CA11)*24)","v":0},{"$f":"BO11","v":"2020-01-02"},"2020-01-02",null,null,{"$f":"IF(OR(CF11=\"U\",CF11=\"K\",CF11=\"FB\"),$J$2,IF(CG11<CF11,((CG11+1)-CF11)*24,(CG11-CF11)*24))","v":0},null,null,{"$f":"IF(OR(CF11=\"U\",CF11=\"K\",CF11=\"FB\"),$J$2,IF(CJ11<CI11,((CJ11+1)-CI11)*24,(CJ11-CI11)*24))","v":0},null,null,0,{"$f":"CN11+CK11+CH11","v":0},null,null,{"$f":"IF(CQ11<CP11,((CQ11+1)-CP11)*24,(CQ11-CP11)*24)","v":0},{"$f":"CD11","v":"2020-01-02"},"2020-01-02",null,null,{"$f":"IF(OR(CU11=\"U\",CU11=\"K\",CU11=\"FB\"),$J$2,IF(CV11<CU11,((CV11+1)-CU11)*24,(CV11-CU11)*24))","v":0},null,null,{"$f":"IF(OR(CU11=\"U\",CU11=\"K\",CU11=\"FB\"),$J$2,IF(CY11<CX11,((CY11+1)-CX11)*24,(CY11-CX11)*24))","v":0},null,null,0,{"$f":"DC11+CZ11+CW11","v":0},null,null,{"$f":"IF(DF11<DE11,((DF11+1)-DE11)*24,(DF11-DE11)*24)","v":0},{"$f":"CS11","v":"2020-01-02"},"2020-01-02",null,null,{"$f":"IF(OR(DJ11=\"U\",DJ11=\"K\",DJ11=\"FB\"),$J$2,IF(DK11<DJ11,((DK11+1)-DJ11)*24,(DK11-DJ11)*24))","v":0},null,null,{"$f":"IF(OR(DJ11=\"U\",DJ11=\"K\",DJ11=\"FB\"),$J$2,IF(DN11<DM11,((DN11+1)-DM11)*24,(DN11-DM11)*24))","v":0},null,null,0,{"$f":"DR11+DO11+DL11","v":0},null,null,{"$f":"IF(DU11<DT11,((DU11+1)-DT11)*24,(DU11-DT11)*24)","v":0},{"$f":"DH11","v":"2020-01-02"},"2020-01-02",null,null,{"$f":"IF(OR(DY11=\"U\",DY11=\"K\",DY11=\"FB\"),$J$2,IF(DZ11<DY11,((DZ11+1)-DY11)*24,(DZ11-DY11)*24))","v":0},null,null,{"$f":"IF(OR(DY11=\"U\",DY11=\"K\",DY11=\"FB\"),$J$2,IF(EC11<EB11,((EC11+1)-EB11)*24,(EC11-EB11)*24))","v":0},null,null,0,{"$f":"EG11+ED11+EA11","v":0},null,null,{"$f":"IF(EJ11<EI11,((EJ11+1)-EI11)*24,(EJ11-EI11)*24)","v":0},{"$f":"DW11","v":"2020-01-02"},"2020-01-02",null,null,{"$f":"IF(OR(EN11=\"U\",EN11=\"K\",EN11=\"FB\"),$J$2,IF(EO11<EN11,((EO11+1)-EN11)*24,(EO11-EN11)*24))","v":0},null,null,{"$f":"IF(OR(EN11=\"U\",EN11=\"K\",EN11=\"FB\"),$J$2,IF(ER11<EQ11,((ER11+1)-EQ11)*24,(ER11-EQ11)*24))","v":0},null,null,0,{"$f":"EV11+ES11+EP11","v":0},null,null,{"$f":"IF(EY11<EX11,((EY11+1)-EX11)*24,(EY11-EX11)*24)","v":0}]
[null,{"$f":"B11+1","v":"2020-01-03"},"2020-01-03",null,null,null,"2020-01-03","2020-01-03",null,null,{"$f":"IF(OR(I12=\"U\",I12=\"K\",I12=\"FB\"),$J$2,IF(J12<I12,((J12+1)-I12)*24,(J12-I12)*24))","v":0},null,null,0,null,null,0,0,null,null,0,"2020-01-03","2020-01-03",null,null,{"$f":"IF(OR(X12=\"U\",X12=\"K\",X12=\"FB\"),$J$2,IF(Y12<X12,((Y12+1)-X12)*24,(Y12-X12)*24))","v":0},null,null,0,null,null,0,0,null,null,0,"2020-01-03","2020-01-03",null,null,{"$f":"IF(OR(AM12=\"U\",AM12=\"K\",AM12=\"FB\"),$J$2,IF(AN12<AM12,((AN12+1)-AM12)*24,(AN12-AM12)*24))","v":0},null,null,0,null,null,0,0,null,null,0,"2020-01-03","2020-01-03",null,null,{"$f":"IF(OR(BB12=\"U\",BB12=\"K\",BB12=\"FB\"),$J$2,IF(BC12<BB12,((BC12+1)-BB12)*24,(BC12-BB12)*24))","v":0},null,null,0,null,null,0,0,null,null,0,"2020-01-03","2020-01-03",null,null,{"$f":"IF(OR(BQ12=\"U\",BQ12=\"K\",BQ12=\"FB\"),$J$2,IF(BR12<BQ12,((BR12+1)-BQ12)*24,(BR12-BQ12)*24))","v":0},null,null,0,null,null,0,0,null,null,0,"2020-01-03","2020-01-03",null,null,{"$f":"IF(OR(CF12=\"U\",CF12=\"K\",CF12=\"FB\"),$J$2,IF(CG12<CF12,((CG12+1)-CF12)*24,(CG12-CF12)*24))","v":0},null,null,0,null,null,0,0,null,null,0,"2020-01-03","2020-01-03",null,null,{"$f":"IF(OR(CU12=\"U\",CU12=\"K\",CU12=\"FB\"),$J$2,IF(CV12<CU12,((CV12+1)-CU12)*24,(CV12-CU12)*24))","v":0},null,null,0,null,null,0,0,null,null,0,"2020-01-03","2020-01-03",null,null,{"$f":"IF(OR(DJ12=\"U\",DJ12=\"K\",DJ12=\"FB\"),$J$2,IF(DK12<DJ12,((DK12+1)-DJ12)*24,(DK12-DJ12)*24))","v":0},null,null,0,null,null,0,0,null,null,0,"2020-01-03","2020-01-03",null,null,{"$f":"IF(OR(DY12=\"U\",DY12=\"K\",DY12=\"FB\"),$J$2,IF(DZ12<DY12,((DZ12+1)-DY12)*24,(DZ12-DY12)*24))","v":0},null,null,0,null,null,0,0,null,null,0,"2020-01-03","2020-01-03",null,null,{"$f":"IF(OR(EN12=\"U\",EN12=\"K\",EN12=\"FB\"),$J$2,IF(EO12<EN12,((EO12+1)-EN12)*24,(EO12-EN12)*24))","v":0},null,null,0,null,null,0,0,null,null,0]
[null,"2020-01-04","2020-01-04",null,null,null,"2020-01-04","2020-01-04",null,null,0,null,null,0,null,null,0,0,null,null,0,"2020-01-04","2020-01-04",null,null,0,null,null,0,null,null,0,0,null,null,0,"2020-01-04","2020-01-04",null,null,0,null,null,0,null,null,0,0,null,null,0,"2020-01-04","2020-01-04",null,null,0,null,null,0,null,null,0,0,null,null,0,"2020-01-04","2020-01-04",null,null,0,null,null,0,null,null,0,0,null,null,0,"2020-01-04","2020-01-04",null,null,0,null,null,0,null,null,0,0,null,null,0,"2020-01-04","2020-01-04",null,null,0,null,null,0,null,null,0,0,null,null,0,"2020-01-04","2020-01-04",null,null,0,null,null,0,null,null,0,0,null,null,0,"2020-01-04","2020-01-04",null,null,0,null,null,0,null,null,0,0,null,null,0,"2020-01-04","2020-01-04",null,null,0,null,null,0,null,null,0,0,null,null,0]
[null,"2020-01-05","2020-01-05",null,null,null,"2020-01-05","2020-01-05",null,null,{"$f":"IF(OR(I14=\"U\",I14=\"K\",I14=\"FB\"),$J$2,IF(J14<I14,((J14+1)-I14)*24,(J14-I14)*24))","v":0},null,null,0,null,null,0,0,null,null,0,"2020-01-05","2020-01-05",null,null,{"$f":"IF(OR(X14=\"U\",X14=\"K\",X14=\"FB\"),$J$2,IF(Y14<X14,((Y14+1)-X14)*24,(Y14-X14)*24))","v":0},null,null,0,null,null,0,0,null,null,0,"2020-01-05","2020-01-05",null,null,{"$f":"IF(OR(AM14=\"U\",AM14=\"K\",AM14=\"FB\"),$J$2,IF(AN14<AM14,((AN14+1)-AM14)*24,(AN14-AM14)*24))","v":0},null,null,0,null,null,0,0,null,null,0,"2020-01-05","2020-01-05",null,null,{"$f":"IF(OR(BB14=\"U\",BB14=\"K\",BB14=\"FB\"),$J$2,IF(BC14<BB14,((BC14+1)-BB14)*24,(BC14-BB14)*24))","v":0},null,null,0,null,null,0,0,null,null,0,"2020-01-05","2020-01-05",null,null,{"$f":"IF(OR(BQ14=\"U\",BQ14=\"K\",BQ14=\"FB\"),$J$2,IF(BR14<BQ14,((BR14+1)-BQ14)*24,(BR14-BQ14)*24))","v":0},null,null,0,null,null,0,0,null,null,0,"2020-01-05","2020-01-05",null,null,{"$f":"IF(OR(CF14=\"U\",CF14=\"K\",CF14=\"FB\"),$J$2,IF(CG14<CF14,((CG14+1)-CF14)*24,(CG14-CF14)*24))","v":0},null,null,0,null,null,0,0,null,null,0,"2020-01-05","2020-01-05",null,null,{"$f":"IF(OR(CU14=\"U\",CU14=\"K\",CU14=\"FB\"),$J$2,IF(CV14<CU14,((CV14+1)-CU14)*24,(CV14-CU14)*24))","v":0},null,null,0,null,null,0,0,null,null,0,"2020-01-05","2020-01-05",null,null,{"$f":"IF(OR(DJ14=\"U\",DJ14=\"K\",DJ14=\"FB\"),$J$2,IF(DK14<DJ14,((DK14+1)-DJ14)*24,(DK14-DJ14)*24))","v":0},null,null,0,null,null,0,0,null,null,0,"2020-01-05","2020-01-05",null,null,{"$f":"IF(OR(DY14=\"U\",DY14=\"K\",DY14=\"FB\"),$J$2,IF(DZ14<DY14,((DZ14+1)-DY14)*24,(DZ14-DY14)*24))","v":0},null,null,0,null,null,0,0,null,null,0,"2020-01-05","2020-01-05",null,null,{"$f":"IF(OR(EN14=\"U\",EN14=\"K\",EN14=\"FB\"),$J$2,IF(EO14<EN14,((EO14+1)-EN14)*24,(EO14-EN14)*24))","v":0},null,null,0,null,null,0,0,null,null,0]
[null,"2020-01-06","2020-01-06",null,null,null,"2020-01-06","2020-01-06",null,null,0,null,null,0,null,null,0,0,null,null,0,"2020-01-06","2020-01-06",null,null,{"$f":"IF(OR(X15=\"U\",X15=\"K\",X15=\"FB\"),$J$2,IF(Y15<X15,((Y15+1)-X15)*24,(Y15-X15)*24))","v":0},null,null,0,null,null,0,0,null,null,0,"2020-01-06","2020-01-06",null,null,{"$f":"IF(OR(AM15=\"U\",AM15=\"K\",AM15=\"FB\"),$J$2,IF(AN15<AM15,((AN15+1)-AM15)*24,(AN15-AM15)*24))","v":0},null,null,0,null,null,0,0,null,null,0,"2020-01-06","2020-01-06",null,null,{"$f":"IF(OR(BB15=\"U\",BB15=\"K\",BB15=\"FB\"),$J$2,IF(BC15<BB15,((BC15+1)-BB15)*24,(BC15-BB15)*24))","v":0},null,null,0,null,null,0,0,null,null,0,"2020-01-06","2020-01-06",null,null,{"$f":"IF(OR(BQ15=\"U\",BQ15=\"K\",BQ15=\"FB\"),$J$2,IF(BR15<BQ15,((BR15+1)-BQ15)*24,(BR15-BQ15)*24))","v":0},null,null,0,null,null,0,0,null,null,0,"2020-01-06","2020-01-06",null,null,{"$f":"IF(OR(CF15=\"U\",CF15=\"K\",CF15=\"FB\"),$J$2,IF(CG15<CF15,((CG15+1)-CF15)*24,(CG15-CF15)*24))","v":0},null,null,0,null,null,0,0,null,null,0,"2020-01-06","2020-01-06",null,null,{"$f":"IF(OR(CU15=\"U\",CU15=\"K\",CU15=\"FB\"),$J$2,IF(CV15<CU15,((CV15+1)-CU15)*24,(CV15-CU15)*24))","v":0},null,null,0,null,null,0,0,null,null,0,"2020-01-06","2020-01-06",null,null,{"$f":"IF(OR(DJ15=\"U\",DJ15=\"K\",DJ15=\"FB\"),$J$2,IF(DK15<DJ15,((DK15+1)-DJ15)*24,(DK15-DJ15)*24))","v":0},null,null,0,null,null,0,0,null,null,0,"2020-01-06","2020-01-06",null,null,{"$f":"IF(OR(DY15=\"U\",DY15=\"K\",DY15=\"FB\"),$J$2,IF(DZ15<DY15,((DZ15+1)-DY15)*24,(DZ15-DY15)*24))","v":0},null,null,0,null,null,0,0,null,null,0,"2020-01-06","2020-01-06",null,null,{"$f":"IF(OR(EN15=\"U\",EN15=\"K\",EN15=\"FB\"),$J$2,IF(EO15<EN15,((EO15+1)-EN15)*24,(EO15-EN15)*24))","v":0},null,null,0,null,null,0,0,null,null,0]
[null,"2020-01-07","2020-01-07",null,null,null,"2020-01-07","2020-01-07",null,null,0,null,null,0,null,null,0,0,null,null,0,"2020-01-07","2020-01-07",null,null,0,null,null,0,null,null,0,0,null,null,0,"2020-01-07","2020-01-07",null,null,0,null,null,0,null,null,0,0,null,null,0,"2020-01-07","2020-01-07",null,null,0,null,null,0,null,null,0,0,null,null,0,"2020-01-07","2020-01-07",null,null,0,null,null,0,null,null,0,0,null,null,0,"2020-01-07","2020-01-07",null,null,0,null,null,0,null,null,0,0,null,null,0,"2020-01-07","2020-01-07",null,null,0,null,null,0,null,null,0,0,null,null,0,"2020-01-07","2020-01-07",null,null,0,null,null,0,null,null,0,0,null,null,0,"2020-01-07","2020-01-07",null,null,0,null,null,0,null,null,0,0,null,null,0,"2020-01-07","2020-01-07",null,null,0,null,null,0,null,null,0,0,null,null,0]
[null,"2020-01-08","2020-01-08",null,null,null,"2020-01-08","2020-01-08",null,null,0,null,null,0,null,null,0,0,null,null,0,"2020-01-08","2020-01-08",null,null,0,null,null,0,null,null,0,0,null,null,0,"2020-01-08","2020-01-08",null,null,0,null,null,0,null,null,0,0,null,null,0,"2020-01-08","2020-01-08",null,null,0,null,null,0,null,null,0,0,null,null,0,"2020-01-08","2020-01-08",null,null,0,null,null,0,null,null,0,0,null,null,0,"2020-01-08","2020-01-08",null,null,0,null,null,0,null,null,0,0,null,null,0,"2020-01-08","2020-01-08",null,null,0,null,null,0,null,null,0,0,null,null,0,"2020-01-08","2020-01-08",null,null,0,null,null,0,null,null,0,0,null,null,0,"2020-01-08","2020-01-08",null,null,0,null,null,0,null,null,0,0,null,null,0,"2020-01-08","2020-01-08",null,null,0,null,null,0,null,null,0,0,null,null,0]
[null,"2020-01-09","2020-01-09",null,null,null,"2020-01-09","2020-01-09",null,null,0,null,null,0,null,null,0,0,null,null,0,"2020-01-09","2020-01-09",null,null,0,null,null,0,null,null,0,0,null,null,0,"2020-01-09","2020-01-09",null,null,0,null,null,0,null,null,0,0,null,null,0,"2020-01-09","2020-01-09",null,null,0,null,null,0,null,null,0,0,null,null,0,"2020-01-09","2020-01-09",null,null,0,null,null,0,null,null,0,0,null,null,0,"2020-01-09","2020-01-09",null,null,0,null,null,0,null,null,0,0,null,null,0,"2020-01-09","2020-01-09",null,null,0,null,null,0,null,null,0,0,null,null,0,"2020-01-09","2020-01-09",null,null,0,null,null,0,null,null,0,0,null,null,0,"2020-01-09","2020-01-09",null,null,0,null,null,0,null,null,0,0,null,null,0,"2020-01-09","2020-01-09",null,null,0,null,null,0,null,null,0,0,null,null,0]
[null,"2020-01-10","2020-01-10",null,null,null,"2020-01-10","2020-01-10",null,null,0,null,null,0,null,null,0,0,null,null,0,"2020-01-10","2020-01-10",null,null,0,null,null,0,null,null,0,0,null,null,0,"2020-01-10","2020-01-10",null,null,0,null,null,0,null,null,0,0,null,null,0,"2020-01-10","2020-01-10",null,null,0,null,null,0,null,null,0,0,null,null,0,"2020-01-10","2020-01-10",null,null,0,null,null,0,null,null,0,0,null,null,0,"2020-01-10","2020-01-10",null,null,0,null,null,0,null,null,0,0,null,null,0,"2020-01-10","2020-01-10",null,null,0,null,null,0,null,null,0,0,null,null,0,"2020-01-10","2020-01-10",null,null,0,null,null,0,null,null,0,0,null,null,0,"2020-01-10","2020-01-10",null,null,0,null,null,0,null,null,0,0,null,null,0,"2020-01-10","2020-01-10",null,null,0,null,null,0,null,null,0,0,null,null,0]
[null,"2020-01-11","2020-01-11",null,null,null,"2020-01-11","2020-01-11",null,null,0,null,null,0,null,null,0,0,null,null,0,"2020-01-11","2020-01-11",null,null,0,null,null,0,null,null,0,0,null,null,0,"2020-01-11","2020-01-11",null,null,0,null,null,0,null,null,0,0,null,null,0,"2020-01-11","2020-01-11",null,null,0,null,null,0,null,null,0,0,null,null,0,"2020-01-11","2020-01-11",null,null,0,null,null,0,null,null,0,0,null,null,0,"2020-01-11","2020-01-11",null,null,0,null,null,0,null,null,0,0,null,null,0,"2020-01-11","2020-01-11",null,null,0,null,null,0,null,null,0,0,null,null,0,"2020-01-11","2020-01-11",null,null,0,null,null,0,null,null,0,0,null,null,0,"2020-01-11","2020-01-11",null,null,0,null,null,0,null,null,0,0,null,null,0,"2020-01-11","2020-01-11",null,null,0,null,null,0,null,null,0,0,null,null,0]
[null,"2020-01-12","2020-01-12",null,null,null,"2020-01-12","2020-01-12",null,null,0,null,null,0,null,null,0,0,null,null,0,"2020-01-12","2020-01-12",null,null,0,null,null,0,null,null,0,0,null,null,0,"2020-01-12","2020-01-12",null,null,0,null,null,0,null,null,0,0,null,null,0,"2020-01-12","2020-01-12",null,null,0,null,null,0,null,null,0,0,null,null,0,"2020-01-12","2020-01-12",null,null,0,null,null,0,null,null,0,0,null,null,0,"2020-01-12","2020-01-12",null,null,0,null,null,0,null,null,0,0,null,null,0,"2020-01-12","2020-01-12",null,null,0,null,null,0,null,null,0,0,null,null,0,"2020-01-12","2020-01-12",null,null,0,null,null,0,null,null,0,0,null,null,0,"2020-01-12","2020-01-12",null,null,0,null,null,0,null,null,0,0,null,null,0,"2020-01-12","2020-01-12",null,null,0,null,null,0,null,null,0,0,null,null,0]
[null,"2020-01-13","2020-01-13",null,null,null,"2020-01-13","2020-01-13",null,null,0,null,null,0,null,null,0,0,null,null,0,"2020-01-13","2020-01-13",null,null,0,null,null,0,null,null,0,0,null,null,0,"2020-01-13","2020-01-13",null,null,0,null,null,0,null,null,0,0,null,null,0,"2020-01-13","2020-01-13",null,null,0,null,null,0,null,null,0,0,null,null,0,"2020-01-13","2020-01-13",null,null,0,null,null,0,null,null,0,0,null,null,0,"2020-01-13","2020-01-13",null,null,0,null,null,0,null,null,0,0,null,null,0,"2020-01-13","2020-01-13",null,null,0,null,null,0,null,null,0,0,null,null,0,"2020-01-13","2020-01-13",null,null,0,null,null,0,null,null,0,0,null,null,0,"2020-01-13","2020-01-13",null,null,0,null,null,0,null,null,0,0,null,null,0,"2020-01-13","2020-01-13",null,null,0,null,null,0,null,null,0,0,null,null,0]
[null,"2020-01-14","2020-01-14",null,null,null,"2020-01-14","2020-01-14",null,null,0,null,null,0,null,null,0,0,null,null,0,"2020-01-14","2020-01-14",null,null,0,null,null,0,null,null,0,0,null,null,0,"2020-01-14","2020-01-14",null,null,0,null,null,0,null,null,0,0,null,null,0,"2020-01-14","2020-01-14",null,null,0,null,null,0,null,null,0,0,null,null,0,"2020-01-14","2020-01-14",null,null,0,null,null,0,null,null,0,0,null,null,0,"2020-01-14","2020-01-14",null,null,0,null,null,0,null,null,0,0,null,null,0,"2020-01-14","2020-01-14",null,null,0,null,null,0,null,null,0,0,null,null,0,"2020-01-14","2020-01-14",null,null,0,null,null,0,null,null,0,0,null,null,0,"2020-01-14","2020-01-14",null,null,0,null,null,0,null,null,0,0,null,null,0,"2020-01-14","2020-01-14",null,null,0,null,null,0,null,null,0,0,null,null,0]
[null,"2020-01-15","2020-01-15",null,null,null,"2020-01-15","2020-01-15","09:00:00","17:00:00",8,null,null,0,null,null,0,8,null,null,0,"2020-01-15","2020-01-15",null,null,0,null,null,0,null,null,0,0,null,null,0,"2020-01-15","2020-01-15",null,null,0,null,null,0,null,null,0,0,null,null,0,"2020-01-15","2020-01-15",null,null,0,null,null,0,null,null,0,0,null,null,0,"2020-01-15","2020-01-15",null,null,0,null,null,0,null,null,0,0,null,null,0,"2020-01-15","2020-01-15",null,null,0,null,null,0,null,null,0,0,null,null,0,"2020-01-15","2020-01-15",null,null,0,null,null,0,null,null,0,0,null,null,0,"2020-01-15","2020-01-15",null,null,0,null,null,0,null,null,0,0,null,null,0,"2020-01-15","2020-01-15",null,null,0,null,null,0,null,null,0,0,null,null,0,"2020-01-15","2020-01-15",null,null,0,null,null,0,null,null,0,0,null,null,0]
[null,"2020-01-16","2020-01-16",null,null,null,"2020-01-16","2020-01-16",null,null,0,null,null,0,null,null,0,0,null,null,0,"2020-01-16","2020-01-16",null,null,0,null,null,0,null,null,0,0,null,null,0,"2020-01-16","2020-01-16",null,null,0,null,null,0,null,null,0,0,null,null,0,"2020-01-16","2020-01-16",null,null,0,null,null,0,null,null,0,0,null,null,0,"2020-01-16","2020-01-16",null,null,0,null,null,0,null,null,0,0,null,null,0,"2020-01-16","2020-01-16",null,null,0,null,null,0,null,null,0,0,null,null,0,"2020-01-16","2020-01-16",null,null,0,null,null,0,null,null,0,0,null,null,0,"2020-01-16","2020-01-16",null,null,0,null,null,0,null,null,0,0,null,null,0,"2020-01-16","2020-01-16",null,null,0,null,null,0,null,null,0,0,null,null,0,"2020-01-16","2020-01-16",null,null,0,null,null,0,null,null,0,0,null,null,0]
[null,"2020-01-17","2020-01-17",null,null,null,"2020-01-17","2020-01-17",null,null,0,null,null,0,null,null,0,0,null,null,0,"2020-01-17","2020-01-17",null,null,0,null,null,0,null,null,0,0,null,null,0,"2020-01-17","2020-01-17",null,null,0,null,null,0,null,null,0,0,null,null,0,"2020-01-17","2020-01-17",null,null,0,null,null,0,null,null,0,0,null,null,0,"2020-01-17","2020-01-17",null,null,0,null,null,0,null,null,0,0,null,null,0,"2020-01-17","2020-01-17",null,null,0,null,null,0,null,null,0,0,null,null,0,"2020-01-17","2020-01-17",null,null,0,null,null,0,null,null,0,0,null,null,0,"2020-01-17","2020-01-17",null,null,0,null,null,0,null,null,0,0,null,null,0,"2020-01-17","2020-01-17",null,null,0,null,null,0,null,null,0,0,null,null,0,"2020-01-17","2020-01-17",null,null,0,null,null,0,null,null,0,0,null,null,0]
[null,"2020-01-18","2020-01-18",null,null,null,"2020-01-18","2020-01-18",null,null,0,null,null,0,null,null,0,0,null,null,0,"2020-01-18","2020-01-18",null,null,0,null,null,0,null,null,0,0,null,null,0,"2020-01-18","2020-01-18",null,null,0,null,null,0,null,null,0,0,null,null,0,"2020-01-18","2020-01-18",null,null,0,null,null,0,null,null,0,0,null,null,0,"2020-01-18","2020-01-18",null,null,0,null,null,0,null,null,0,0,null,null,0,"2020-01-18","2020-01-18",null,null,0,null,null,0,null,null,0,0,null,null,0,"2020-01-18","2020-01-18",null,null,0,null,null,0,null,null,0,0,null,null,0,"2020-01-18","2020-01-18",null,null,0,null,null,0,null,null,0,0,null,null,0,"2020-01-18","2020-01-18",null,null,0,null,null,0,null,null,0,0,null,null,0,"2020-01-18","2020-01-18",null,null,0,null,null,0,null,null,0,0,null,null,0]
[null,{"$f":"B27+1","v":"2020-01-19"},"2020-01-19",null,null,null,"2020-01-19","2020-01-19",null,null,0,null,null,0,null,null,0,0,null,null,0,"2020-01-19","2020-01-19",null,null,0,null,null,0,null,null,0,0,null,null,0,"2020-01-19","2020-01-19",null,null,0,null,null,0,null,null,0,0,null,null,0,"2020-01-19","2020-01-19",null,null,0,null,null,0,null,null,0,0,null,null,0,"2020-01-19","2020-01-19",null,null,0,null,null,0,null,null,0,0,null,null,0,"2020-01-19","2020-01-19",null,null,0,null,null,0,null,null,0,0,null,null,0,"2020-01-19","2020-01-19",null,null,0,null,null,0,null,null,0,0,null,null,0,"2020-01-19","2020-01-19",null,null,0,null,null,0,null,null,0,0,null,null,0,"2020-01-19","2020-01-19",null,null,0,null,null,0,null,null,0,0,null,null,0,"2020-01-19","2020-01-19",null,null,0,null,null,0,null,null,0,0,null,null,0]
[null,"2020-01-20","2020-01-20",null,null,null,"2020-01-20","2020-01-20",null,null,0,null,null,0,null,null,0,0,null,null,0,"2020-01-20","2020-01-20",null,null,0,null,null,0,null,null,0,0,null,null,0,"2020-01-20","2020-01-20",null,null,0,null,null,0,null,null,0,0,null,null,0,"2020-01-20","2020-01-20",null,null,0,null,null,0,null,null,0,0,null,null,0,"2020-01-20","2020-01-20",null,null,0,null,null,0,null,null,0,0,null,null,0,"2020-01-20","2020-01-20",null,null,0,null,null,0,null,null,0,0,null,null,0,"2020-01-20","2020-01-20",null,null,0,null,null,0,null,null,0,0,null,null,0,"2020-01-20","2020-01-20",null,null,0,null,null,0,null,null,0,0,null,null,0,"2020-01-20","2020-01-20",null,null,0,null,null,0,null,null,0,0,null,null,0,"2020-01-20","2020-01-20",null,null,0,null,null,0,null,null,0,0,null,null,0]
[null,"2020-01-21","2020-01-21",null,null,null,"2020-01-21","2020-01-21",null,null,0,null,null,0,null,null,0,0,null,null,0,"2020-01-21","2020-01-21",null,null,0,null,null,0,null,null,0,0,null,null,0,"2020-01-21","2020-01-21",null,null,0,null,null,0,null,null,0,0,null,null,0,"2020-01-21","2020-01-21",null,null,0,null,null,0,null,null,0,0,null,null,0,"2020-01-21","2020-01-21",null,null,0,null,null,0,null,null,0,0,null,null,0,"2020-01-21","2020-01-21",null,null,0,null,null,0,null,null,0,0,null,null,0,"2020-01-21","2020-01-21",null,null,0,null,null,0,null,null,0,0,null,null,0,"2020-01-21","2020-01-21",null,null,0,null,null,0,null,null,0,0,null,null,0,"2020-01-21","2020-01-21",null,null,0,null,null,0,null,null,0,0,null,null,0,"2020-01-21","2020-01-21",null,null,0,null,null,0,null,null,0,0,null,null,0]
[null,"2020-01-22","2020-01-22",null,null,null,"2020-01-22","2020-01-22",null,null,0,null,null,0,null,null,0,0,null,null,0,"2020-01-22","2020-01-22",null,null,0,null,null,0,null,null,0,0,null,null,0,"2020-01-22","2020-01-22",null,null,0,null,null,0,null,null,0,0,null,null,0,"2020-01-22","2020-01-22",null,null,0,null,null,0,null,null,0,0,null,null,0,"2020-01-22","2020-01-22",null,null,0,null,null,0,null,null,0,0,null,null,0,"2020-01-22","2020-01-22",null,null,0,null,null,0,null,null,0,0,null,null,0,"2020-01-22","2020-01-22",null,null,0,null,null,0,null,null,0,0,null,null,0,"2020-01-22","2020-01-22",null,null,0,null,null,0,null,null,0,0,null,null,0,"2020-01-22","2020-01-22",null,null,0,null,null,0,null,null,0,0,null,null,0,"2020-01-22","2020-01-22",null,null,0,null,null,0,null,null,0,0,null,null,0]
[null,"2020-01-23","2020-01-23",null,null,null,"2020-01-23","2020-01-23",null,null,0,null,null,0,null,null,0,0,null,null,0,"2020-01-23","2020-01-23",null,null,0,null,null,0,null,null,0,0,null,null,0,"2020-01-23","2020-01-23",null,null,0,null,null,0,null,null,0,0,null,null,0,"2020-01-23","2020-01-23",null,null,0,null,null,0,null,null,0,0,null,null,0,"2020-01-23","2020-01-23",null,null,0,null,null,0,null,null,0,0,null,null,0,"2020-01-23","2020-01-23",null,null,0,null,null,0,null,null,0,0,null,null,0,"2020-01-23","2020-01-23",null,null,0,null,null,0,null,null,0,0,null,null,0,"2020-01-23","2020-01-23",null,null,0,null,null,0,null,null,0,0,null,null,0,"2020-01-23","2020-01-23",null,null,0,null,null,0,null,null,0,0,null,null,0,"2020-01-23","2020-01-23",null,null,0,null,null,0,null,null,0,0,null,null,0]
[null,"2020-01-24","2020-01-24",null,null,null,"2020-01-24","2020-01-24",null,null,0,null,null,0,null,null,0,0,null,null,0,"2020-01-24","2020-01-24",null,null,0,null,null,0,null,null,0,0,null,null,0,"2020-01-24","2020-01-24",null,null,0,null,null,0,null,null,0,0,null,null,0,"2020-01-24","2020-01-24",null,null,0,null,null,0,null,null,0,0,null,null,0,"2020-01-24","2020-01-24",null,null,0,null,null,0,null,null,0,0,null,null,0,"2020-01-24","2020-01-24",null,null,0,null,null,0,null,null,0,0,null,null,0,"2020-01-24","2020-01-24",null,null,0,null,null,0,null,null,0,0,null,null,0,"2020-01-24","2020-01-24",null,null,0,null,null,0,null,null,0,0,null,null,0,"2020-01-24","2020-01-24",null,null,0,null,null,0,null,null,0,0,null,null,0,"2020-01-24","2020-01-24",null,null,0,null,null,0,null,null,0,0,null,null,0]
[null,"2020-01-25","2020-01-25",null,null,null,"2020-01-25","2020-01-25",null,null,0,null,null,0,null,null,0,0,null,null,0,"2020-01-25","2020-01-25",null,null,0,null,null,0,null,null,0,0,null,null,0,"2020-01-25","2020-01-25",null,null,0,null,null,0,null,null,0,0,null,null,0,"2020-01-25","2020-01-25",null,null,0,null,null,0,null,null,0,0,null,null,0,"2020-01-25","2020-01-25",null,null,0,null,null,0,null,null,0,0,null,null,0,"2020-01-25","2020-01-25",null,null,0,null,null,0,null,null,0,0,null,null,0,"2020-01-25","2020-01-25",null,null,0,null,null,0,null,null,0,0,null,null,0,"2020-01-25","2020-01-25",null,null,0,null,null,0,null,null,0,0,null,null,0,"2020-01-25","2020-01-25",null,null,0,null,null,0,null,null,0,0,null,null,0,"2020-01-25","2020-01-25",null,null,0,null,null,0,null,null,0,0,null,null,0]
[null,"2020-01-26","2020-01-26",null,null,null,"2020-01-26","2020-01-26",null,null,0,null,null,0,null,null,0,0,null,null,0,"2020-01-26","2020-01-26",null,null,0,null,null,0,null,null,0,0,null,null,0,"2020-01-26","2020-01-26",null,null,0,null,null,0,null,null,0,0,null,null,0,"2020-01-26","2020-01-26",null,null,0,null,null,0,null,null,0,0,null,null,0,"2020-01-26","2020-01-26",null,null,0,null,null,0,null,null,0,0,null,null,0,"2020-01-26","2020-01-26",null,null,0,null,null,0,null,null,0,0,null,null,0,"2020-01-26","2020-01-26",null,null,0,null,null,0,null,null,0,0,null,null,0,"2020-01-26","2020-01-26",null,null,0,null,null,0,null,null,0,0,null,null,0,"2020-01-26","2020-01-26",null,null,0,null,null,0,null,null,0,0,null,null,0,"2020-01-26","2020-01-26",null,null,0,null,null,0,null,null,0,0,null,null,0]
[null,"2020-01-27","2020-01-27",null,null,null,"2020-01-27","2020-01-27",null,null,0,null,null,0,null,null,0,0,null,null,0,"2020-01-27","2020-01-27",null,null,0,null,null,0,null,null,0,0,null,null,0,"2020-01-27","2020-01-27",null,null,0,null,null,0,null,null,0,0,null,null,0,"2020-01-27","2020-01-27",null,null,0,null,null,0,null,null,0,0,null,null,0,"2020-01-27","2020-01-27",null,null,0,null,null,0,null,null,0,0,null,null,0,"2020-01-27","2020-01-27",null,null,0,null,null,0,null,null,0,0,null,null,0,"2020-01-27","2020-01-27",null,null,0,null,null,0,null,null,0,0,null,null,0,"2020-01-27","2020-01-27",null,null,0,null,null,0,null,null,0,0,null,null,0,"2020-01-27","2020-01-27",null,null,0,null,null,0,null,null,0,0,null,null,0,"2020-01-27","2020-01-27",null,null,0,null,null,0,null,null,0,0,null,null,0]
[null,"2020-01-28","2020-01-28",null,null,null,"2020-01-28","2020-01-28",null,null,0,null,null,0,null,null,0,0,null,null,0,"2020-01-28","2020-01-28",null,null,0,null,null,0,null,null,0,0,null,null,0,"2020-01-28","2020-01-28",null,null,0,null,null,0,null,null,0,0,null,null,0,"2020-01-28","2020-01-28",null,null,0,null,null,0,null,null,0,0,null,null,0,"2020-01-28","2020-01-28",null,null,0,null,null,0,null,null,0,0,null,null,0,"2020-01-28","2020-01-28",null,null,0,null,null,0,null,null,0,0,null,null,0,"2020-01-28","2020-01-28",null,null,0,null,null,0,null,null,0,0,null,null,0,"2020-01-28","2020-01-28",null,null,0,null,null,0,null,null,0,0,null,null,0,"2020-01-28","2020-01-28",null,null,0,null,null,0,null,null,0,0,null,null,0,"2020-01-28","2020-01-28",null,null,0,null,null,0,null,null,0,0,null,null,0]
[null,"2020-01-29","2020-01-29",null,null,null,"2020-01-29","2020-01-29",null,null,0,null,null,0,null,null,0,0,null,null,0,"2020-01-29","2020-01-29",null,null,0,null,null,0,null,null,0,0,null,null,0,"2020-01-29","2020-01-29",null,null,0,null,null,0,null,null,0,0,null,null,0,"2020-01-29","2020-01-29",null,null,0,null,null,0,null,null,0,0,null,null,0,"2020-01-29","2020-01-29",null,null,0,null,null,0,null,null,0,0,null,null,0,"2020-01-29","2020-01-29",null,null,0,null,null,0,null,null,0,0,null,null,0,"2020-01-29","2020-01-29",null,null,0,null,null,0,null,null,0,0,null,null,0,"2020-01-29","2020-01-29",null,null,0,null,null,0,null,null,0,0,null,null,0,"2020-01-29","2020-01-29",null,null,0,null,null,0,null,null,0,0,null,null,0,"2020-01-29","2020-01-29",null,null,0,null,null,0,null,null,0,0,null,null,0]
[null,"2020-01-30","2020-01-30",null,null,null,"2020-01-30","2020-01-30",null,null,0,null,null,0,null,null,0,0,null,null,0,"2020-01-30","2020-01-30",null,null,0,null,null,0,null,null,0,0,null,null,0,"2020-01-30","2020-01-30",null,null,0,null,null,0,null,null,0,0,null,null,0,"2020-01-30","2020-01-30",null,null,0,null,null,0,null,null,0,0,null,null,0,"2020-01-30","2020-01-30",null,null,0,null,null,0,null,null,0,0,null,null,0,"2020-01-30","2020-01-30",null,null,0,null,null,0,null,null,0,0,null,null,0,"2020-01-30","2020-01-30",null,null,0,null,null,0,null,null,0,0,null,null,0,"2020-01-30","2020-01-30",null,null,0,null,null,0,null,null,0,0,null,null,0,"2020-01-30","2020-01-30",null,null,0,null,null,0,null,null,0,0,null,null,0,"2020-01-30","2020-01-30",null,null,0,null,null,0,null,null,0,0,null,null,0]
[null,"2020-01-31","2020-01-31",null,null,null,"2020-01-31","2020-01-31",null,null,0,null,null,0,null,null,0,0,null,null,0,"2020-01-31","2020-01-31",null,null,0,null,null,0,null,null,0,0,null,null,0,"2020-01-31","2020-01-31",null,null,0,null,null,0,null,null,0,0,null,null,0,"2020-01-31","2020-01-31",null,null,0,null,null,0,null,null,0,0,null,null,0,"2020-01-31","2020-01-31",null,null,0,null,null,0,null,null,0,0,null,null,0,"2020-01-31","2020-01-31",null,null,0,null,null,0,null,null,0,0,null,null,0,"2020-01-31","2020-01-31",null,null,0,null,null,0,null,null,0,0,null,null,0,"2020-01-31","2020-01-31",null,null,0,null,null,0,null,null,0,0,null,null,0,"2020-01-31","2020-01-31",null,null,0,null,null,0,null,null,0,0,null,null,0,"2020-01-31","2020-01-31",null,null,0,null,null,0,null,null,0,0,null,null,0]
[null,null,null,null,null,null,null,null,null,null,null,null,null,null,null,null,"ò","ò",null,null,"ò",null,null,null,null,null,null,null,null,null,null,"ò","ò",null,null,"ò",null,null,null,null,null,null,null,null,null,null,"ò","ò",null,null,"ò",null,null,null,null,null,null,null,null,null,null,"ò","ò",null,null,"ò",null,null,null,null,null,null,null,null,null,null,"ò","ò",null,null,"ò",null,null,null,null,null,null,null,null,null,null,"ò","ò",null,null,"ò",null,null,null,null,null,null,null,null,null,null,"ò","ò",null,null,"ò",null,null,null,null,null,null,null,null,null,null,"ò","ò",null,null,"ò",null,null,null,null,null,null,null,null,null,null,"ò","ò",null,null,"ò",null,null,null,null,null,null,null,null,null,null,"ò","ò",null,null,"ò"]
[]
[null,null,null,null,null,null,null,null,null,null,null,null,null,"SUMME      ",null,null,{"$f":"SUM(Q10:Q40)","v":2},{"$f":"SUMIF(R10:R40,\"<1E+307\")","v":15.916666666666666},"SUMME",null,{"$f":"SUM(U10:U42)","v":0},"                                                                                                        ",null,null,null,null,null,null,"SUMME           ",null,null,{"$f":"SUM(AF10:AF40)","v":0},{"$f":"SUMIF(AG10:AG40,\"<1E+307\")","v":0},"SUMME",null,{"$f":"SUM(AJ10:AJ42)","v":0},"                                                                                                        ",null,null,null,null,null,null,"SUMME           ",null,null,{"$f":"SUM(AU10:AU40)","v":0},{"$f":"SUMIF(AV10:AV40,\"<1E+307\")","v":0},"SUMME",null,{"$f":"SUM(AY10:AY42)","v":0},"                                                                                                        ",null,null,null,null,null,null,"SUMME           ",null,null,{"$f":"SUM(BJ10:BJ40)","v":0},{"$f":"SUMIF(BK10:BK40,\"<1E+307\")","v":0},"SUMME",null,{"$f":"SUM(BN10:BN42)","v":0},"                                                                                                        ",null,null,null,null,null,null,"SUMME           ",null,null,{"$f":"SUM(BY10:BY40)","v":0},{"$f":"SUMIF(BZ10:BZ40,\"<1E+307\")","v":0},"SUMME",null,{"$f":"SUM(CC10:CC42)","v":0},"                                                                                                        ",null,null,null,null,null,null,"SUMME           ",null,null,{"$f":"SUM(CN10:CN40)","v":0},{"$f":"SUMIF(CO10:CO40,\"<1E+307\")","v":0},"SUMME",null,{"$f":"SUM(CR10:CR42)","v":0},"                                                                                                        ",null,null,null,null,null,null,"SUMME           ",null,null,{"$f":"SUM(DC10:DC40)","v":0},{"$f":"SUMIF(DD10:DD40,\"<1E+307\")","v":0},"SUMME",null,{"$f":"SUM(DG10:DG42)","v":0},"                                                                                                        ",null,null,null,null,null,null,"SUMME           ",null,null,{"$f":"SUM(DR10:DR40)","v":0},{"$f":"SUMIF(DS10:DS40,\"<1E+307\")","v":0},"SUMME",null,{"$f":"SUM(DV10:DV42)","v":0},"                                                                                                        ",null,null,null,null,null,null,"SUMME           ",null,null,{"$f":"SUM(EG10:EG40)","v":0},{"$f":"SUMIF(EH10:EH40,\"<1E+307\")","v":0},"SUMME",null,{"$f":"SUM(EK10:EK42)","v":0},"                                                                                                        ",null,null,null,null,null,null,"SUMME           ",null,null,{"$f":"SUM(EV10:EV40)","v":0},{"$f":"SUMIF(EW10:EW40,\"<1E+307\")","v":0},"SUMME",null,{"$f":"SUM(EZ10:EZ42)","v":0}]
[null,null,null,null,null,null,null,null,null,null,null,null,null,"abzgl. Planstunden",null,null,null,null,"                             ",null,null,null,null,null,null,null,null,null,"abzgl. Planstunden",null,null,null,null,"                             ",null,null,null,null,null,null,null,null,null,"abzgl. Planstunden",null,null,null,null,"                             ",null,null,null,null,null,null,null,null,null,"abzgl. Planstunden",null,null,null,null,"                             ",null,null,null,null,null,null,null,null,null,"abzgl. Planstunden",null,null,null,null,"                             ",null,null,null,null,null,null,null,null,null,"abzgl. Planstunden",null,null,null,null,"                             ",null,null,null,null,null,null,null,null,null,"abzgl. Planstunden",null,null,null,null,"                             ",null,null,null,null,null,null,null,null,null,"abzgl. Planstunden",null,null,null,null,"                             ",null,null,null,null,null,null,null,null,null,"abzgl. Planstunden",null,null,null,null,"                             ",null,null,null,null,null,null,null,null,null,"abzgl. Planstunden",null,null,null,null,"                             "]
[null,null,null,null,null,null,null,null,null,null,null,null,null,"geplante +/- Std",null,null,null,null,"Überstunden   ",null,null,null,null,null,null,null,null,null,"geplante +/- Std",null,null,null,null,"Überstunden   ",null,null,null,null,null,null,null,null,null,"geplante +/- Std",null,null,null,null,"Überstunden   ",null,null,null,null,null,null,null,null,null,"geplante +/- Std",null,null,null,null,"Überstunden   ",null,null,null,null,null,null,null,null,null,"geplante +/- Std",null,null,null,null,"Überstunden   ",null,null,null,null,null,null,null,null,null,"geplante +/- Std",null,null,null,null,"Überstunden   ",null,null,null,null,null,null,null,null,null,"geplante +/- Std",null,null,null,null,"Überstunden   ",null,null,null,null,null,null,null,null,null,"geplante +/- Std",null,null,null,null,"Überstunden   ",null,null,null,null,null,null,null,null,null,"geplante +/- Std",null,null,null,null,"Überstunden   ",null,null,null,null,null,null,null,null,null,"geplante +/- Std",null,null,null,null,"Überstunden   "]
[null,null,null,null,null,null,null,null,null,null,null,null,null,null,null,"SUMME  Planung                  ",null,null,null,null,{"$f":"R43","v":15.916666666666666},null,null,null,null,null,null,null,null,null,"SUMME  Planung                  ",null,null,null,null,{"$f":"AG43","v":0},null,null,null,null,null,null,null,null,null,"SUMME  Planung                  ",null,null,null,null,{"$f":"AV43","v":0},null,null,null,null,null,null,null,null,null,"SUMME  Planung                  ",null,null,null,null,{"$f":"BK43","v":0},null,null,null,null,null,null,null,null,null,"SUMME  Planung                  ",null,null,null,null,{"$f":"BZ43","v":0},null,null,null,null,null,null,null,null,null,"SUMME  Planung                  ",null,null,null,null,{"$f":"CO43","v":0},null,null,null,null,null,null,null,null,null,"SUMME  Planung                  ",null,null,null,null,{"$f":"DD43","v":0},null,null,null,null,null,null,null,null,null,"SUMME  Planung                  ",null,null,null,null,{"$f":"DS43","v":0},null,null,null,null,null,null,null,null,null,"SUMME  Planung                  ",null,null,null,null,{"$f":"EH43","v":0},null,null,null,null,null,null,null,null,null,"SUMME  Planung                  ",null,null,null,null,{"$f":"EW43","v":0}]
[null,null,null,null,null,null,null,null,null,null,null,null,null,null," +","SUMME Abweichung           ",null,null,null,null,{"$f":"SUM(U43)","v":0},null,null,null,null,null,null,null,null," +","SUMME Abweichung           ",null,null,null,null,{"$f":"SUM(AJ43)","v":0},null,null,null,null,null,null,null,null," +","SUMME Abweichung           ",null,null,null,null,{"$f":"SUM(AY43)","v":0},null,null,null,null,null,null,null,null," +","SUMME Abweichung           ",null,null,null,null,{"$f":"SUM(BN43)","v":0},null,null,null,null,null,null,null,null," +","SUMME Abweichung           ",null,null,null,null,{"$f":"SUM(CC43)","v":0},null,null,null,null,null,null,null,null," +","SUMME Abweichung           ",null,null,null,null,{"$f":"SUM(CR43)","v":0},null,null,null,null,null,null,null,null," +","SUMME Abweichung           ",null,null,null,null,{"$f":"SUM(DG43)","v":0},null,null,null,null,null,null,null,null," +","SUMME Abweichung           ",null,null,null,null,{"$f":"SUM(DV43)","v":0},null,null,null,null,null,null,null,null," +","SUMME Abweichung           ",null,null,null,null,{"$f":"SUM(EK43)","v":0},null,null,null,null,null,null,null,null," +","SUMME Abweichung           ",null,null,null,null,{"$f":"SUM(EZ43)","v":0}]
[null,null,null,null,null,null,null,null,null,null,null,null,null,null,null,"Zwischensumme                      ",null,null,null,null,{"$f":"SUM(U46:U47)","v":15.916666666666666},null,null,null,null,null,null,null,null,null,"Zwischensumme                      ",null,null,null,null,{"$f":"SUM(AJ46:AJ47)","v":0},null,null,null,null,null,null,null,null,null,"Zwischensumme                      ",null,null,null,null,{"$f":"SUM(AY46:AY47)","v":0},null,null,null,null,null,null,null,null,null,"Zwischensumme                      ",null,null,null,null,{"$f":"SUM(BN46:BN47)","v":0},null,null,null,null,null,null,null,null,null,"Zwischensumme                      ",null,null,null,null,{"$f":"SUM(CC46:CC47)","v":0},null,null,null,null,null,null,null,null,null,"Zwischensumme                      ",null,null,null,null,{"$f":"SUM(CR46:CR47)","v":0},null,null,null,null,null,null,null,null,null,"Zwischensumme                      ",null,null,null,null,{"$f":"SUM(DG46:DG47)","v":0},null,null,null,null,null,null,null,null,null,"Zwischensumme                      ",null,null,null,null,{"$f":"SUM(DV46:DV47)","v":0},null,null,null,null,null,null,null,null,null,"Zwischensumme                      ",null,null,null,null,{"$f":"SUM(EK46:EK47)","v":0},null,null,null,null,null,null,null,null,null,"Zwischensumme                      ",null,null,null,null,{"$f":"SUM(EZ46:EZ47)","v":0}]
[null,null,null,null,null,null,null,null,null,null,null,null,null,null," -","abzgl. auszuzahlende ÜStd.",null,null,null,null,{"$f":"U45","v":0},null,null,null,null,null,null,null,null," -","abzgl. auszuzahlende ÜStd.",null,null,null,null,{"$f":"AJ45","v":0},null,null,null,null,null,null,null,null," -","abzgl. auszuzahlende ÜStd.",null,null,null,null,{"$f":"AY45","v":0},null,null,null,null,null,null,null,null," -","abzgl. auszuzahlende ÜStd.",null,null,null,null,{"$f":"BN45","v":0},null,null,null,null,null,null,null,null," -","abzgl. auszuzahlende ÜStd.",null,null,null,null,{"$f":"CC45","v":0},null,null,null,null,null,null,null,null," -","abzgl. auszuzahlende ÜStd.",null,null,null,null,{"$f":"CR45","v":0},null,null,null,null,null,null,null,null," -","abzgl. auszuzahlende ÜStd.",null,null,null,null,{"$f":"DG45","v":0},null,null,null,null,null,null,null,null," -","abzgl. auszuzahlende ÜStd.",null,null,null,null,{"$f":"DV45","v":0},null,null,null,null,null,null,null,null," -","abzgl. auszuzahlende ÜStd.",null,null,null,null,{"$f":"EK45","v":0},null,null,null,null,null,null,null,null," -","abzgl. auszuzahlende ÜStd.",null,null,null,null,{"$f":"EZ45","v":0}]
[null,null,null,null,null,null,null,null,null,null,null,null,null,null," +","Zeitübertrag Vormonat  ",null,null,null,null,0,null,null,null,null,null,null,null,null," +","Zeitübertrag Vormonat    ",null,null,null,null,0,null,null,null,null,null,null,null,null," +","Zeitübertrag Vormonat    ",null,null,null,null,0,null,null,null,null,null,null,null,null," +","Zeitübertrag Vormonat    ",null,null,null,null,0,null,null,null,null,null,null,null,null," +","Zeitübertrag Vormonat    ",null,null,null,null,0,null,null,null,null,null,null,null,null," +","Zeitübertrag Vormonat    ",null,null,null,null,0,null,null,null,null,null,null,null,null," +","Zeitübertrag Vormonat    ",null,null,null,null,0,null,null,null,null,null,null,null,null," +","Zeitübertrag Vormonat    ",null,null,null,null,0,null,null,null,null,null,null,null,null," +","Zeitübertrag Vormonat    ",null,null,null,null,0,null,null,null,null,null,null,null,null," +","Zeitübertrag Vormonat    ",null,null,null,null,0]
[null,null,null,null,null,null,null,null,null,null,null,null,null,null,null,"Monats IST                             ",null,null,null,null,{"$f":"R43","v":15.916666666666666},null,null,null,null,null,null,null,null,null,"Monats IST                             ",null,null,null,null,{"$f":"AG43","v":0},null,null,null,null,null,null,null,null,null,"Monats IST                             ",null,null,null,null,0,null,null,null,null,null,null,null,null,null,"Monats IST                             ",null,null,null,null,0,null,null,null,null,null,null,null,null,null,"Monats IST                             ",null,null,null,null,0,null,null,null,null,null,null,null,null,null,"Monats IST                             ",null,null,null,null,0,null,null,null,null,null,null,null,null,null,"Monats IST                             ",null,null,null,null,0,null,null,null,null,null,null,null,null,null,"Monats IST                             ",null,null,null,null,0,null,null,null,null,null,null,null,null,null,"Monats IST                             ",null,null,null,null,0,null,null,null,null,null,null,null,null,null,"Monats IST                             ",null,null,null,null,0]
[null,null,null,null,null,null,null,null,null,null,null,null,null,null," -","abzgl. Sollstd.                         ",null,null,null,null,0,null,null,null,null,null,null,null,null," -","abzgl. Sollstd.                         ",null,null,null,null,0,null,null,null,null,null,null,null,null," -","abzgl. Sollstd.                         ",null,null,null,null,0,null,null,null,null,null,null,null,null," -","abzgl. Sollstd.                         ",null,null,null,null,0,null,null,null,null,null,null,null,null," -","abzgl. Sollstd.                         ",null,null,null,null,0,null,null,null,null,null,null,null,null," -","abzgl. Sollstd.                         ",null,null,null,null,0,null,null,null,null,null,null,null,null," -","abzgl. Sollstd.                         ",null,null,null,null,0,null,null,null,null,null,null,null,null," -","abzgl. Sollstd.                         ",null,null,null,null,0,null,null,null,null,null,null,null,null," -","abzgl. Sollstd.                         ",null,null,null,null,0,null,null,null,null,null,null,null,null," -","abzgl. Sollstd.                         ",null,null,null,null,0]
[null,null,null,null,null,null,null,null,null,null,null,null,null,null,null," +/- Std                                     ",null,null,null,null,{"$f":"(U51+U50)-U52","v":15.916666666666666},null,null,null,null,null,null,null,null,null," +/- Std                                     ",null,null,null,null,{"$f":"(AJ51+AJ50)-AJ52","v":0},null,null,null,null,null,null,null,null,null," +/- Std                                     ",null,null,null,null,{"$f":"(AY51+AY50)-AY52","v":0},null,null,null,null,null,null,null,null,null," +/- Std                                     ",null,null,null,null,{"$f":"(BN51+BN50)-BN52","v":0},null,null,null,null,null,null,null,null,null," +/- Std                                     ",null,null,null,null,{"$f":"(CC51+CC50)-CC52","v":0},null,null,null,null,null,null,null,null,null," +/- Std                                     ",null,null,null,null,{"$f":"(CR51+CR50)-CR52","v":0},null,null,null,null,null,null,null,null,null," +/- Std                                     ",null,null,null,null,{"$f":"(DG51+DG50)-DG52","v":0},null,null,null,null,null,null,null,null,null," +/- Std                                     ",null,null,null,null,{"$f":"(DV51+DV50)-DV52","v":0},null,null,null,null,null,null,null,null,null," +/- Std                                     ",null,null,null,null,{"$f":"(EK51+EK50)-EK52","v":0},null,null,null,null,null,null,null,null,null," +/- Std                                     ",null,null,null,null,{"$f":"(EZ51+EZ50)-EZ52","v":0}]
[null,null,null,null,null,null,null,null,null,null,null,null,null,null,null,"Halbjahresabrechnung",null,null,null,null,null,null,null,null,null,null,null,null,null,null,"Halbjahresabrechnung",null,null,null,null,null,null,null,null,null,null,null,null,null,null,"Halbjahresabrechnung",null,null,null,null,null,null,null,null,null,null,null,null,null,null,"Halbjahresabrechnung",null,null,null,null,null,null,null,null,null,null,null,null,null,null,"Halbjahresabrechnung",null,null,null,null,null,null,null,null,null,null,null,null,null,null,"Halbjahresabrechnung",null,null,null,null,null,null,null,null,null,null,null,null,null,null,"Halbjahresabrechnung",null,null,null,null,null,null,null,null,null,null,null,null,null,null,"Halbjahresabrechnung",null,null,null,null,null,null,null,null,null,null,null,null,null,null,"Halbjahresabrechnung",null,null,null,null,null,null,null,null,null,null,null,null,null,null,"Halbjahresabrechnung"]
[null,null,null,null,null,null,null,null,null,null,null,null,null,null,null," +/- Std 6. Monat                     ",null,null,null,null,null,"                                                                                                                                                                      ",null,null,null,null,null,null,null,null," +/- Std 6. Monat                     ",null,null,null,null,null,"                                                                                                                                                                      ",null,null,null,null,null,null,null,null," +/- Std 6. Monat                     ",null,null,null,null,null,"                                                                                                                                                                      ",null,null,null,null,null,null,null,null," +/- Std 6. Monat                     ",null,null,null,null,null,"                                                                                                                                                                      ",null,null,null,null,null,null,null,null," +/- Std 6. Monat                     ",null,null,null,null,null,"                                                                                                                                                                      ",null,null,null,null,null,null,null,null," +/- Std 6. Monat                     ",null,null,null,null,null,"                                                                                                                                                                      ",null,null,null,null,null,null,null,null," +/- Std 6. Monat                     ",null,null,null,null,null,"                                                                                                                                                                      ",null,null,null,null,null,null,null,null," +/- Std 6. Monat                     ",null,null,null,null,null,"                                                                                                                                                                      ",null,null,null,null,null,null,null,null," +/- Std 6. Monat                     ",null,null,null,null,null,"                                                                                                                                                                      ",null,null,null,null,null,null,null,null," +/- Std 6. Monat                     "]
[null,null,null,null,null,null,null,null,null,null,null,null,null,null,null,"abzgl.  Summe +/- Std. Vormon.",null,null,null,null,null,null,null,null,null,null,null,null,null,null,"abzgl.  Summe +/- Std. Vormon.",null,null,null,null,null,null,null,null,null,null,null,null,null,null,"abzgl.  Summe +/- Std. Vormon.",null,null,null,null,null,null,null,null,null,null,null,null,null,null,"abzgl.  Summe +/- Std. Vormon.",null,null,null,null,null,null,null,null,null,null,null,null,null,null,"abzgl.  Summe +/- Std. Vormon.",null,null,null,null,null,null,null,null,null,null,null,null,null,null,"abzgl.  Summe +/- Std. Vormon.",null,null,null,null,null,null,null,null,null,null,null,null,null,null,"abzgl.  Summe +/- Std. Vormon.",null,null,null,null,null,null,null,null,null,null,null,null,null,null,"abzgl.  Summe +/- Std. Vormon.",null,null,null,null,null,null,null,null,null,null,null,null,null,null,"abzgl.  Summe +/- Std. Vormon.",null,null,null,null,null,null,null,null,null,null,null,null,null,null,"abzgl.  Summe +/- Std. Vormon."]
[null,null,null,null,null,null,null,null,null,null,null,null,null,null,null,"Überstunden/Minusstunden",null,null,null,null,null,null,null,null,null,null,null,null,null,null,"Überstunden/Minusstunden",null,null,null,null,null,null,null,null,null,null,null,null,null,null,"Überstunden/Minusstunden",null,null,null,null,null,null,null,null,null,null,null,null,null,null,"Überstunden/Minusstunden",null,null,null,null,null,null,null,null,null,null,null,null,null,null,"Überstunden/Minusstunden",null,null,null,null,null,null,null,null,null,null,null,null,null,null,"Überstunden/Minusstunden",null,null,null,null,null,null,null,null,null,null,null,null,null,null,"Überstunden/Minusstunden",null,null,null,null,null,null,null,null,null,null,null,null,null,null,"Überstunden/Minusstunden",null,null,null,null,null,null,null,null,null,null,null,null,null,null,"Überstunden/Minusstunden",null,null,null,null,null,null,null,null,null,null,null,null,null,null,"Überstunden/Minusstunden"]
[null,null,null,null,null,null,null,null,null,null,null,null,null,null," +","Zeitzuschlag Überstunden    ",null,null,null,null,null,null,null,null,null,null,null,null,null," +","Zeitzuschlag Überstunden    ",null,null,null,null,null,null,null,null,null,null,null,null,null," +","Zeitzuschlag Überstunden    ",null,null,null,null,null,null,null,null,null,null,null,null,null," +","Zeitzuschlag Überstunden    ",null,null,null,null,null,null,null,null,null,null,null,null,null," +","Zeitzuschlag Überstunden    ",null,null,null,null,null,null,null,null,null,null,null,null,null," +","Zeitzuschlag Überstunden    ",null,null,null,null,null,null,null,null,null,null,null,null,null," +","Zeitzuschlag Überstunden    ",null,null,null,null,null,null,null,null,null,null,null,null,null," +","Zeitzuschlag Überstunden    ",null,null,null,null,null,null,null,null,null,null,null,null,null," +","Zeitzuschlag Überstunden    ",null,null,null,null,null,null,null,null,null,null,null,null,null," +","Zeitzuschlag Überstunden    "]
[null,null,null,null,null,null,null,null,null,null,null,null,null,null,null,"Übertrag                                     ",null,null,null,null,null,null,null,null,null,null,null,null,null,null,"Übertrag                                     ",null,null,null,null,null,null,null,null,null,null,null,null,null,null,"Übertrag                                     ",null,null,null,null,null,null,null,null,null,null,null,null,null,null,"Übertrag                                     ",null,null,null,null,null,null,null,null,null,null,null,null,null,null,"Übertrag                                     ",null,null,null,null,null,null,null,null,null,null,null,null,null,null,"Übertrag                                     ",null,null,null,null,null,null,null,null,null,null,null,null,null,null,"Übertrag                                     ",null,null,null,null,null,null,null,null,null,null,null,null,null,null,"Übertrag                                     ",null,null,null,null,null,null,null,null,null,null,null,null,null,null,"Übertrag                                     ",null,null,null,null,null,null,null,null,null,null,null,null,null,null,"Übertrag                                     "]

{"sheet":"IND1","index":1,"n_rows":348,"n_cols":65,"rows_kept":348,"cut":false,"hidden":false,"merged":[[5,58,5,64],[0,1,2,4],[0,18,0,20],[0,21,0,24],[0,26,0,28],[3,26,3,28],[5,0,5,4],[5,19,5,23]]}
[null,"Duty Plan / US-Cop (Athena, Oregon 97813, USA)",null,null,null,null,"TEAM","OlKa","JeWo","ChEm","MeNo","JuGr","NiCh","MA1","MA2","MA3","ChMa",1,{"$f":"C8","v":"2020-01-01"},null,null,"Athena - Oregon"]
[null,null,null,null,null,null,"IST",0,0,0,0,0,0,0,0,0,0]
[null,null,null,null,null,null,"SOLL",156,124.80000000000001,78,70.2,46.8,23.4,0,0,0,499.2,{"$f":"Q3/24","v":20.8}]
[null,null,null,null,null,null,null,-156,-124.80000000000001,-78,-70.2,-46.8,-23.4,0,0,0,-499.2,null,null,null,null,null,null,null,null,null,{"$f":"HYPERLINK(\"#C\"&LOOKUP(9,1/(C:C=TODAY()),ROW(C:C)),\"Go today\")","v":{"$error":"#N/A"}}]
[null,null,null,null,null,null,"Übertrag Vormonat",0,0,0,0,0,0,0,0,0,0]
["Go to Januar",null,null,null,null,null,"Saldo",-156,-124.80000000000001,-78,-70.2,-46.8,-23.4,0,0,0,-499.2,null,null,"DP Januar",null,null,null,null,null,null,null,null,null,null,null,null,null,null,null,null,null,null,null,null,null,null,null,null,null,null,null,null,null,null,null,null,null,null,null,null,null,null,"DP Januar"]
["shift request","unusual",null,null,null,null,"St. Anteil",1,0.8,0.5,0.45,0.3,0.15,0,0,0,3.1999999999999997]
[null,null,"2020-01-01",{"$f":"C8","v":"2020-01-01"},"MA","06:00:00","06:30:00","07:00:00","07:30:00","08:00:00","08:30:00","09:00:00","09:30:00","10:00:00","10:30:00","11:00:00","11:30:00","12:00:00","12:30:00","13:00:00","13:30:00","14:00:00","14:30:00","15:00:00","15:30:00","16:00:00","16:30:00","17:00:00","17:30:00","18:00:00","18:30:00","19:00:00","19:30:00","20:00:00","20:30:00","21:00:00","21:30:00","22:00:00","22:30:00","23:00:00","23:30:00",1,1.0208333333333299,1.0416666666666701,1.0625,1.0833333333333299,1.1041666666666701,1.12499999999999,1.1458333333333199,1.1666666666666501,1.18749999999998,1.2083333333333099,1.2291666666666401]
[null,null,null,null,"OlKa",null,null,null,null,null,null,null,null,null,null,null,null,null,null,null,null,null,null,null,null,null,null,null,null,null,null,null,null,null,null,null,null,null,null,null,null,null,null,null,null,null,null,null,null,null,null,null,null,null,null,null,null,null,null,null,null,null,null,{"$f":"INDEX($F$8:$BA$8,MATCH(\"?*\",INDEX(F9:BA9&\"\",),))","v":{"$error":"#N/A"}},{"$f":"LOOKUP(2,1/(F9:BA9<>\"\"),$F$8:$BA$8)","v":{"$error":"#N/A"}}]
[null,null,null,null,"JeWo",null,null,null,null,null,null,null,null,"10:00:00",null,null,null,null,null,null,null,null,null,"15:00:00",null,null,null,null,null,null,null,null,null,null,null,null,null,null,null,null,null,null,null,null,null,null,null,null,null,null,null,null,null,{"$f":"SUM($F10:$BA10)/2-0.5","v":2.083333333333337E-2},{"$f":"IF(BB10<0,0,BB10)","v":2.083333333333337E-2},null,null,null,null,null,null,null,null,{"$f":"INDEX($F$8:$BA$8,MATCH(\"?*\",INDEX(F10:BA10&\"\",),))","v":"10:00:00"},{"$f":"LOOKUP(2,1/(F10:BA10<>\"\"),$F$8:$BA$8)","v":"15:00:00"}]
[null,null,null,null,"ChEm",null,null,null,null,null,null,null,null,null,null,null,null,null,null,null,null,null,null,null,null,null,null,null,null,null,null,null,null,null,null,null,null,null,null,null,null,null,null,null,null,null,null,null,null,null,null,null,null,null,{"$f":"SUM($F11:$BA11)/2-0.5","v":-0.5},{"$f":"IF(BC11<0,0,BC11)","v":0},null,null,null,null,null,null,null,{"$f":"INDEX($F$8:$BA$8,MATCH(\"?*\",INDEX(F11:BA11&\"\",),))","v":{"$error":"#N/A"}},{"$f":"LOOKUP(2,1/(F11:BA11<>\"\"),$F$8:$BA$8)","v":{"$error":"#N/A"}}]
[null,null,null,null,"MeNo",null,null,null,null,null,null,null,null,null,null,null,null,null,null,null,null,null,null,null,null,null,null,null,null,null,null,null,null,null,null,null,null,null,null,null,null,null,null,null,null,null,null,null,null,null,null,null,null,null,null,{"$f":"SUM($F12:$BA12)/2-0.5","v":-0.5},{"$f":"IF(BD12<0,0,BD12)","v":0},null,null,null,null,null,null,{"$error":"#N/A"},{"$error":"#N/A"}]
[null,null,null,null,"JuGr",null,null,null,null,null,null,null,null,null,null,null,null,null,null,null,null,null,null,null,null,null,null,null,null,null,null,null,null,null,null,null,null,null,null,null,null,null,null,null,null,null,null,null,null,null,null,null,null,null,null,null,{"$f":"SUM($F13:$BA13)/2-0.5","v":-0.5},{"$f":"IF(BE13<0,0,BE13)","v":0},null,null,null,null,null,{"$error":"#N/A"},{"$error":"#N/A"}]
[null,null,null,null,"NiCh",null,null,null,null,null,null,null,null,null,null,null,null,null,null,null,null,null,null,null,null,null,null,null,null,null,null,null,null,null,null,null,null,null,null,null,null,null,null,null,null,null,null,null,null,null,null,null,null,null,null,null,null,{"$f":"SUM($F14:$BA14)/2-0.5","v":-0.5},{"$f":"IF(BF14<0,0,BF14)","v":0},null,null,null,null,{"$error":"#N/A"},{"$error":"#N/A"}]
[null,null,null,null,"MA1",null,null,null,null,null,null,null,null,null,null,null,null,null,null,null,null,null,null,null,null,null,null,null,null,null,null,null,null,null,null,null,null,null,null,null,null,null,null,null,null,null,null,null,null,null,null,null,null,null,null,null,null,null,{"$f":"SUM($F15:$BA15)/2-0.5","v":-0.5},{"$f":"IF(BG15<0,0,BG15)","v":0},null,null,null,{"$error":"#N/A"},{"$error":"#N/A"}]
[null,null,null,null,"MA2",null,null,null,null,null,null,null,null,null,null,null,null,null,null,null,null,null,null,null,null,null,null,null,null,null,null,null,null,null,null,null,null,null,null,null,null,null,null,null,null,null,null,null,null,null,null,null,null,null,null,null,null,null,null,{"$f":"SUM($F16:$BA16)/2-0.5","v":-0.5},{"$f":"IF(BH16<0,0,BH16)","v":0},null,null,{"$error":"#N/A"},{"$error":"#N/A"}]
[null,null,null,null,"MA3",null,null,null,null,null,null,null,null,null,null,null,null,null,null,null,null,null,null,null,null,null,null,null,null,null,null,null,null,null,null,null,null,null,null,null,null,null,null,null,null,null,null,null,null,null,null,null,null,null,null,null,null,null,null,null,{"$f":"SUM($F17:$BA17)/2-0.5","v":-0.5},{"$f":"IF(BI17<0,0,BI17)","v":0},null,{"$error":"#N/A"},{"$error":"#N/A"}]
[null,null,null,null,"ChMa",null,null,null,null,null,null,null,null,null,null,null,null,null,null,null,null,null,null,null,null,null,null,null,null,null,null,null,null,null,null,null,null,null,null,null,null,null,null,null,null,null,null,null,null,null,null,null,null,null,null,null,null,null,null,null,null,{"$f":"SUM($F18:$BA18)/2-0.5","v":-0.5},{"$f":"IF(BJ18<0,0,BJ18)","v":0},{"$error":"#N/A"},{"$error":"#N/A"}]
[null,null,{"$f":"C8+1","v":"2020-01-02"},{"$f":"C19","v":"2020-01-02"},"MA",1.24999999999997,"06:30:00","07:00:00","07:30:00","08:00:00","08:30:00","09:00:00","09:30:00","10:00:00","10:30:00","11:00:00","11:30:00","12:00:00","12:30:00","13:00:00","13:30:00","14:00:00","14:30:00","15:00:00","15:30:00","16:00:00","16:30:00","17:00:00","17:30:00","18:00:00","18:30:00","19:00:00","19:30:00","20:00:00","20:30:00","21:00:00","21:30:00","22:00:00","22:30:00","23:00:00","23:30:00",1,1.0208333333333299,1.0416666666666701,1.0625,1.0833333333333299,1.1041666666666701,1.12499999999999,1.1458333333333199,1.1666666666666501,1.18749999999998,1.2083333333333099,1.2291666666666401]
[null,null,null,null,"OlKa",null,null,null,null,null,null,null,null,null,null,null,null,null,null,null,null,null,null,null,null,null,null,null,null,null,null,null,null,null,null,null,null,null,null,null,null,null,null,null,null,null,null,null,null,null,null,null,null,null,null,null,null,null,null,null,null,null,null,{"$f":"INDEX($F$8:$BA$8,MATCH(\"?*\",INDEX(F20:BA20&\"\",),))","v":{"$error":"#N/A"}},{"$f":"LOOKUP(2,1/(F20:BA20<>\"\"),$F$8:$BA$8)","v":{"$error":"#N/A"}}]
[null,null,null,null,"JeWo",null,null,null,null,null,null,null,null,null,null,null,null,null,null,null,null,null,null,null,null,null,null,null,null,null,null,null,null,null,null,null,null,null,null,null,null,null,null,null,null,null,null,null,null,null,null,null,null,{"$f":"SUM($F21:$BA21)/2-0.5","v":-0.5},{"$f":"IF(BB21<0,0,BB21)","v":0},null,null,null,null,null,null,null,null,{"$error":"#N/A"},{"$error":"#N/A"}]
[null,null,null,null,"ChEm",null,null,null,null,null,null,null,null,null,null,null,null,null,null,null,null,null,null,null,null,null,null,null,null,null,null,null,null,null,null,null,null,null,null,null,null,null,null,null,null,null,null,null,null,null,null,null,null,null,{"$f":"SUM($F22:$BA22)/2-0.5","v":-0.5},{"$f":"IF(BC22<0,0,BC22)","v":0},null,null,null,null,null,null,null,{"$error":"#N/A"},{"$error":"#N/A"}]
[null,null,null,null,"MeNo",null,null,null,null,null,null,null,null,null,null,null,null,null,null,null,null,null,null,null,null,null,null,null,null,null,null,null,null,null,null,null,null,null,null,null,null,null,null,null,null,null,null,null,null,null,null,null,null,null,null,{"$f":"SUM($F23:$BA23)/2-0.5","v":-0.5},{"$f":"IF(BD23<0,0,BD23)","v":0},null,null,null,null,null,null,{"$error":"#N/A"},{"$error":"#N/A"}]
[null,null,null,null,"JuGr",null,null,null,null,null,null,null,null,null,null,null,null,null,null,null,null,null,null,null,null,null,null,null,null,null,null,null,null,null,null,null,null,null,null,null,null,null,null,null,null,null,null,null,null,null,null,null,null,null,null,null,{"$f":"SUM($F24:$BA24)/2-0.5","v":-0.5},{"$f":"IF(BE24<0,0,BE24)","v":0},null,null,null,null,null,{"$error":"#N/A"},{"$error":"#N/A"}]
[null,null,null,null,"NiCh",null,null,null,null,null,null,null,null,null,null,null,null,null,null,null,null,null,null,null,null,null,null,null,null,null,null,null,null,null,null,null,null,null,null,null,null,null,null,null,null,null,null,null,null,null,null,null,null,null,null,null,null,{"$f":"SUM($F25:$BA25)/2-0.5","v":-0.5},{"$f":"IF(BF25<0,0,BF25)","v":0},null,null,null,null,{"$error":"#N/A"},{"$error":"#N/A"}]
[null,null,null,null,"MA1",null,null,null,null,null,null,null,null,null,null,null,null,null,null,null,null,null,null,null,null,null,null,null,null,null,null,null,null,null,null,null,null,null,null,null,null,null,null,null,null,null,null,null,null,null,null,null,null,null,null,null,null,null,{"$f":"SUM($F26:$BA26)/2-0.5","v":-0.5},{"$f":"IF(BG26<0,0,BG26)","v":0},null,null,null,{"$error":"#N/A"},{"$error":"#N/A"}]
[null,null,null,null,"MA2",null,null,null,null,null,null,null,null,null,null,null,null,null,null,null,null,null,null,null,null,null,null,null,null,null,null,null,null,null,null,null,null,null,null,null,null,null,null,null,null,null,null,null,null,null,null,null,null,null,null,null,null,null,null,{"$f":"SUM($F27:$BA27)/2-0.5","v":-0.5},{"$f":"IF(BH27<0,0,BH27)","v":0},null,null,{"$error":"#N/A"},{"$error":"#N/A"}]
[null,null,null,null,"MA3",null,null,null,null,null,null,null,null,null,null,null,null,null,null,null,null,null,null,null,null,null,null,null,null,null,null,null,null,null,null,null,null,null,null,null,null,null,null,null,null,null,null,null,null,null,null,null,null,null,null,null,null,null,null,null,{"$f":"SUM($F28:$BA28)/2-0.5","v":-0.5},{"$f":"IF(BI28<0,0,BI28)","v":0},null,{"$error":"#N/A"},{"$error":"#N/A"}]
[null,null,null,null,"ChMa",null,null,null,null,null,null,null,null,null,null,null,null,null,null,null,null,null,null,null,null,null,null,null,null,null,null,null,null,null,null,null,null,null,null,null,null,null,null,null,null,null,null,null,null,null,null,null,null,null,null,null,null,null,null,null,null,{"$f":"SUM($F29:$BA29)/2-0.5","v":-0.5},{"$f":"IF(BJ29<0,0,BJ29)","v":0},{"$error":"#N/A"},{"$error":"#N/A"}]
[null,null,{"$f":"C19+1","v":"2020-01-03"},{"$f":"C30","v":"2020-01-03"},"MA",1.24999999999997,"06:30:00","07:00:00","07:30:00","08:00:00","08:30:00","09:00:00","09:30:00","10:00:00","10:30:00","11:00:00","11:30:00","12:00:00","12:30:00","13:00:00","13:30:00","14:00:00","14:30:00","15:00:00","15:30:00","16:00:00","16:30:00","17:00:00","17:30:00","18:00:00","18:30:00","19:00:00","19:30:00","20:00:00","20:30:00","21:00:00","21:30:00","22:00:00","22:30:00","23:00:00","23:30:00",1,1.0208333333333299,1.0416666666666701,1.0625,1.0833333333333299,1.1041666666666701,1.12499999999999,1.1458333333333199,1.1666666666666501,1.18749999999998,1.2083333333333099,1.2291666666666401]
[null,null,null,null,"OlKa",null,null,null,null,null,null,null,null,null,null,null,null,null,null,null,null,null,null,null,null,null,null,null,null,null,null,null,null,null,null,null,null,null,null,null,null,null,null,null,null,null,null,null,null,null,null,null,null,null,null,null,null,null,null,null,null,null,null,{"$error":"#N/A"},{"$error":"#N/A"}]
[null,null,null,null,"JeWo",null,null,null,null,null,null,null,null,null,null,null,null,null,null,null,null,null,null,null,null,null,null,null,null,null,null,null,null,null,null,null,null,null,null,null,null,null,null,null,null,null,null,null,null,null,null,null,null,{"$f":"SUM($F32:$BA32)/2-0.5","v":-0.5},{"$f":"IF(BB32<0,0,BB32)","v":0},null,null,null,null,null,null,null,null,{"$error":"#N/A"},{"$error":"#N/A"}]
[null,null,null,null,"ChEm",null,null,null,null,null,null,null,null,null,null,null,null,null,null,null,null,null,null,null,null,null,null,null,null,null,null,null,null,null,null,null,null,null,null,null,null,null,null,null,null,null,null,null,null,null,null,null,null,null,{"$f":"SUM($F33:$BA33)/2-0.5","v":-0.5},{"$f":"IF(BC33<0,0,BC33)","v":0},null,null,null,null,null,null,null,{"$error":"#N/A"},{"$error":"#N/A"}]
[null,null,null,null,"MeNo",null,null,null,null,null,null,null,null,null,null,null,null,null,null,null,null,null,null,null,null,null,null,null,null,null,null,null,null,null,null,null,null,null,null,null,null,null,null,null,null,null,null,null,null,null,null,null,null,null,null,{"$f":"SUM($F34:$BA34)/2-0.5","v":-0.5},{"$f":"IF(BD34<0,0,BD34)","v":0},null,null,null,null,null,null,{"$error":"#N/A"},{"$error":"#N/A"}]
[null,null,null,null,"JuGr",null,null,null,null,null,null,null,null,null,null,null,null,null,null,null,null,null,null,null,null,null,null,null,null,null,null,null,null,null,null,null,null,null,null,null,null,null,null,null,null,null,null,null,null,null,null,null,null,null,null,null,{"$f":"SUM($F35:$BA35)/2-0.5","v":-0.5},{"$f":"IF(BE35<0,0,BE35)","v":0},null,null,null,null,null,{"$error":"#N/A"},{"$error":"#N/A"}]
[null,null,null,null,"NiCh",null,null,null,null,null,null,null,null,null,null,null,null,null,null,null,null,null,null,null,null,null,null,null,null,null,null,null,null,null,null,null,null,null,null,null,null,null,null,null,null,null,null,null,null,null,null,null,null,null,null,null,null,{"$f":"SUM($F36:$BA36)/2-0.5","v":-0.5},{"$f":"IF(BF36<0,0,BF36)","v":0},null,null,null,null,{"$error":"#N/A"},{"$error":"#N/A"}]
[null,null,null,null,"MA1",null,null,null,null,null,null,null,null,null,null,null,null,null,null,null,null,null,null,null,null,null,null,null,null,null,null,null,null,null,null,null,null,null,null,null,null,null,null,null,null,null,null,null,null,null,null,null,null,null,null,null,null,null,{"$f":"SUM($F37:$BA37)/2-0.5","v":-0.5},{"$f":"IF(BG37<0,0,BG37)","v":0},null,null,null,{"$error":"#N/A"},{"$error":"#N/A"}]
[null,null,null,null,"MA2",null,null,null,null,null,null,null,null,null,null,null,null,null,null,null,null,null,null,null,null,null,null,null,null,null,null,null,null,null,null,null,null,null,null,null,null,null,null,null,null,null,null,null,null,null,null,null,null,null,null,null,null,null,null,{"$f":"SUM($F38:$BA38)/2-0.5","v":-0.5},{"$f":"IF(BH38<0,0,BH38)","v":0},null,null,{"$error":"#N/A"},{"$error":"#N/A"}]
[null,null,null,null,"MA3",null,null,null,null,null,null,null,null,null,null,null,null,null,null,null,null,null,null,null,null,null,null,null,null,null,null,null,null,null,null,null,null,null,null,null,null,null,null,null,null,null,null,null,null,null,null,null,null,null,null,null,null,null,null,null,{"$f":"SUM($F39:$BA39)/2-0.5","v":-0.5},{"$f":"IF(BI39<0,0,BI39)","v":0},null,{"$error":"#N/A"},{"$error":"#N/A"}]
[null,null,null,null,"ChMa",null,null,null,null,null,null,null,null,null,null,null,null,null,null,null,null,null,null,null,null,null,null,null,null,null,null,null,null,null,null,null,null,null,null,null,null,null,null,null,null,null,null,null,null,null,null,null,null,null,null,null,null,null,null,null,null,{"$f":"SUM($F40:$BA40)/2-0.5","v":-0.5},{"$f":"IF(BJ40<0,0,BJ40)","v":0},{"$error":"#N/A"},{"$error":"#N/A"}]
[null,null,{"$f":"C30+1","v":"2020-01-04"},{"$f":"C41","v":"2020-01-04"},"MA",1.24999999999997,"06:30:00","07:00:00","07:30:00","08:00:00","08:30:00","09:00:00","09:30:00","10:00:00","10:30:00","11:00:00","11:30:00","12:00:00","12:30:00","13:00:00","13:30:00","14:00:00","14:30:00","15:00:00","15:30:00","16:00:00","16:30:00","17:00:00","17:30:00","18:00:00","18:30:00","19:00:00","19:30:00","20:00:00","20:30:00","21:00:00","21:30:00","22:00:00","22:30:00","23:00:00","23:30:00",1,1.0208333333333299,1.0416666666666701,1.0625,1.0833333333333299,1.1041666666666701,1.12499999999999,1.1458333333333199,1.1666666666666501,1.18749999999998,1.2083333333333099,1.2291666666666401]
[null,null,null,null,"OlKa",null,null,null,null,null,null,null,null,null,null,null,null,null,null,null,null,null,null,null,null,null,null,null,null,null,null,null,null,null,null,null,null,null,null,null,null,null,null,null,null,null,null,null,null,null,null,null,null,null,null,null,null,null,null,null,null,null,null,{"$error":"#N/A"},{"$error":"#N/A"}]
[null,null,null,null,"JeWo",null,null,null,null,null,null,null,null,null,null,null,null,null,null,null,null,null,null,null,null,null,null,null,null,null,null,null,null,null,null,null,null,null,null,null,null,null,null,null,null,null,null,null,null,null,null,null,null,{"$f":"SUM($F43:$BA43)/2-0.5","v":-0.5},{"$f":"IF(BB43<0,0,BB43)","v":0},null,null,null,null,null,null,null,null,{"$error":"#N/A"},{"$error":"#N/A"}]
[null,null,null,null,"ChEm",null,null,null,null,null,null,null,null,null,null,null,null,null,null,null,null,null,null,null,null,null,null,null,null,null,null,null,null,null,null,null,null,null,null,null,null,null,null,null,null,null,null,null,null,null,null,null,null,null,{"$f":"SUM($F44:$BA44)/2-0.5","v":-0.5},{"$f":"IF(BC44<0,0,BC44)","v":0},null,null,null,null,null,null,null,{"$error":"#N/A"},{"$error":"#N/A"}]
[null,null,null,null,"MeNo",null,null,null,null,null,null,null,null,null,null,null,null,null,null,null,null,null,null,null,null,null,null,null,null,null,null,null,null,null,null,null,null,null,null,null,null,null,null,null,null,null,null,null,null,null,null,null,null,null,null,{"$f":"SUM($F45:$BA45)/2-0.5","v":-0.5},{"$f":"IF(BD45<0,0,BD45)","v":0},null,null,null,null,null,null,{"$error":"#N/A"},{"$error":"#N/A"}]
[null,null,null,null,"JuGr",null,null,null,null,null,null,null,null,null,null,null,null,null,null,null,null,null,null,null,null,null,null,null,null,null,null,null,null,null,null,null,null,null,null,null,null,null,null,null,null,null,null,null,null,null,null,null,null,null,null,null,{"$f":"SUM($F46:$BA46)/2-0.5","v":-0.5},{"$f":"IF(BE46<0,0,BE46)","v":0},null,null,null,null,null,{"$error":"#N/A"},{"$error":"#N/A"}]
[null,null,null,null,"NiCh",null,null,null,null,null,null,null,null,null,null,null,null,null,null,null,null,null,null,null,null,null,null,null,null,null,null,null,null,null,null,null,null,null,null,null,null,null,null,null,null,null,null,null,null,null,null,null,null,null,null,null,null,{"$f":"SUM($F47:$BA47)/2-0.5","v":-0.5},{"$f":"IF(BF47<0,0,BF47)","v":0},null,null,null,null,{"$error":"#N/A"},{"$error":"#N/A"}]
[null,null,null,null,"MA1",null,null,null,null,null,null,null,null,null,null,null,null,null,null,null,null,null,null,null,null,null,null,null,null,null,null,null,null,null,null,null,null,null,null,null,null,null,null,null,null,null,null,null,null,null,null,null,null,null,null,null,null,null,{"$f":"SUM($F48:$BA48)/2-0.5","v":-0.5},{"$f":"IF(BG48<0,0,BG48)","v":0},null,null,null,{"$error":"#N/A"},{"$error":"#N/A"}]
[null,null,null,null,"MA2",null,null,null,null,null,null,null,null,null,null,null,null,null,null,null,null,null,null,null,null,null,null,null,null,null,null,null,null,null,null,null,null,null,null,null,null,null,null,null,null,null,null,null,null,null,null,null,null,null,null,null,null,null,null,{"$f":"SUM($F49:$BA49)/2-0.5","v":-0.5},{"$f":"IF(BH49<0,0,BH49)","v":0},null,null,{"$error":"#N/A"},{"$error":"#N/A"}]
[null,null,null,null,"MA3",null,null,null,null,null,null,null,null,null,null,null,null,null,null,null,null,null,null,null,null,null,null,null,null,null,null,null,null,null,null,null,null,null,null,null,null,null,null,null,null,null,null,null,null,null,null,null,null,null,null,null,null,null,null,null,{"$f":"SUM($F50:$BA50)/2-0.5","v":-0.5},{"$f":"IF(BI50<0,0,BI50)","v":0},null,{"$error":"#N/A"},{"$error":"#N/A"}]
[null,null,null,null,"ChMa",null,null,null,null,null,null,null,null,null,null,null,null,null,null,null,null,null,null,null,null,null,null,null,null,null,null,null,null,null,null,null,null,null,null,null,null,null,null,null,null,null,null,null,null,null,null,null,null,null,null,null,null,null,null,null,null,{"$f":"SUM($F51:$BA51)/2-0.5","v":-0.5},{"$f":"IF(BJ51<0,0,BJ51)","v":0},{"$error":"#N/A"},{"$error":"#N/A"}]
[null,null,{"$f":"C41+1","v":"2020-01-05"},{"$f":"C52","v":"2020-01-05"},"MA",1.24999999999997,"06:30:00","07:00:00","07:30:00","08:00:00","08:30:00","09:00:00","09:30:00","10:00:00","10:30:00","11:00:00","11:30:00","12:00:00","12:30:00","13:00:00","13:30:00","14:00:00","14:30:00","15:00:00","15:30:00","16:00:00","16:30:00","17:00:00","17:30:00","18:00:00","18:30:00","19:00:00","19:30:00","20:00:00","20:30:00","21:00:00","21:30:00","22:00:00","22:30:00","23:00:00","23:30:00",1,1.0208333333333299,1.0416666666666701,1.0625,1.0833333333333299,1.1041666666666701,1.12499999999999,1.1458333333333199,1.1666666666666501,1.18749999999998,1.2083333333333099,1.2291666666666401]
[null,null,null,null,"OlKa",null,null,null,null,null,null,null,null,null,null,null,null,null,null,null,null,null,null,null,null,null,null,null,null,null,null,null,null,null,null,null,null,null,null,null,null,null,null,null,null,null,null,null,null,null,null,null,null,null,null,null,null,null,null,null,null,null,null,{"$error":"#N/A"},{"$error":"#N/A"}]
[null,null,null,null,"JeWo",null,null,null,null,null,null,null,null,null,null,null,null,null,null,null,null,null,null,null,null,null,null,null,null,null,null,null,null,null,null,null,null,null,null,null,null,null,null,null,null,null,null,null,null,null,null,null,null,{"$f":"SUM($F54:$BA54)/2-0.5","v":-0.5},{"$f":"IF(BB54<0,0,BB54)","v":0},null,null,null,null,null,null,null,null,{"$error":"#N/A"},{"$error":"#N/A"}]
[null,null,null,null,"ChEm",null,null,null,null,null,null,null,null,null,null,null,null,null,null,null,null,null,null,null,null,null,null,null,null,null,null,null,null,null,null,null,null,null,null,null,null,null,null,null,null,null,null,null,null,null,null,null,null,null,{"$f":"SUM($F55:$BA55)/2-0.5","v":-0.5},{"$f":"IF(BC55<0,0,BC55)","v":0},null,null,null,null,null,null,null,{"$error":"#N/A"},{"$error":"#N/A"}]
[null,null,null,null,"MeNo",null,null,null,null,null,null,null,null,null,null,null,null,null,null,null,null,null,null,null,null,null,null,null,null,null,null,null,null,null,null,null,null,null,null,null,null,null,null,null,null,null,null,null,null,null,null,null,null,null,null,{"$f":"SUM($F56:$BA56)/2-0.5","v":-0.5},{"$f":"IF(BD56<0,0,BD56)","v":0},null,null,null,null,null,null,{"$error":"#N/A"},{"$error":"#N/A"}]
[null,null,null,null,"JuGr",null,null,null,null,null,null,null,null,null,null,null,null,null,null,null,null,null,null,null,null,null,null,null,null,null,null,null,null,null,null,null,null,null,null,null,null,null,null,null,null,null,null,null,null,null,null,null,null,null,null,null,{"$f":"SUM($F57:$BA57)/2-0.5","v":-0.5},{"$f":"IF(BE57<0,0,BE57)","v":0},null,null,null,null,null,{"$error":"#N/A"},{"$error":"#N/A"}]
[null,null,null,null,"NiCh",null,null,null,null,null,null,null,null,null,null,null,null,null,null,null,null,null,null,null,null,null,null,null,null,null,null,null,null,null,null,null,null,null,null,null,null,null,null,null,null,null,null,null,null,null,null,null,null,null,null,null,null,{"$f":"SUM($F58:$BA58)/2-0.5","v":-0.5},{"$f":"IF(BF58<0,0,BF58)","v":0},null,null,null,null,{"$error":"#N/A"},{"$error":"#N/A"}]
[null,null,null,null,"MA1",null,null,null,null,null,null,null,null,null,null,null,null,null,null,null,null,null,null,null,null,null,null,null,null,null,null,null,null,null,null,null,null,null,null,null,null,null,null,null,null,null,null,null,null,null,null,null,null,null,null,null,null,null,{"$f":"SUM($F59:$BA59)/2-0.5","v":-0.5},{"$f":"IF(BG59<0,0,BG59)","v":0},null,null,null,{"$error":"#N/A"},{"$error":"#N/A"}]
[null,null,null,null,"MA2",null,null,null,null,null,null,null,null,null,null,null,null,null,null,null,null,null,null,null,null,null,null,null,null,null,null,null,null,null,null,null,null,null,null,null,null,null,null,null,null,null,null,null,null,null,null,null,null,null,null,null,null,null,null,{"$f":"SUM($F60:$BA60)/2-0.5","v":-0.5},{"$f":"IF(BH60<0,0,BH60)","v":0},null,null,{"$error":"#N/A"},{"$error":"#N/A"}]
[null,null,null,null,"MA3",null,null,null,null,null,null,null,null,null,null,null,null,null,null,null,null,null,null,null,null,null,null,null,null,null,null,null,null,null,null,null,null,null,null,null,null,null,null,null,null,null,null,null,null,null,null,null,null,null,null,null,null,null,null,null,{"$f":"SUM($F61:$BA61)/2-0.5","v":-0.5},{"$f":"IF(BI61<0,0,BI61)","v":0},null,{"$error":"#N/A"},{"$error":"#N/A"}]
[null,null,null,null,"ChMa",null,null,null,null,null,null,null,null,null,null,null,null,null,null,null,null,null,null,null,null,null,null,null,null,null,null,null,null,null,null,null,null,null,null,null,null,null,null,null,null,null,null,null,null,null,null,null,null,null,null,null,null,null,null,null,null,{"$f":"SUM($F62:$BA62)/2-0.5","v":-0.5},{"$f":"IF(BJ62<0,0,BJ62)","v":0},{"$error":"#N/A"},{"$error":"#N/A"}]
[null,null,{"$f":"C52+1","v":"2020-01-06"},{"$f":"C63","v":"2020-01-06"},"MA",1.24999999999997,"06:30:00","07:00:00","07:30:00","08:00:00","08:30:00","09:00:00","09:30:00","10:00:00","10:30:00","11:00:00","11:30:00","12:00:00","12:30:00","13:00:00","13:30:00","14:00:00","14:30:00","15:00:00","15:30:00","16:00:00","16:30:00","17:00:00","17:30:00","18:00:00","18:30:00","19:00:00","19:30:00","20:00:00","20:30:00","21:00:00","21:30:00","22:00:00","22:30:00","23:00:00","23:30:00",1,1.0208333333333299,1.0416666666666701,1.0625,1.0833333333333299,1.1041666666666701,1.12499999999999,1.1458333333333199,1.1666666666666501,1.18749999999998,1.2083333333333099,1.2291666666666401]
[null,null,null,null,"OlKa",null,null,null,null,null,null,null,null,null,null,null,null,null,null,null,null,null,null,null,null,null,null,null,null,null,null,null,null,null,null,null,null,null,null,null,null,null,null,null,null,null,null,null,null,null,null,null,null,null,null,null,null,null,null,null,null,null,null,{"$error":"#N/A"},{"$error":"#N/A"}]
[null,null,null,null,"JeWo",null,null,null,null,null,null,null,null,null,null,null,null,null,null,null,null,null,null,null,null,null,null,null,null,null,null,null,null,null,null,null,null,null,null,null,null,null,null,null,null,null,null,null,null,null,null,null,null,{"$f":"SUM($F65:$BA65)/2-0.5","v":-0.5},{"$f":"IF(BB65<0,0,BB65)","v":0},null,null,null,null,null,null,null,null,{"$error":"#N/A"},{"$error":"#N/A"}]
[null,null,null,null,"ChEm",null,null,null,null,null,null,null,null,null,null,null,null,null,null,null,null,null,null,null,null,null,null,null,null,null,null,null,null,null,null,null,null,null,null,null,null,null,null,null,null,null,null,null,null,null,null,null,null,null,{"$f":"SUM($F66:$BA66)/2-0.5","v":-0.5},{"$f":"IF(BC66<0,0,BC66)","v":0},null,null,null,null,null,null,null,{"$error":"#N/A"},{"$error":"#N/A"}]
[null,null,null,null,"MeNo",null,null,null,null,null,null,null,null,null,null,null,null,null,null,null,null,null,null,null,null,null,null,null,null,null,null,null,null,null,null,null,null,null,null,null,null,null,null,null,null,null,null,null,null,null,null,null,null,null,null,{"$f":"SUM($F67:$BA67)/2-0.5","v":-0.5},{"$f":"IF(BD67<0,0,BD67)","v":0},null,null,null,null,null,null,{"$error":"#N/A"},{"$error":"#N/A"}]
[null,null,null,null,"JuGr",null,null,null,null,null,null,null,null,null,null,null,null,null,null,null,null,null,null,null,null,null,null,null,null,null,null,null,null,null,null,null,null,null,null,null,null,null,null,null,null,null,null,null,null,null,null,null,null,null,null,null,{"$f":"SUM($F68:$BA68)/2-0.5","v":-0.5},{"$f":"IF(BE68<0,0,BE68)","v":0},null,null,null,null,null,{"$error":"#N/A"},{"$error":"#N/A"}]
[null,null,null,null,"NiCh",null,null,null,null,null,null,null,null,null,null,null,null,null,null,null,null,null,null,null,null,null,null,null,null,null,null,null,null,null,null,null,null,null,null,null,null,null,null,null,null,null,null,null,null,null,null,null,null,null,null,null,null,{"$f":"SUM($F69:$BA69)/2-0.5","v":-0.5},{"$f":"IF(BF69<0,0,BF69)","v":0},null,null,null,null,{"$error":"#N/A"},{"$error":"#N/A"}]
[null,null,null,null,"MA1",null,null,null,null,null,null,null,null,null,null,null,null,null,null,null,null,null,null,null,null,null,null,null,null,null,null,null,null,null,null,null,null,null,null,null,null,null,null,null,null,null,null,null,null,null,null,null,null,null,null,null,null,null,{"$f":"SUM($F70:$BA70)/2-0.5","v":-0.5},{"$f":"IF(BG70<0,0,BG70)","v":0},null,null,null,{"$error":"#N/A"},{"$error":"#N/A"}]
[null,null,null,null,"MA2",null,null,null,null,null,null,null,null,null,null,null,null,null,null,null,null,null,null,null,null,null,null,null,null,null,null,null,null,null,null,null,null,null,null,null,null,null,null,null,null,null,null,null,null,null,null,null,null,null,null,null,null,null,null,{"$f":"SUM($F71:$BA71)/2-0.5","v":-0.5},{"$f":"IF(BH71<0,0,BH71)","v":0},null,null,{"$error":"#N/A"},{"$error":"#N/A"}]
[null,null,null,null,"MA3",null,null,null,null,null,null,null,null,null,null,null,null,null,null,null,null,null,null,null,null,null,null,null,null,null,null,null,null,null,null,null,null,null,null,null,null,null,null,null,null,null,null,null,null,null,null,null,null,null,null,null,null,null,null,null,{"$f":"SUM($F72:$BA72)/2-0.5","v":-0.5},{"$f":"IF(BI72<0,0,BI72)","v":0},null,{"$error":"#N/A"},{"$error":"#N/A"}]
[null,null,null,null,"ChMa",null,null,null,null,null,null,null,null,null,null,null,null,null,null,null,null,null,null,null,null,null,null,null,null,null,null,null,null,null,null,null,null,null,null,null,null,null,null,null,null,null,null,null,null,null,null,null,null,null,null,null,null,null,null,null,null,{"$f":"SUM($F73:$BA73)/2-0.5","v":-0.5},{"$f":"IF(BJ73<0,0,BJ73)","v":0},{"$error":"#N/A"},{"$error":"#N/A"}]
[null,null,{"$f":"C63+1","v":"2020-01-07"},{"$f":"C74","v":"2020-01-07"},"MA",1.24999999999997,"06:30:00","07:00:00","07:30:00","08:00:00","08:30:00","09:00:00","09:30:00","10:00:00","10:30:00","11:00:00","11:30:00","12:00:00","12:30:00","13:00:00","13:30:00","14:00:00","14:30:00","15:00:00","15:30:00","16:00:00","16:30:00","17:00:00","17:30:00","18:00:00","18:30:00","19:00:00","19:30:00","20:00:00","20:30:00","21:00:00","21:30:00","22:00:00","22:30:00","23:00:00","23:30:00",1,1.0208333333333299,1.0416666666666701,1.0625,1.0833333333333299,1.1041666666666701,1.12499999999999,1.1458333333333199,1.1666666666666501,1.18749999999998,1.2083333333333099,1.2291666666666401]
[null,null,null,null,"OlKa",null,null,null,null,null,null,null,null,null,null,null,null,null,null,null,null,null,null,null,null,null,null,null,null,null,null,null,null,null,null,null,null,null,null,null,null,null,null,null,null,null,null,null,null,null,null,null,null,null,null,null,null,null,null,null,null,null,null,{"$error":"#N/A"},{"$error":"#N/A"}]
[null,null,null,null,"JeWo",null,null,null,null,null,null,null,null,null,null,null,null,null,null,null,null,null,null,null,null,null,null,null,null,null,null,null,null,null,null,null,null,null,null,null,null,null,null,null,null,null,null,null,null,null,null,null,null,{"$f":"SUM($F76:$BA76)/2-0.5","v":-0.5},{"$f":"IF(BB76<0,0,BB76)","v":0},null,null,null,null,null,null,null,null,{"$error":"#N/A"},{"$error":"#N/A"}]
[null,null,null,null,"ChEm",null,null,null,null,null,null,null,null,null,null,null,null,null,null,null,null,null,null,null,null,null,null,null,null,null,null,null,null,null,null,null,null,null,null,null,null,null,null,null,null,null,null,null,null,null,null,null,null,null,{"$f":"SUM($F77:$BA77)/2-0.5","v":-0.5},{"$f":"IF(BC77<0,0,BC77)","v":0},null,null,null,null,null,null,null,{"$error":"#N/A"},{"$error":"#N/A"}]
[null,null,null,null,"MeNo",null,null,null,null,null,null,null,null,null,null,null,null,null,null,null,null,null,null,null,null,null,null,null,null,null,null,null,null,null,null,null,null,null,null,null,null,null,null,null,null,null,null,null,null,null,null,null,null,null,null,{"$f":"SUM($F78:$BA78)/2-0.5","v":-0.5},{"$f":"IF(BD78<0,0,BD78)","v":0},null,null,null,null,null,null,{"$error":"#N/A"},{"$error":"#N/A"}]
[null,null,null,null,"JuGr",null,null,null,null,null,null,null,null,null,null,null,null,null,null,null,null,null,null,null,null,null,null,null,null,null,null,null,null,null,null,null,null,null,null,null,null,null,null,null,null,null,null,null,null,null,null,null,null,null,null,null,{"$f":"SUM($F79:$BA79)/2-0.5","v":-0.5},{"$f":"IF(BE79<0,0,BE79)","v":0},null,null,null,null,null,{"$error":"#N/A"},{"$error":"#N/A"}]
[null,null,null,null,"NiCh",null,null,null,null,null,null,null,null,null,null,null,null,null,null,null,null,null,null,null,null,null,null,null,null,null,null,null,null,null,null,null,null,null,null,null,null,null,null,null,null,null,null,null,null,null,null,null,null,null,null,null,null,{"$f":"SUM($F80:$BA80)/2-0.5","v":-0.5},{"$f":"IF(BF80<0,0,BF80)","v":0},null,null,null,null,{"$error":"#N/A"},{"$error":"#N/A"}]
[null,null,null,null,"MA1",null,null,null,null,null,null,null,null,null,null,null,null,null,null,null,null,null,null,null,null,null,null,null,null,null,null,null,null,null,null,null,null,null,null,null,null,null,null,null,null,null,null,null,null,null,null,null,null,null,null,null,null,null,{"$f":"SUM($F81:$BA81)/2-0.5","v":-0.5},{"$f":"IF(BG81<0,0,BG81)","v":0},null,null,null,{"$error":"#N/A"},{"$error":"#N/A"}]
[null,null,null,null,"MA2",null,null,null,null,null,null,null,null,null,null,null,null,null,null,null,null,null,null,null,null,null,null,null,null,null,null,null,null,null,null,null,null,null,null,null,null,null,null,null,null,null,null,null,null,null,null,null,null,null,null,null,null,null,null,{"$f":"SUM($F82:$BA82)/2-0.5","v":-0.5},{"$f":"IF(BH82<0,0,BH82)","v":0},null,null,{"$error":"#N/A"},{"$error":"#N/A"}]
[null,null,null,null,"MA3",null,null,null,null,null,null,null,null,null,null,null,null,null,null,null,null,null,null,null,null,null,null,null,null,null,null,null,null,null,null,null,null,null,null,null,null,null,null,null,null,null,null,null,null,null,null,null,null,null,null,null,null,null,null,null,{"$f":"SUM($F83:$BA83)/2-0.5","v":-0.5},{"$f":"IF(BI83<0,0,BI83)","v":0},null,{"$error":"#N/A"},{"$error":"#N/A"}]
[null,null,null,null,"ChMa",null,null,null,null,null,null,null,null,null,null,null,null,null,null,null,null,null,null,null,null,null,null,null,null,null,null,null,null,null,null,null,null,null,null,null,null,null,null,null,null,null,null,null,null,null,null,null,null,null,null,null,null,null,null,null,null,{"$f":"SUM($F84:$BA84)/2-0.5","v":-0.5},{"$f":"IF(BJ84<0,0,BJ84)","v":0},{"$f":"INDEX($F$8:$BA$8,MATCH(\"?*\",INDEX(F84:BA84&\"\",),))","v":{"$error":"#N/A"}},{"$f":"LOOKUP(2,1/(F84:BA84<>\"\"),$F$8:$BA$8)","v":{"$error":"#N/A"}}]
[null,null,{"$f":"C74+1","v":"2020-01-08"},{"$f":"C85","v":"2020-01-08"},"MA",1.24999999999997,"06:30:00","07:00:00","07:30:00","08:00:00","08:30:00","09:00:00","09:30:00","10:00:00","10:30:00","11:00:00","11:30:00","12:00:00","12:30:00","13:00:00","13:30:00","14:00:00","14:30:00","15:00:00","15:30:00","16:00:00","16:30:00","17:00:00","17:30:00","18:00:00","18:30:00","19:00:00","19:30:00","20:00:00","20:30:00","21:00:00","21:30:00","22:00:00","22:30:00","23:00:00","23:30:00",1,1.0208333333333299,1.0416666666666701,1.0625,1.0833333333333299,1.1041666666666701,1.12499999999999,1.1458333333333199,1.1666666666666501,1.18749999999998,1.2083333333333099,1.2291666666666401]
[null,null,null,null,"OlKa",null,null,null,null,null,null,null,null,null,null,null,null,null,null,null,null,null,null,null,null,null,null,null,null,null,null,null,null,null,null,null,null,null,null,null,null,null,null,null,null,null,null,null,null,null,null,null,null,null,null,null,null,null,null,null,null,null,null,{"$error":"#N/A"},{"$error":"#N/A"}]
[null,null,null,null,"JeWo",null,null,null,null,null,null,null,null,null,null,null,null,null,null,null,null,null,null,null,null,null,null,null,null,null,null,null,null,null,null,null,null,null,null,null,null,null,null,null,null,null,null,null,null,null,null,null,null,{"$f":"SUM($F87:$BA87)/2-0.5","v":-0.5},{"$f":"IF(BB87<0,0,BB87)","v":0},null,null,null,null,null,null,null,null,{"$error":"#N/A"},{"$error":"#N/A"}]
[null,null,null,null,"ChEm",null,null,null,null,null,null,null,null,null,null,null,null,null,null,null,null,null,null,null,null,null,null,null,null,null,null,null,null,null,null,null,null,null,null,null,null,null,null,null,null,null,null,null,null,null,null,null,null,null,{"$f":"SUM($F88:$BA88)/2-0.5","v":-0.5},{"$f":"IF(BC88<0,0,BC88)","v":0},null,null,null,null,null,null,null,{"$error":"#N/A"},{"$error":"#N/A"}]
[null,null,null,null,"MeNo",null,null,null,null,null,null,null,null,null,null,null,null,null,null,null,null,null,null,null,null,null,null,null,null,null,null,null,null,null,null,null,null,null,null,null,null,null,null,null,null,null,null,null,null,null,null,null,null,null,null,{"$f":"SUM($F89:$BA89)/2-0.5","v":-0.5},{"$f":"IF(BD89<0,0,BD89)","v":0},null,null,null,null,null,null,{"$error":"#N/A"},{"$error":"#N/A"}]
[null,null,null,null,"JuGr",null,null,null,null,null,null,null,null,null,null,null,null,null,null,null,null,null,null,null,null,null,null,null,null,null,null,null,null,null,null,null,null,null,null,null,null,null,null,null,null,null,null,null,null,null,null,null,null,null,null,null,{"$f":"SUM($F90:$BA90)/2-0.5","v":-0.5},{"$f":"IF(BE90<0,0,BE90)","v":0},null,null,null,null,null,{"$error":"#N/A"},{"$error":"#N/A"}]
[null,null,null,null,"NiCh",null,null,null,null,null,null,null,null,null,null,null,null,null,null,null,null,null,null,null,null,null,null,null,null,null,null,null,null,null,null,null,null,null,null,null,null,null,null,null,null,null,null,null,null,null,null,null,null,null,null,null,null,{"$f":"SUM($F91:$BA91)/2-0.5","v":-0.5},{"$f":"IF(BF91<0,0,BF91)","v":0},null,null,null,null,{"$error":"#N/A"},{"$error":"#N/A"}]
[null,null,null,null,"MA1",null,null,null,null,null,null,null,null,null,null,null,null,null,null,null,null,null,null,null,null,null,null,null,null,null,null,null,null,null,null,null,null,null,null,null,null,null,null,null,null,null,null,null,null,null,null,null,null,null,null,null,null,null,{"$f":"SUM($F92:$BA92)/2-0.5","v":-0.5},{"$f":"IF(BG92<0,0,BG92)","v":0},null,null,null,{"$error":"#N/A"},{"$error":"#N/A"}]
[null,null,null,null,"MA2",null,null,null,null,null,null,null,null,null,null,null,null,null,null,null,null,null,null,null,null,null,null,null,null,null,null,null,null,null,null,null,null,null,null,null,null,null,null,null,null,null,null,null,null,null,null,null,null,null,null,null,null,null,null,{"$f":"SUM($F93:$BA93)/2-0.5","v":-0.5},{"$f":"IF(BH93<0,0,BH93)","v":0},null,null,{"$error":"#N/A"},{"$error":"#N/A"}]
[null,null,null,null,"MA3",null,null,null,null,null,null,null,null,null,null,null,null,null,null,null,null,null,null,null,null,null,null,null,null,null,null,null,null,null,null,null,null,null,null,null,null,null,null,null,null,null,null,null,null,null,null,null,null,null,null,null,null,null,null,null,{"$f":"SUM($F94:$BA94)/2-0.5","v":-0.5},{"$f":"IF(BI94<0,0,BI94)","v":0},null,{"$error":"#N/A"},{"$error":"#N/A"}]
[null,null,null,null,"ChMa",null,null,null,null,null,null,null,null,null,null,null,null,null,null,null,null,null,null,null,null,null,null,null,null,null,null,null,null,null,null,null,null,null,null,null,null,null,null,null,null,null,null,null,null,null,null,null,null,null,null,null,null,null,null,null,null,{"$f":"SUM($F95:$BA95)/2-0.5","v":-0.5},{"$f":"IF(BJ95<0,0,BJ95)","v":0},{"$error":"#N/A"},{"$error":"#N/A"}]
[null,null,{"$f":"C85+1","v":"2020-01-09"},{"$f":"C96","v":"2020-01-09"},"MA",1.24999999999997,"06:30:00","07:00:00","07:30:00","08:00:00","08:30:00","09:00:00","09:30:00","10:00:00","10:30:00","11:00:00","11:30:00","12:00:00","12:30:00","13:00:00","13:30:00","14:00:00","14:30:00","15:00:00","15:30:00","16:00:00","16:30:00","17:00:00","17:30:00","18:00:00","18:30:00","19:00:00","19:30:00","20:00:00","20:30:00","21:00:00","21:30:00","22:00:00","22:30:00","23:00:00","23:30:00",1,1.0208333333333299,1.0416666666666701,1.0625,1.0833333333333299,1.1041666666666701,1.12499999999999,1.1458333333333199,1.1666666666666501,1.18749999999998,1.2083333333333099,1.2291666666666401]
[null,null,null,null,"OlKa",null,null,null,null,null,null,null,null,null,null,null,null,null,null,null,null,null,null,null,null,null,null,null,null,null,null,null,null,null,null,null,null,null,null,null,null,null,null,null,null,null,null,null,null,null,null,null,null,null,null,null,null,null,null,null,null,null,null,{"$error":"#N/A"},{"$error":"#N/A"}]
[null,null,null,null,"JeWo",null,null,null,null,null,null,null,null,null,null,null,null,null,null,null,null,null,null,null,null,null,null,null,null,null,null,null,null,null,null,null,null,null,null,null,null,null,null,null,null,null,null,null,null,null,null,null,null,{"$f":"SUM($F98:$BA98)/2-0.5","v":-0.5},{"$f":"IF(BB98<0,0,BB98)","v":0},null,null,null,null,null,null,null,null,{"$error":"#N/A"},{"$error":"#N/A"}]
[null,null,null,null,"ChEm",null,null,null,null,null,null,null,null,null,null,null,null,null,null,null,null,null,null,null,null,null,null,null,null,null,null,null,null,null,null,null,null,null,null,null,null,null,null,null,null,null,null,null,null,null,null,null,null,null,{"$f":"SUM($F99:$BA99)/2-0.5","v":-0.5},{"$f":"IF(BC99<0,0,BC99)","v":0},null,null,null,null,null,null,null,{"$error":"#N/A"},{"$error":"#N/A"}]
[null,null,null,null,"MeNo",null,null,null,null,null,null,null,null,null,null,null,null,null,null,null,null,null,null,null,null,null,null,null,null,null,null,null,null,null,null,null,null,null,null,null,null,null,null,null,null,null,null,null,null,null,null,null,null,null,null,{"$f":"SUM($F100:$BA100)/2-0.5","v":-0.5},{"$f":"IF(BD100<0,0,BD100)","v":0},null,null,null,null,null,null,{"$error":"#N/A"},{"$error":"#N/A"}]
[null,null,null,null,"JuGr",null,null,null,null,null,null,null,null,null,null,null,null,null,null,null,null,null,null,null,null,null,null,null,null,null,null,null,null,null,null,null,null,null,null,null,null,null,null,null,null,null,null,null,null,null,null,null,null,null,null,null,{"$f":"SUM($F101:$BA101)/2-0.5","v":-0.5},{"$f":"IF(BE101<0,0,BE101)","v":0},null,null,null,null,null,{"$error":"#N/A"},{"$error":"#N/A"}]
[null,null,null,null,"NiCh",null,null,null,null,null,null,null,null,null,null,null,null,null,null,null,null,null,null,null,null,null,null,null,null,null,null,null,null,null,null,null,null,null,null,null,null,null,null,null,null,null,null,null,null,null,null,null,null,null,null,null,null,{"$f":"SUM($F102:$BA102)/2-0.5","v":-0.5},{"$f":"IF(BF102<0,0,BF102)","v":0},null,null,null,null,{"$error":"#N/A"},{"$error":"#N/A"}]
[null,null,null,null,"MA1",null,null,null,null,null,null,null,null,null,null,null,null,null,null,null,null,null,null,null,null,null,null,null,null,null,null,null,null,null,null,null,null,null,null,null,null,null,null,null,null,null,null,null,null,null,null,null,null,null,null,null,null,null,{"$f":"SUM($F103:$BA103)/2-0.5","v":-0.5},{"$f":"IF(BG103<0,0,BG103)","v":0},null,null,null,{"$error":"#N/A"},{"$error":"#N/A"}]
[null,null,null,null,"MA2",null,null,null,null,null,null,null,null,null,null,null,null,null,null,null,null,null,null,null,null,null,null,null,null,null,null,null,null,null,null,null,null,null,null,null,null,null,null,null,null,null,null,null,null,null,null,null,null,null,null,null,null,null,null,{"$f":"SUM($F104:$BA104)/2-0.5","v":-0.5},{"$f":"IF(BH104<0,0,BH104)","v":0},null,null,{"$error":"#N/A"},{"$error":"#N/A"}]
[null,null,null,null,"MA3",null,null,null,null,null,null,null,null,null,null,null,null,null,null,null,null,null,null,null,null,null,null,null,null,null,null,null,null,null,null,null,null,null,null,null,null,null,null,null,null,null,null,null,null,null,null,null,null,null,null,null,null,null,null,null,{"$f":"SUM($F105:$BA105)/2-0.5","v":-0.5},{"$f":"IF(BI105<0,0,BI105)","v":0},null,{"$error":"#N/A"},{"$error":"#N/A"}]
[null,null,null,null,"ChMa",null,null,null,null,null,null,null,null,null,null,null,null,null,null,null,null,null,null,null,null,null,null,null,null,null,null,null,null,null,null,null,null,null,null,null,null,null,null,null,null,null,null,null,null,null,null,null,null,null,null,null,null,null,null,null,null,{"$f":"SUM($F106:$BA106)/2-0.5","v":-0.5},{"$f":"IF(BJ106<0,0,BJ106)","v":0},{"$error":"#N/A"},{"$error":"#N/A"}]
[null,null,{"$f":"C96+1","v":"2020-01-10"},{"$f":"C107","v":"2020-01-10"},"MA",1.24999999999997,"06:30:00","07:00:00","07:30:00","08:00:00","08:30:00","09:00:00","09:30:00","10:00:00","10:30:00","11:00:00","11:30:00","12:00:00","12:30:00","13:00:00","13:30:00","14:00:00","14:30:00","15:00:00","15:30:00","16:00:00","16:30:00","17:00:00","17:30:00","18:00:00","18:30:00","19:00:00","19:30:00","20:00:00","20:30:00","21:00:00","21:30:00","22:00:00","22:30:00","23:00:00","23:30:00",1,1.0208333333333299,1.0416666666666701,1.0625,1.0833333333333299,1.1041666666666701,1.12499999999999,1.1458333333333199,1.1666666666666501,1.18749999999998,1.2083333333333099,1.2291666666666401]
[null,null,null,null,"OlKa",null,null,null,null,null,null,null,null,null,null,null,null,null,null,null,null,null,null,null,null,null,null,null,null,null,null,null,null,null,null,null,null,null,null,null,null,null,null,null,null,null,null,null,null,null,null,null,null,null,null,null,null,null,null,null,null,null,null,{"$error":"#N/A"},{"$error":"#N/A"}]
[null,null,null,null,"JeWo",null,null,null,null,null,null,null,null,null,null,null,null,null,null,null,null,null,null,null,null,null,null,null,null,null,null,null,null,null,null,null,null,null,null,null,null,null,null,null,null,null,null,null,null,null,null,null,null,{"$f":"SUM($F109:$BA109)/2-0.5","v":-0.5},{"$f":"IF(BB109<0,0,BB109)","v":0},null,null,null,null,null,null,null,null,{"$error":"#N/A"},{"$error":"#N/A"}]
[null,null,null,null,"ChEm",null,null,null,null,null,null,null,null,null,null,null,null,null,null,null,null,null,null,null,null,null,null,null,null,null,null,null,null,null,null,null,null,null,null,null,null,null,null,null,null,null,null,null,null,null,null,null,null,null,{"$f":"SUM($F110:$BA110)/2-0.5","v":-0.5},{"$f":"IF(BC110<0,0,BC110)","v":0},null,null,null,null,null,null,null,{"$error":"#N/A"},{"$error":"#N/A"}]
[null,null,null,null,"MeNo",null,null,null,null,null,null,null,null,null,null,null,null,null,null,null,null,null,null,null,null,null,null,null,null,null,null,null,null,null,null,null,null,null,null,null,null,null,null,null,null,null,null,null,null,null,null,null,null,null,null,{"$f":"SUM($F111:$BA111)/2-0.5","v":-0.5},{"$f":"IF(BD111<0,0,BD111)","v":0},null,null,null,null,null,null,{"$error":"#N/A"},{"$error":"#N/A"}]
[null,null,null,null,"JuGr",null,null,null,null,null,null,null,null,null,null,null,null,null,null,null,null,null,null,null,null,null,null,null,null,null,null,null,null,null,null,null,null,null,null,null,null,null,null,null,null,null,null,null,null,null,null,null,null,null,null,null,{"$f":"SUM($F112:$BA112)/2-0.5","v":-0.5},{"$f":"IF(BE112<0,0,BE112)","v":0},null,null,null,null,null,{"$error":"#N/A"},{"$error":"#N/A"}]
[null,null,null,null,"NiCh",null,null,null,null,null,null,null,null,null,null,null,null,null,null,null,null,null,null,null,null,null,null,null,null,null,null,null,null,null,null,null,null,null,null,null,null,null,null,null,null,null,null,null,null,null,null,null,null,null,null,null,null,{"$f":"SUM($F113:$BA113)/2-0.5","v":-0.5},{"$f":"IF(BF113<0,0,BF113)","v":0},null,null,null,null,{"$error":"#N/A"},{"$error":"#N/A"}]
[null,null,null,null,"MA1",null,null,null,null,null,null,null,null,null,null,null,null,null,null,null,null,null,null,null,null,null,null,null,null,null,null,null,null,null,null,null,null,null,null,null,null,null,null,null,null,null,null,null,null,null,null,null,null,null,null,null,null,null,{"$f":"SUM($F114:$BA114)/2-0.5","v":-0.5},{"$f":"IF(BG114<0,0,BG114)","v":0},null,null,null,{"$error":"#N/A"},{"$error":"#N/A"}]
[null,null,null,null,"MA2",null,null,null,null,null,null,null,null,null,null,null,null,null,null,null,null,null,null,null,null,null,null,null,null,null,null,null,null,null,null,null,null,null,null,null,null,null,null,null,null,null,null,null,null,null,null,null,null,null,null,null,null,null,null,{"$f":"SUM($F115:$BA115)/2-0.5","v":-0.5},{"$f":"IF(BH115<0,0,BH115)","v":0},null,null,{"$error":"#N/A"},{"$error":"#N/A"}]
[null,null,null,null,"MA3",null,null,null,null,null,null,null,null,null,null,null,null,null,null,null,null,null,null,null,null,null,null,null,null,null,null,null,null,null,null,null,null,null,null,null,null,null,null,null,null,null,null,null,null,null,null,null,null,null,null,null,null,null,null,null,{"$f":"SUM($F116:$BA116)/2-0.5","v":-0.5},{"$f":"IF(BI116<0,0,BI116)","v":0},null,{"$error":"#N/A"},{"$error":"#N/A"}]
[null,null,null,null,"ChMa",null,null,null,null,null,null,null,null,null,null,null,null,null,null,null,null,null,null,null,null,null,null,null,null,null,null,null,null,null,null,null,null,null,null,null,null,null,null,null,null,null,null,null,null,null,null,null,null,null,null,null,null,null,null,null,null,{"$f":"SUM($F117:$BA117)/2-0.5","v":-0.5},{"$f":"IF(BJ117<0,0,BJ117)","v":0},{"$error":"#N/A"},{"$error":"#N/A"}]
[null,null,{"$f":"C107+1","v":"2020-01-11"},{"$f":"C118","v":"2020-01-11"},"MA",1.24999999999997,"06:30:00","07:00:00","07:30:00","08:00:00","08:30:00","09:00:00","09:30:00","10:00:00","10:30:00","11:00:00","11:30:00","12:00:00","12:30:00","13:00:00","13:30:00","14:00:00","14:30:00","15:00:00","15:30:00","16:00:00","16:30:00","17:00:00","17:30:00","18:00:00","18:30:00","19:00:00","19:30:00","20:00:00","20:30:00","21:00:00","21:30:00","22:00:00","22:30:00","23:00:00","23:30:00",1,1.0208333333333299,1.0416666666666701,1.0625,1.0833333333333299,1.1041666666666701,1.12499999999999,1.1458333333333199,1.1666666666666501,1.18749999999998,1.2083333333333099,1.2291666666666401]
[null,null,null,null,"OlKa",null,null,null,null,null,null,null,null,null,null,null,null,null,null,null,null,null,null,null,null,null,null,null,null,null,null,null,null,null,null,null,null,null,null,null,null,null,null,null,null,null,null,null,null,null,null,null,null,null,null,null,null,null,null,null,null,null,null,{"$error":"#N/A"},{"$error":"#N/A"}]
[null,null,null,null,"JeWo",null,null,null,null,null,null,null,null,null,null,null,null,null,null,null,null,null,null,null,null,null,null,null,null,null,null,null,null,null,null,null,null,null,null,null,null,null,null,null,null,null,null,null,null,null,null,null,null,{"$f":"SUM($F120:$BA120)/2-0.5","v":-0.5},{"$f":"IF(BB120<0,0,BB120)","v":0},null,null,null,null,null,null,null,null,{"$error":"#N/A"},{"$error":"#N/A"}]
[null,null,null,null,"ChEm",null,null,null,null,null,null,null,null,null,null,null,null,null,null,null,null,null,null,null,null,null,null,null,null,null,null,null,null,null,null,null,null,null,null,null,null,null,null,null,null,null,null,null,null,null,null,null,null,null,{"$f":"SUM($F121:$BA121)/2-0.5","v":-0.5},{"$f":"IF(BC121<0,0,BC121)","v":0},null,null,null,null,null,null,null,{"$error":"#N/A"},{"$error":"#N/A"}]
[null,null,null,null,"MeNo",null,null,null,null,null,null,null,null,null,null,null,null,null,null,null,null,null,null,null,null,null,null,null,null,null,null,null,null,null,null,null,null,null,null,null,null,null,null,null,null,null,null,null,null,null,null,null,null,null,null,{"$f":"SUM($F122:$BA122)/2-0.5","v":-0.5},{"$f":"IF(BD122<0,0,BD122)","v":0},null,null,null,null,null,null,{"$error":"#N/A"},{"$error":"#N/A"}]
[null,null,null,null,"JuGr",null,null,null,null,null,null,null,null,null,null,null,null,null,null,null,null,null,null,null,null,null,null,null,null,null,null,null,null,null,null,null,null,null,null,null,null,null,null,null,null,null,null,null,null,null,null,null,null,null,null,null,{"$f":"SUM($F123:$BA123)/2-0.5","v":-0.5},{"$f":"IF(BE123<0,0,BE123)","v":0},null,null,null,null,null,{"$error":"#N/A"},{"$error":"#N/A"}]
[null,null,null,null,"NiCh",null,null,null,null,null,null,null,null,null,null,null,null,null,null,null,null,null,null,null,null,null,null,null,null,null,null,null,null,null,null,null,null,null,null,null,null,null,null,null,null,null,null,null,null,null,null,null,null,null,null,null,null,{"$f":"SUM($F124:$BA124)/2-0.5","v":-0.5},{"$f":"IF(BF124<0,0,BF124)","v":0},null,null,null,null,{"$error":"#N/A"},{"$error":"#N/A"}]
[null,null,null,null,"MA1",null,null,null,null,null,null,null,null,null,null,null,null,null,null,null,null,null,null,null,null,null,null,null,null,null,null,null,null,null,null,null,null,null,null,null,null,null,null,null,null,null,null,null,null,null,null,null,null,null,null,null,null,null,{"$f":"SUM($F125:$BA125)/2-0.5","v":-0.5},{"$f":"IF(BG125<0,0,BG125)","v":0},null,null,null,{"$error":"#N/A"},{"$error":"#N/A"}]
[null,null,null,null,"MA2",null,null,null,null,null,null,null,null,null,null,null,null,null,null,null,null,null,null,null,null,null,null,null,null,null,null,null,null,null,null,null,null,null,null,null,null,null,null,null,null,null,null,null,null,null,null,null,null,null,null,null,null,null,null,{"$f":"SUM($F126:$BA126)/2-0.5","v":-0.5},{"$f":"IF(BH126<0,0,BH126)","v":0},null,null,{"$error":"#N/A"},{"$error":"#N/A"}]
[null,null,null,null,"MA3",null,null,null,null,null,null,null,null,null,null,null,null,null,null,null,null,null,null,null,null,null,null,null,null,null,null,null,null,null,null,null,null,null,null,null,null,null,null,null,null,null,null,null,null,null,null,null,null,null,null,null,null,null,null,null,{"$f":"SUM($F127:$BA127)/2-0.5","v":-0.5},{"$f":"IF(BI127<0,0,BI127)","v":0},null,{"$error":"#N/A"},{"$error":"#N/A"}]
[null,null,null,null,"ChMa",null,null,null,null,null,null,null,null,null,null,null,null,null,null,null,null,null,null,null,null,null,null,null,null,null,null,null,null,null,null,null,null,null,null,null,null,null,null,null,null,null,null,null,null,null,null,null,null,null,null,null,null,null,null,null,null,{"$f":"SUM($F128:$BA128)/2-0.5","v":-0.5},{"$f":"IF(BJ128<0,0,BJ128)","v":0},{"$error":"#N/A"},{"$error":"#N/A"}]
[null,null,{"$f":"C118+1","v":"2020-01-12"},{"$f":"C129","v":"2020-01-12"},"MA",1.24999999999997,"06:30:00","07:00:00","07:30:00","08:00:00","08:30:00","09:00:00","09:30:00","10:00:00","10:30:00","11:00:00","11:30:00","12:00:00","12:30:00","13:00:00","13:30:00","14:00:00","14:30:00","15:00:00","15:30:00","16:00:00","16:30:00","17:00:00","17:30:00","18:00:00","18:30:00","19:00:00","19:30:00","20:00:00","20:30:00","21:00:00","21:30:00","22:00:00","22:30:00","23:00:00","23:30:00",1,1.0208333333333299,1.0416666666666701,1.0625,1.0833333333333299,1.1041666666666701,1.12499999999999,1.1458333333333199,1.1666666666666501,1.18749999999998,1.2083333333333099,1.2291666666666401]
[null,null,null,null,"OlKa",null,null,null,null,null,null,null,null,null,null,null,null,null,null,null,null,null,null,null,null,null,null,null,null,null,null,null,null,null,null,null,null,null,null,null,null,null,null,null,null,null,null,null,null,null,null,null,null,null,null,null,null,null,null,null,null,null,null,{"$error":"#N/A"},{"$error":"#N/A"}]
[null,null,null,null,"JeWo",null,null,null,null,null,null,null,null,null,null,null,null,null,null,null,null,null,null,null,null,null,null,null,null,null,null,null,null,null,null,null,null,null,null,null,null,null,null,null,null,null,null,null,null,null,null,null,null,{"$f":"SUM($F131:$BA131)/2-0.5","v":-0.5},{"$f":"IF(BB131<0,0,BB131)","v":0},null,null,null,null,null,null,null,null,{"$error":"#N/A"},{"$error":"#N/A"}]
[null,null,null,null,"ChEm",null,null,null,null,null,null,null,null,null,null,null,null,null,null,null,null,null,null,null,null,null,null,null,null,null,null,null,null,null,null,null,null,null,null,null,null,null,null,null,null,null,null,null,null,null,null,null,null,null,{"$f":"SUM($F132:$BA132)/2-0.5","v":-0.5},{"$f":"IF(BC132<0,0,BC132)","v":0},null,null,null,null,null,null,null,{"$error":"#N/A"},{"$error":"#N/A"}]
[null,null,null,null,"MeNo",null,null,null,null,null,null,null,null,null,null,null,null,null,null,null,null,null,null,null,null,null,null,null,null,null,null,null,null,null,null,null,null,null,null,null,null,null,null,null,null,null,null,null,null,null,null,null,null,null,null,{"$f":"SUM($F133:$BA133)/2-0.5","v":-0.5},{"$f":"IF(BD133<0,0,BD133)","v":0},null,null,null,null,null,null,{"$error":"#N/A"},{"$error":"#N/A"}]
[null,null,null,null,"JuGr",null,null,null,null,null,null,null,null,null,null,null,null,null,null,null,null,null,null,null,null,null,null,null,null,null,null,null,null,null,null,null,null,null,null,null,null,null,null,null,null,null,null,null,null,null,null,null,null,null,null,null,{"$f":"SUM($F134:$BA134)/2-0.5","v":-0.5},{"$f":"IF(BE134<0,0,BE134)","v":0},null,null,null,null,null,{"$error":"#N/A"},{"$error":"#N/A"}]
[null,null,null,null,"NiCh",null,null,null,null,null,null,null,null,null,null,null,null,null,null,null,null,null,null,null,null,null,null,null,null,null,null,null,null,null,null,null,null,null,null,null,null,null,null,null,null,null,null,null,null,null,null,null,null,null,null,null,null,{"$f":"SUM($F135:$BA135)/2-0.5","v":-0.5},{"$f":"IF(BF135<0,0,BF135)","v":0},null,null,null,null,{"$error":"#N/A"},{"$error":"#N/A"}]
[null,null,null,null,"MA1",null,null,null,null,null,null,null,null,null,null,null,null,null,null,null,null,null,null,null,null,null,null,null,null,null,null,null,null,null,null,null,null,null,null,null,null,null,null,null,null,null,null,null,null,null,null,null,null,null,null,null,null,null,{"$f":"SUM($F136:$BA136)/2-0.5","v":-0.5},{"$f":"IF(BG136<0,0,BG136)","v":0},null,null,null,{"$error":"#N/A"},{"$error":"#N/A"}]
[null,null,null,null,"MA2",null,null,null,null,null,null,null,null,null,null,null,null,null,null,null,null,null,null,null,null,null,null,null,null,null,null,null,null,null,null,null,null,null,null,null,null,null,null,null,null,null,null,null,null,null,null,null,null,null,null,null,null,null,null,{"$f":"SUM($F137:$BA137)/2-0.5","v":-0.5},{"$f":"IF(BH137<0,0,BH137)","v":0},null,null,{"$error":"#N/A"},{"$error":"#N/A"}]
[null,null,null,null,"MA3",null,null,null,null,null,null,null,null,null,null,null,null,null,null,null,null,null,null,null,null,null,null,null,null,null,null,null,null,null,null,null,null,null,null,null,null,null,null,null,null,null,null,null,null,null,null,null,null,null,null,null,null,null,null,null,{"$f":"SUM($F138:$BA138)/2-0.5","v":-0.5},{"$f":"IF(BI138<0,0,BI138)","v":0},null,{"$error":"#N/A"},{"$error":"#N/A"}]
[null,null,null,null,"ChMa",null,null,null,null,null,null,null,null,null,null,null,null,null,null,null,null,null,null,null,null,null,null,null,null,null,null,null,null,null,null,null,null,null,null,null,null,null,null,null,null,null,null,null,null,null,null,null,null,null,null,null,null,null,null,null,null,{"$f":"SUM($F139:$BA139)/2-0.5","v":-0.5},{"$f":"IF(BJ139<0,0,BJ139)","v":0},{"$error":"#N/A"},{"$error":"#N/A"}]
[null,null,{"$f":"C129+1","v":"2020-01-13"},{"$f":"C140","v":"2020-01-13"},"MA",1.24999999999997,"06:30:00","07:00:00","07:30:00","08:00:00","08:30:00","09:00:00","09:30:00","10:00:00","10:30:00","11:00:00","11:30:00","12:00:00","12:30:00","13:00:00","13:30:00","14:00:00","14:30:00","15:00:00","15:30:00","16:00:00","16:30:00","17:00:00","17:30:00","18:00:00","18:30:00","19:00:00","19:30:00","20:00:00","20:30:00","21:00:00","21:30:00","22:00:00","22:30:00","23:00:00","23:30:00",1,1.0208333333333299,1.0416666666666701,1.0625,1.0833333333333299,1.1041666666666701,1.12499999999999,1.1458333333333199,1.1666666666666501,1.18749999999998,1.2083333333333099,1.2291666666666401]
[null,null,null,null,"OlKa",null,null,null,null,null,null,null,null,null,null,null,null,null,null,null,null,null,null,null,null,null,null,null,null,null,null,null,null,null,null,null,null,null,null,null,null,null,null,null,null,null,null,null,null,null,null,null,null,null,null,null,null,null,null,null,null,null,null,{"$error":"#N/A"},{"$error":"#N/A"}]
[null,null,null,null,"JeWo",null,null,null,null,null,null,null,null,null,null,null,null,null,null,null,null,null,null,null,null,null,null,null,null,null,null,null,null,null,null,null,null,null,null,null,null,null,null,null,null,null,null,null,null,null,null,null,null,{"$f":"SUM($F142:$BA142)/2-0.5","v":-0.5},{"$f":"IF(BB142<0,0,BB142)","v":0},null,null,null,null,null,null,null,null,{"$error":"#N/A"},{"$error":"#N/A"}]
[null,null,null,null,"ChEm",null,null,null,null,null,null,null,null,null,null,null,null,null,null,null,null,null,null,null,null,null,null,null,null,null,null,null,null,null,null,null,null,null,null,null,null,null,null,null,null,null,null,null,null,null,null,null,null,null,{"$f":"SUM($F143:$BA143)/2-0.5","v":-0.5},{"$f":"IF(BC143<0,0,BC143)","v":0},null,null,null,null,null,null,null,{"$error":"#N/A"},{"$error":"#N/A"}]
[null,null,null,null,"MeNo",null,null,null,null,null,null,null,null,null,null,null,null,null,null,null,null,null,null,null,null,null,null,null,null,null,null,null,null,null,null,null,null,null,null,null,null,null,null,null,null,null,null,null,null,null,null,null,null,null,null,{"$f":"SUM($F144:$BA144)/2-0.5","v":-0.5},{"$f":"IF(BD144<0,0,BD144)","v":0},null,null,null,null,null,null,{"$error":"#N/A"},{"$error":"#N/A"}]
[null,null,null,null,"JuGr",null,null,null,null,null,null,null,null,null,null,null,null,null,null,null,null,null,null,null,null,null,null,null,null,null,null,null,null,null,null,null,null,null,null,null,null,null,null,null,null,null,null,null,null,null,null,null,null,null,null,null,{"$f":"SUM($F145:$BA145)/2-0.5","v":-0.5},{"$f":"IF(BE145<0,0,BE145)","v":0},null,null,null,null,null,{"$error":"#N/A"},{"$error":"#N/A"}]
[null,null,null,null,"NiCh",null,null,null,null,null,null,null,null,null,null,null,null,null,null,null,null,null,null,null,null,null,null,null,null,null,null,null,null,null,null,null,null,null,null,null,null,null,null,null,null,null,null,null,null,null,null,null,null,null,null,null,null,{"$f":"SUM($F146:$BA146)/2-0.5","v":-0.5},{"$f":"IF(BF146<0,0,BF146)","v":0},null,null,null,null,{"$error":"#N/A"},{"$error":"#N/A"}]
[null,null,null,null,"MA1",null,null,null,null,null,null,null,null,null,null,null,null,null,null,null,null,null,null,null,null,null,null,null,null,null,null,null,null,null,null,null,null,null,null,null,null,null,null,null,null,null,null,null,null,null,null,null,null,null,null,null,null,null,{"$f":"SUM($F147:$BA147)/2-0.5","v":-0.5},{"$f":"IF(BG147<0,0,BG147)","v":0},null,null,null,{"$error":"#N/A"},{"$error":"#N/A"}]
[null,null,null,null,"MA2",null,null,null,null,null,null,null,null,null,null,null,null,null,null,null,null,null,null,null,null,null,null,null,null,null,null,null,null,null,null,null,null,null,null,null,null,null,null,null,null,null,null,null,null,null,null,null,null,null,null,null,null,null,null,{"$f":"SUM($F148:$BA148)/2-0.5","v":-0.5},{"$f":"IF(BH148<0,0,BH148)","v":0},null,null,{"$f":"INDEX($F$8:$BA$8,MATCH(\"?*\",INDEX(F148:BA148&\"\",),))","v":{"$error":"#N/A"}},{"$f":"LOOKUP(2,1/(F148:BA148<>\"\"),$F$8:$BA$8)","v":{"$error":"#N/A"}}]
[null,null,null,null,"MA3",null,null,null,null,null,null,null,null,null,null,null,null,null,null,null,null,null,null,null,null,null,null,null,null,null,null,null,null,null,null,null,null,null,null,null,null,null,null,null,null,null,null,null,null,null,null,null,null,null,null,null,null,null,null,null,{"$f":"SUM($F149:$BA149)/2-0.5","v":-0.5},{"$f":"IF(BI149<0,0,BI149)","v":0},null,{"$error":"#N/A"},{"$error":"#N/A"}]
[null,null,null,null,"ChMa",null,null,null,null,null,null,null,null,null,null,null,null,null,null,null,null,null,null,null,null,null,null,null,null,null,null,null,null,null,null,null,null,null,null,null,null,null,null,null,null,null,null,null,null,null,null,null,null,null,null,null,null,null,null,null,null,{"$f":"SUM($F150:$BA150)/2-0.5","v":-0.5},{"$f":"IF(BJ150<0,0,BJ150)","v":0},{"$error":"#N/A"},{"$error":"#N/A"}]
[null,null,{"$f":"C140+1","v":"2020-01-14"},{"$f":"C151","v":"2020-01-14"},"MA",1.24999999999997,"06:30:00","07:00:00","07:30:00","08:00:00","08:30:00","09:00:00","09:30:00","10:00:00","10:30:00","11:00:00","11:30:00","12:00:00","12:30:00","13:00:00","13:30:00","14:00:00","14:30:00","15:00:00","15:30:00","16:00:00","16:30:00","17:00:00","17:30:00","18:00:00","18:30:00","19:00:00","19:30:00","20:00:00","20:30:00","21:00:00","21:30:00","22:00:00","22:30:00","23:00:00","23:30:00",1,1.0208333333333299,1.0416666666666701,1.0625,1.0833333333333299,1.1041666666666701,1.12499999999999,1.1458333333333199,1.1666666666666501,1.18749999999998,1.2083333333333099,1.2291666666666401]
[null,null,null,null,"OlKa",null,null,null,null,null,null,null,null,null,null,null,null,null,null,null,null,null,null,null,null,null,null,null,null,null,null,null,null,null,null,null,null,null,null,null,null,null,null,null,null,null,null,null,null,null,null,null,null,null,null,null,null,null,null,null,null,null,null,{"$error":"#N/A"},{"$error":"#N/A"}]
[null,null,null,null,"JeWo",null,null,null,null,null,null,null,null,null,null,null,null,null,null,null,null,null,null,null,null,null,null,null,null,null,null,null,null,null,null,null,null,null,null,null,null,null,null,null,null,null,null,null,null,null,null,null,null,{"$f":"SUM($F153:$BA153)/2-0.5","v":-0.5},{"$f":"IF(BB153<0,0,BB153)","v":0},null,null,null,null,null,null,null,null,{"$error":"#N/A"},{"$error":"#N/A"}]
[null,null,null,null,"ChEm",null,null,null,null,null,null,null,null,null,null,null,null,null,null,null,null,null,null,null,null,null,null,null,null,null,null,null,null,null,null,null,null,null,null,null,null,null,null,null,null,null,null,null,null,null,null,null,null,null,{"$f":"SUM($F154:$BA154)/2-0.5","v":-0.5},{"$f":"IF(BC154<0,0,BC154)","v":0},null,null,null,null,null,null,null,{"$error":"#N/A"},{"$error":"#N/A"}]
[null,null,null,null,"MeNo",null,null,null,null,null,null,null,null,null,null,null,null,null,null,null,null,null,null,null,null,null,null,null,null,null,null,null,null,null,null,null,null,null,null,null,null,null,null,null,null,null,null,null,null,null,null,null,null,null,null,{"$f":"SUM($F155:$BA155)/2-0.5","v":-0.5},{"$f":"IF(BD155<0,0,BD155)","v":0},null,null,null,null,null,null,{"$error":"#N/A"},{"$error":"#N/A"}]
[null,null,null,null,"JuGr",null,null,null,null,null,null,null,null,null,null,null,null,null,null,null,null,null,null,null,null,null,null,null,null,null,null,null,null,null,null,null,null,null,null,null,null,null,null,null,null,null,null,null,null,null,null,null,null,null,null,null,{"$f":"SUM($F156:$BA156)/2-0.5","v":-0.5},{"$f":"IF(BE156<0,0,BE156)","v":0},null,null,null,null,null,{"$error":"#N/A"},{"$error":"#N/A"}]
[null,null,null,null,"NiCh",null,null,null,null,null,null,null,null,null,null,null,null,null,null,null,null,null,null,null,null,null,null,null,null,null,null,null,null,null,null,null,null,null,null,null,null,null,null,null,null,null,null,null,null,null,null,null,null,null,null,null,null,{"$f":"SUM($F157:$BA157)/2-0.5","v":-0.5},{"$f":"IF(BF157<0,0,BF157)","v":0},null,null,null,null,{"$error":"#N/A"},{"$error":"#N/A"}]
[null,null,null,null,"MA1",null,null,null,null,null,null,null,null,null,null,null,null,null,null,null,null,null,null,null,null,null,null,null,null,null,null,null,null,null,null,null,null,null,null,null,null,null,null,null,null,null,null,null,null,null,null,null,null,null,null,null,null,null,{"$f":"SUM($F158:$BA158)/2-0.5","v":-0.5},{"$f":"IF(BG158<0,0,BG158)","v":0},null,null,null,{"$error":"#N/A"},{"$error":"#N/A"}]
[null,null,null,null,"MA2",null,null,null,null,null,null,null,null,null,null,null,null,null,null,null,null,null,null,null,null,null,null,null,null,null,null,null,null,null,null,null,null,null,null,null,null,null,null,null,null,null,null,null,null,null,null,null,null,null,null,null,null,null,null,{"$f":"SUM($F159:$BA159)/2-0.5","v":-0.5},{"$f":"IF(BH159<0,0,BH159)","v":0},null,null,{"$error":"#N/A"},{"$error":"#N/A"}]
[null,null,null,null,"MA3",null,null,null,null,null,null,null,null,null,null,null,null,null,null,null,null,null,null,null,null,null,null,null,null,null,null,null,null,null,null,null,null,null,null,null,null,null,null,null,null,null,null,null,null,null,null,null,null,null,null,null,null,null,null,null,{"$f":"SUM($F160:$BA160)/2-0.5","v":-0.5},{"$f":"IF(BI160<0,0,BI160)","v":0},null,{"$error":"#N/A"},{"$error":"#N/A"}]
[null,null,null,null,"ChMa",null,null,null,null,null,null,null,null,null,null,null,null,null,null,null,null,null,null,null,null,null,null,null,null,null,null,null,null,null,null,null,null,null,null,null,null,null,null,null,null,null,null,null,null,null,null,null,null,null,null,null,null,null,null,null,null,{"$f":"SUM($F161:$BA161)/2-0.5","v":-0.5},{"$f":"IF(BJ161<0,0,BJ161)","v":0},{"$error":"#N/A"},{"$error":"#N/A"}]
[null,null,{"$f":"C151+1","v":"2020-01-15"},{"$f":"C162","v":"2020-01-15"},"MA",1.24999999999997,"06:30:00","07:00:00","07:30:00","08:00:00","08:30:00","09:00:00","09:30:00","10:00:00","10:30:00","11:00:00","11:30:00","12:00:00","12:30:00","13:00:00","13:30:00","14:00:00","14:30:00","15:00:00","15:30:00","16:00:00","16:30:00","17:00:00","17:30:00","18:00:00","18:30:00","19:00:00","19:30:00","20:00:00","20:30:00","21:00:00","21:30:00","22:00:00","22:30:00","23:00:00","23:30:00",1,1.0208333333333299,1.0416666666666701,1.0625,1.0833333333333299,1.1041666666666701,1.12499999999999,1.1458333333333199,1.1666666666666501,1.18749999999998,1.2083333333333099,1.2291666666666401]
[null,null,null,null,"OlKa",null,null,null,null,null,null,null,null,null,null,null,null,null,null,null,null,null,null,null,null,null,null,null,null,null,null,null,null,null,null,null,null,null,null,null,null,null,null,null,null,null,null,null,null,null,null,null,null,null,null,null,null,null,null,null,null,null,null,{"$error":"#N/A"},{"$error":"#N/A"}]
[null,null,null,null,"JeWo",null,null,null,null,null,null,"09:00:00",null,null,null,null,null,null,null,null,null,null,null,null,null,null,null,"17:00:00",null,null,null,null,null,null,null,null,null,null,null,null,null,null,null,null,null,null,null,null,null,null,null,null,null,{"$f":"SUM($F164:$BA164)/2-0.5","v":4.1666666666666741E-2},{"$f":"IF(BB164<0,0,BB164)","v":4.1666666666666741E-2},null,null,null,null,null,null,null,null,"09:00:00","17:00:00"]
[null,null,null,null,"ChEm",null,null,null,null,null,null,null,null,null,null,null,null,null,null,null,null,null,null,null,null,null,null,null,null,null,null,null,null,null,null,null,null,null,null,null,null,null,null,null,null,null,null,null,null,null,null,null,null,null,{"$f":"SUM($F165:$BA165)/2-0.5","v":-0.5},{"$f":"IF(BC165<0,0,BC165)","v":0},null,null,null,null,null,null,null,{"$error":"#N/A"},{"$error":"#N/A"}]
[null,null,null,null,"MeNo",null,null,null,null,null,null,null,null,null,null,null,null,null,null,null,null,null,null,null,null,null,null,null,null,null,null,null,null,null,null,null,null,null,null,null,null,null,null,null,null,null,null,null,null,null,null,null,null,null,null,{"$f":"SUM($F166:$BA166)/2-0.5","v":-0.5},{"$f":"IF(BD166<0,0,BD166)","v":0},null,null,null,null,null,null,{"$error":"#N/A"},{"$error":"#N/A"}]
[null,null,null,null,"JuGr",null,null,null,null,null,null,null,null,null,null,null,null,null,null,null,null,null,null,null,null,null,null,null,null,null,null,null,null,null,null,null,null,null,null,null,null,null,null,null,null,null,null,null,null,null,null,null,null,null,null,null,{"$f":"SUM($F167:$BA167)/2-0.5","v":-0.5},{"$f":"IF(BE167<0,0,BE167)","v":0},null,null,null,null,null,{"$error":"#N/A"},{"$error":"#N/A"}]
[null,null,null,null,"NiCh",null,null,null,null,null,null,null,null,null,null,null,null,null,null,null,null,null,null,null,null,null,null,null,null,null,null,null,null,null,null,null,null,null,null,null,null,null,null,null,null,null,null,null,null,null,null,null,null,null,null,null,null,{"$f":"SUM($F168:$BA168)/2-0.5","v":-0.5},{"$f":"IF(BF168<0,0,BF168)","v":0},null,null,null,null,{"$error":"#N/A"},{"$error":"#N/A"}]
[null,null,null,null,"MA1",null,null,null,null,null,null,null,null,null,null,null,null,null,null,null,null,null,null,null,null,null,null,null,null,null,null,null,null,null,null,null,null,null,null,null,null,null,null,null,null,null,null,null,null,null,null,null,null,null,null,null,null,null,{"$f":"SUM($F169:$BA169)/2-0.5","v":-0.5},{"$f":"IF(BG169<0,0,BG169)","v":0},null,null,null,{"$error":"#N/A"},{"$error":"#N/A"}]
[null,null,null,null,"MA2",null,null,null,null,null,null,null,null,null,null,null,null,null,null,null,null,null,null,null,null,null,null,null,null,null,null,null,null,null,null,null,null,null,null,null,null,null,null,null,null,null,null,null,null,null,null,null,null,null,null,null,null,null,null,{"$f":"SUM($F170:$BA170)/2-0.5","v":-0.5},{"$f":"IF(BH170<0,0,BH170)","v":0},null,null,{"$error":"#N/A"},{"$error":"#N/A"}]
[null,null,null,null,"MA3",null,null,null,null,null,null,null,null,null,null,null,null,null,null,null,null,null,null,null,null,null,null,null,null,null,null,null,null,null,null,null,null,null,null,null,null,null,null,null,null,null,null,null,null,null,null,null,null,null,null,null,null,null,null,null,{"$f":"SUM($F171:$BA171)/2-0.5","v":-0.5},{"$f":"IF(BI171<0,0,BI171)","v":0},null,{"$error":"#N/A"},{"$error":"#N/A"}]
[null,null,null,null,"ChMa",null,null,null,null,null,null,null,null,null,null,null,null,null,null,null,null,null,null,null,null,null,null,null,null,null,null,null,null,null,null,null,null,null,null,null,null,null,null,null,null,null,null,null,null,null,null,null,null,null,null,null,null,null,null,null,null,{"$f":"SUM($F172:$BA172)/2-0.5","v":-0.5},{"$f":"IF(BJ172<0,0,BJ172)","v":0},{"$error":"#N/A"},{"$error":"#N/A"}]
[null,null,{"$f":"C162+1","v":"2020-01-16"},{"$f":"C173","v":"2020-01-16"},"MA",1.24999999999997,"06:30:00","07:00:00","07:30:00","08:00:00","08:30:00","09:00:00","09:30:00","10:00:00","10:30:00","11:00:00","11:30:00","12:00:00","12:30:00","13:00:00","13:30:00","14:00:00","14:30:00","15:00:00","15:30:00","16:00:00","16:30:00","17:00:00","17:30:00","18:00:00","18:30:00","19:00:00","19:30:00","20:00:00","20:30:00","21:00:00","21:30:00","22:00:00","22:30:00","23:00:00","23:30:00",1,1.0208333333333299,1.0416666666666701,1.0625,1.0833333333333299,1.1041666666666701,1.12499999999999,1.1458333333333199,1.1666666666666501,1.18749999999998,1.2083333333333099,1.2291666666666401]
[null,null,null,null,"OlKa",null,null,null,null,null,null,null,null,null,null,null,null,null,null,null,null,null,null,null,null,null,null,null,null,null,null,null,null,null,null,null,null,null,null,null,null,null,null,null,null,null,null,null,null,null,null,null,null,null,null,null,null,null,null,null,null,null,null,{"$error":"#N/A"},{"$error":"#N/A"}]
[null,null,null,null,"JeWo",null,null,null,null,null,null,null,null,null,null,null,null,null,null,null,null,null,null,null,null,null,null,null,null,null,null,null,null,null,null,null,null,null,null,null,null,null,null,null,null,null,null,null,null,null,null,null,null,{"$f":"SUM($F175:$BA175)/2-0.5","v":-0.5},{"$f":"IF(BB175<0,0,BB175)","v":0},null,null,null,null,null,null,null,null,{"$error":"#N/A"},{"$error":"#N/A"}]
[null,null,null,null,"ChEm",null,null,null,null,null,null,null,null,null,null,null,null,null,null,null,null,null,null,null,null,null,null,null,null,null,null,null,null,null,null,null,null,null,null,null,null,null,null,null,null,null,null,null,null,null,null,null,null,null,{"$f":"SUM($F176:$BA176)/2-0.5","v":-0.5},{"$f":"IF(BC176<0,0,BC176)","v":0},null,null,null,null,null,null,null,{"$error":"#N/A"},{"$error":"#N/A"}]
[null,null,null,null,"MeNo",null,null,null,null,null,null,null,null,null,null,null,null,null,null,null,null,null,null,null,null,null,null,null,null,null,null,null,null,null,null,null,null,null,null,null,null,null,null,null,null,null,null,null,null,null,null,null,null,null,null,{"$f":"SUM($F177:$BA177)/2-0.5","v":-0.5},{"$f":"IF(BD177<0,0,BD177)","v":0},null,null,null,null,null,null,{"$error":"#N/A"},{"$error":"#N/A"}]
[null,null,null,null,"JuGr",null,null,null,null,null,null,null,null,null,null,null,null,null,null,null,null,null,null,null,null,null,null,null,null,null,null,null,null,null,null,null,null,null,null,null,null,null,null,null,null,null,null,null,null,null,null,null,null,null,null,null,{"$f":"SUM($F178:$BA178)/2-0.5","v":-0.5},{"$f":"IF(BE178<0,0,BE178)","v":0},null,null,null,null,null,{"$error":"#N/A"},{"$error":"#N/A"}]
[null,null,null,null,"NiCh",null,null,null,null,null,null,null,null,null,null,null,null,null,null,null,null,null,null,null,null,null,null,null,null,null,null,null,null,null,null,null,null,null,null,null,null,null,null,null,null,null,null,null,null,null,null,null,null,null,null,null,null,{"$f":"SUM($F179:$BA179)/2-0.5","v":-0.5},{"$f":"IF(BF179<0,0,BF179)","v":0},null,null,null,null,{"$error":"#N/A"},{"$error":"#N/A"}]
[null,null,null,null,"MA1",null,null,null,null,null,null,null,null,null,null,null,null,null,null,null,null,null,null,null,null,null,null,null,null,null,null,null,null,null,null,null,null,null,null,null,null,null,null,null,null,null,null,null,null,null,null,null,null,null,null,null,null,null,{"$f":"SUM($F180:$BA180)/2-0.5","v":-0.5},{"$f":"IF(BG180<0,0,BG180)","v":0},null,null,null,{"$error":"#N/A"},{"$error":"#N/A"}]
[null,null,null,null,"MA2",null,null,null,null,null,null,null,null,null,null,null,null,null,null,null,null,null,null,null,null,null,null,null,null,null,null,null,null,null,null,null,null,null,null,null,null,null,null,null,null,null,null,null,null,null,null,null,null,null,null,null,null,null,null,{"$f":"SUM($F181:$BA181)/2-0.5","v":-0.5},{"$f":"IF(BH181<0,0,BH181)","v":0},null,null,{"$error":"#N/A"},{"$error":"#N/A"}]
[null,null,null,null,"MA3",null,null,null,null,null,null,null,null,null,null,null,null,null,null,null,null,null,null,null,null,null,null,null,null,null,null,null,null,null,null,null,null,null,null,null,null,null,null,null,null,null,null,null,null,null,null,null,null,null,null,null,null,null,null,null,{"$f":"SUM($F182:$BA182)/2-0.5","v":-0.5},{"$f":"IF(BI182<0,0,BI182)","v":0},null,{"$error":"#N/A"},{"$error":"#N/A"}]
[null,null,null,null,"ChMa",null,null,null,null,null,null,null,null,null,null,null,null,null,null,null,null,null,null,null,null,null,null,null,null,null,null,null,null,null,null,null,null,null,null,null,null,null,null,null,null,null,null,null,null,null,null,null,null,null,null,null,null,null,null,null,null,{"$f":"SUM($F183:$BA183)/2-0.5","v":-0.5},{"$f":"IF(BJ183<0,0,BJ183)","v":0},{"$error":"#N/A"},{"$error":"#N/A"}]
[null,null,{"$f":"C173+1","v":"2020-01-17"},{"$f":"C184","v":"2020-01-17"},"MA",1.24999999999997,"06:30:00","07:00:00","07:30:00","08:00:00","08:30:00","09:00:00","09:30:00","10:00:00","10:30:00","11:00:00","11:30:00","12:00:00","12:30:00","13:00:00","13:30:00","14:00:00","14:30:00","15:00:00","15:30:00","16:00:00","16:30:00","17:00:00","17:30:00","18:00:00","18:30:00","19:00:00","19:30:00","20:00:00","20:30:00","21:00:00","21:30:00","22:00:00","22:30:00","23:00:00","23:30:00",1,1.0208333333333299,1.0416666666666701,1.0625,1.0833333333333299,1.1041666666666701,1.12499999999999,1.1458333333333199,1.1666666666666501,1.18749999999998,1.2083333333333099,1.2291666666666401]
[null,null,null,null,"OlKa",null,null,null,null,null,null,null,null,null,null,null,null,null,null,null,null,null,null,null,null,null,null,null,null,null,null,null,null,null,null,null,null,null,null,null,null,null,null,null,null,null,null,null,null,null,null,null,null,null,null,null,null,null,null,null,null,null,null,{"$error":"#N/A"},{"$error":"#N/A"}]
[null,null,null,null,"JeWo",null,null,null,null,null,null,null,null,null,null,null,null,null,null,null,null,null,null,null,null,null,null,null,null,null,null,null,null,null,null,null,null,null,null,null,null,null,null,null,null,null,null,null,null,null,null,null,null,{"$f":"SUM($F186:$BA186)/2-0.5","v":-0.5},{"$f":"IF(BB186<0,0,BB186)","v":0},null,null,null,null,null,null,null,null,{"$error":"#N/A"},{"$error":"#N/A"}]
[null,null,null,null,"ChEm",null,null,null,null,null,null,null,null,null,null,null,null,null,null,null,null,null,null,null,null,null,null,null,null,null,null,null,null,null,null,null,null,null,null,null,null,null,null,null,null,null,null,null,null,null,null,null,null,null,{"$f":"SUM($F187:$BA187)/2-0.5","v":-0.5},{"$f":"IF(BC187<0,0,BC187)","v":0},null,null,null,null,null,null,null,{"$error":"#N/A"},{"$error":"#N/A"}]
[null,null,null,null,"MeNo",null,null,null,null,null,null,null,null,null,null,null,null,null,null,null,null,null,null,null,null,null,null,null,null,null,null,null,null,null,null,null,null,null,null,null,null,null,null,null,null,null,null,null,null,null,null,null,null,null,null,{"$f":"SUM($F188:$BA188)/2-0.5","v":-0.5},{"$f":"IF(BD188<0,0,BD188)","v":0},null,null,null,null,null,null,{"$error":"#N/A"},{"$error":"#N/A"}]
[null,null,null,null,"JuGr",null,null,null,null,null,null,null,null,null,null,null,null,null,null,null,null,null,null,null,null,null,null,null,null,null,null,null,null,null,null,null,null,null,null,null,null,null,null,null,null,null,null,null,null,null,null,null,null,null,null,null,{"$f":"SUM($F189:$BA189)/2-0.5","v":-0.5},{"$f":"IF(BE189<0,0,BE189)","v":0},null,null,null,null,null,{"$error":"#N/A"},{"$error":"#N/A"}]
[null,null,null,null,"NiCh",null,null,null,null,null,null,null,null,null,null,null,null,null,null,null,null,null,null,null,null,null,null,null,null,null,null,null,null,null,null,null,null,null,null,null,null,null,null,null,null,null,null,null,null,null,null,null,null,null,null,null,null,{"$f":"SUM($F190:$BA190)/2-0.5","v":-0.5},{"$f":"IF(BF190<0,0,BF190)","v":0},null,null,null,null,{"$error":"#N/A"},{"$error":"#N/A"}]
[null,null,null,null,"MA1",null,null,null,null,null,null,null,null,null,null,null,null,null,null,null,null,null,null,null,null,null,null,null,null,null,null,null,null,null,null,null,null,null,null,null,null,null,null,null,null,null,null,null,null,null,null,null,null,null,null,null,null,null,{"$f":"SUM($F191:$BA191)/2-0.5","v":-0.5},{"$f":"IF(BG191<0,0,BG191)","v":0},null,null,null,{"$error":"#N/A"},{"$error":"#N/A"}]
[null,null,null,null,"MA2",null,null,null,null,null,null,null,null,null,null,null,null,null,null,null,null,null,null,null,null,null,null,null,null,null,null,null,null,null,null,null,null,null,null,null,null,null,null,null,null,null,null,null,null,null,null,null,null,null,null,null,null,null,null,{"$f":"SUM($F192:$BA192)/2-0.5","v":-0.5},{"$f":"IF(BH192<0,0,BH192)","v":0},null,null,{"$error":"#N/A"},{"$error":"#N/A"}]
[null,null,null,null,"MA3",null,null,null,null,null,null,null,null,null,null,null,null,null,null,null,null,null,null,null,null,null,null,null,null,null,null,null,null,null,null,null,null,null,null,null,null,null,null,null,null,null,null,null,null,null,null,null,null,null,null,null,null,null,null,null,{"$f":"SUM($F193:$BA193)/2-0.5","v":-0.5},{"$f":"IF(BI193<0,0,BI193)","v":0},null,{"$error":"#N/A"},{"$error":"#N/A"}]
[null,null,null,null,"ChMa",null,null,null,null,null,null,null,null,null,null,null,null,null,null,null,null,null,null,null,null,null,null,null,null,null,null,null,null,null,null,null,null,null,null,null,null,null,null,null,null,null,null,null,null,null,null,null,null,null,null,null,null,null,null,null,null,{"$f":"SUM($F194:$BA194)/2-0.5","v":-0.5},{"$f":"IF(BJ194<0,0,BJ194)","v":0},{"$error":"#N/A"},{"$error":"#N/A"}]
[null,null,{"$f":"C184+1","v":"2020-01-18"},{"$f":"C195","v":"2020-01-18"},"MA",1.24999999999997,"06:30:00","07:00:00","07:30:00","08:00:00","08:30:00","09:00:00","09:30:00","10:00:00","10:30:00","11:00:00","11:30:00","12:00:00","12:30:00","13:00:00","13:30:00","14:00:00","14:30:00","15:00:00","15:30:00","16:00:00","16:30:00","17:00:00","17:30:00","18:00:00","18:30:00","19:00:00","19:30:00","20:00:00","20:30:00","21:00:00","21:30:00","22:00:00","22:30:00","23:00:00","23:30:00",1,1.0208333333333299,1.0416666666666701,1.0625,1.0833333333333299,1.1041666666666701,1.12499999999999,1.1458333333333199,1.1666666666666501,1.18749999999998,1.2083333333333099,1.2291666666666401]
[null,null,null,null,"OlKa",null,null,null,null,null,null,null,null,null,null,null,null,null,null,null,null,null,null,null,null,null,null,null,null,null,null,null,null,null,null,null,null,null,null,null,null,null,null,null,null,null,null,null,null,null,null,null,null,null,null,null,null,null,null,null,null,null,null,{"$error":"#N/A"},{"$error":"#N/A"}]
[null,null,null,null,"JeWo",null,null,null,null,null,null,null,null,null,null,null,null,null,null,null,null,null,null,null,null,null,null,null,null,null,null,null,null,null,null,null,null,null,null,null,null,null,null,null,null,null,null,null,null,null,null,null,null,{"$f":"SUM($F197:$BA197)/2-0.5","v":-0.5},{"$f":"IF(BB197<0,0,BB197)","v":0},null,null,null,null,null,null,null,null,{"$error":"#N/A"},{"$error":"#N/A"}]
[null,null,null,null,"ChEm",null,null,null,null,null,null,null,null,null,null,null,null,null,null,null,null,null,null,null,null,null,null,null,null,null,null,null,null,null,null,null,null,null,null,null,null,null,null,null,null,null,null,null,null,null,null,null,null,null,{"$f":"SUM($F198:$BA198)/2-0.5","v":-0.5},{"$f":"IF(BC198<0,0,BC198)","v":0},null,null,null,null,null,null,null,{"$error":"#N/A"},{"$error":"#N/A"}]
[null,null,null,null,"MeNo",null,null,null,null,null,null,null,null,null,null,null,null,null,null,null,null,null,null,null,null,null,null,null,null,null,null,null,null,null,null,null,null,null,null,null,null,null,null,null,null,null,null,null,null,null,null,null,null,null,null,{"$f":"SUM($F199:$BA199)/2-0.5","v":-0.5},{"$f":"IF(BD199<0,0,BD199)","v":0},null,null,null,null,null,null,{"$error":"#N/A"},{"$error":"#N/A"}]
[null,null,null,null,"JuGr",null,null,null,null,null,null,null,null,null,null,null,null,null,null,null,null,null,null,null,null,null,null,null,null,null,null,null,null,null,null,null,null,null,null,null,null,null,null,null,null,null,null,null,null,null,null,null,null,null,null,null,{"$f":"SUM($F200:$BA200)/2-0.5","v":-0.5},{"$f":"IF(BE200<0,0,BE200)","v":0},null,null,null,null,null,{"$error":"#N/A"},{"$error":"#N/A"}]
[null,null,null,null,"NiCh",null,null,null,null,null,null,null,null,null,null,null,null,null,null,null,null,null,null,null,null,null,null,null,null,null,null,null,null,null,null,null,null,null,null,null,null,null,null,null,null,null,null,null,null,null,null,null,null,null,null,null,null,{"$f":"SUM($F201:$BA201)/2-0.5","v":-0.5},{"$f":"IF(BF201<0,0,BF201)","v":0},null,null,null,null,{"$error":"#N/A"},{"$error":"#N/A"}]
[null,null,null,null,"MA1",null,null,null,null,null,null,null,null,null,null,null,null,null,null,null,null,null,null,null,null,null,null,null,null,null,null,null,null,null,null,null,null,null,null,null,null,null,null,null,null,null,null,null,null,null,null,null,null,null,null,null,null,null,{"$f":"SUM($F202:$BA202)/2-0.5","v":-0.5},{"$f":"IF(BG202<0,0,BG202)","v":0},null,null,null,{"$error":"#N/A"},{"$error":"#N/A"}]
[null,null,null,null,"MA2",null,null,null,null,null,null,null,null,null,null,null,null,null,null,null,null,null,null,null,null,null,null,null,null,null,null,null,null,null,null,null,null,null,null,null,null,null,null,null,null,null,null,null,null,null,null,null,null,null,null,null,null,null,null,{"$f":"SUM($F203:$BA203)/2-0.5","v":-0.5},{"$f":"IF(BH203<0,0,BH203)","v":0},null,null,{"$error":"#N/A"},{"$error":"#N/A"}]
[null,null,null,null,"MA3",null,null,null,null,null,null,null,null,null,null,null,null,null,null,null,null,null,null,null,null,null,null,null,null,null,null,null,null,null,null,null,null,null,null,null,null,null,null,null,null,null,null,null,null,null,null,null,null,null,null,null,null,null,null,null,{"$f":"SUM($F204:$BA204)/2-0.5","v":-0.5},{"$f":"IF(BI204<0,0,BI204)","v":0},null,{"$error":"#N/A"},{"$error":"#N/A"}]
[null,null,null,null,"ChMa",null,null,null,null,null,null,null,null,null,null,null,null,null,null,null,null,null,null,null,null,null,null,null,null,null,null,null,null,null,null,null,null,null,null,null,null,null,null,null,null,null,null,null,null,null,null,null,null,null,null,null,null,null,null,null,null,{"$f":"SUM($F205:$BA205)/2-0.5","v":-0.5},{"$f":"IF(BJ205<0,0,BJ205)","v":0},{"$error":"#N/A"},{"$error":"#N/A"}]
[null,null,{"$f":"C195+1","v":"2020-01-19"},{"$f":"C206","v":"2020-01-19"},"MA",1.24999999999997,"06:30:00","07:00:00","07:30:00","08:00:00","08:30:00","09:00:00","09:30:00","10:00:00","10:30:00","11:00:00","11:30:00","12:00:00","12:30:00","13:00:00","13:30:00","14:00:00","14:30:00","15:00:00","15:30:00","16:00:00","16:30:00","17:00:00","17:30:00","18:00:00","18:30:00","19:00:00","19:30:00","20:00:00","20:30:00","21:00:00","21:30:00","22:00:00","22:30:00","23:00:00","23:30:00",1,1.0208333333333299,1.0416666666666701,1.0625,1.0833333333333299,1.1041666666666701,1.12499999999999,1.1458333333333199,1.1666666666666501,1.18749999999998,1.2083333333333099,1.2291666666666401]
[null,null,null,null,"OlKa",null,null,null,null,null,null,null,null,null,null,null,null,null,null,null,null,null,null,null,null,null,null,null,null,null,null,null,null,null,null,null,null,null,null,null,null,null,null,null,null,null,null,null,null,null,null,null,null,null,null,null,null,null,null,null,null,null,null,{"$error":"#N/A"},{"$error":"#N/A"}]
[null,null,null,null,"JeWo",null,null,null,null,null,null,null,null,null,null,null,null,null,null,null,null,null,null,null,null,null,null,null,null,null,null,null,null,null,null,null,null,null,null,null,null,null,null,null,null,null,null,null,null,null,null,null,null,{"$f":"SUM($F208:$BA208)/2-0.5","v":-0.5},{"$f":"IF(BB208<0,0,BB208)","v":0},null,null,null,null,null,null,null,null,{"$error":"#N/A"},{"$error":"#N/A"}]
[null,null,null,null,"ChEm",null,null,null,null,null,null,null,null,null,null,null,null,null,null,null,null,null,null,null,null,null,null,null,null,null,null,null,null,null,null,null,null,null,null,null,null,null,null,null,null,null,null,null,null,null,null,null,null,null,{"$f":"SUM($F209:$BA209)/2-0.5","v":-0.5},{"$f":"IF(BC209<0,0,BC209)","v":0},null,null,null,null,null,null,null,{"$error":"#N/A"},{"$error":"#N/A"}]
[null,null,null,null,"MeNo",null,null,null,null,null,null,null,null,null,null,null,null,null,null,null,null,null,null,null,null,null,null,null,null,null,null,null,null,null,null,null,null,null,null,null,null,null,null,null,null,null,null,null,null,null,null,null,null,null,null,{"$f":"SUM($F210:$BA210)/2-0.5","v":-0.5},{"$f":"IF(BD210<0,0,BD210)","v":0},null,null,null,null,null,null,{"$error":"#N/A"},{"$error":"#N/A"}]
[null,null,null,null,"JuGr",null,null,null,null,null,null,null,null,null,null,null,null,null,null,null,null,null,null,null,null,null,null,null,null,null,null,null,null,null,null,null,null,null,null,null,null,null,null,null,null,null,null,null,null,null,null,null,null,null,null,null,{"$f":"SUM($F211:$BA211)/2-0.5","v":-0.5},{"$f":"IF(BE211<0,0,BE211)","v":0},null,null,null,null,null,{"$error":"#N/A"},{"$error":"#N/A"}]
[null,null,null,null,"NiCh",null,null,null,null,null,null,null,null,null,null,null,null,null,null,null,null,null,null,null,null,null,null,null,null,null,null,null,null,null,null,null,null,null,null,null,null,null,null,null,null,null,null,null,null,null,null,null,null,null,null,null,null,{"$f":"SUM($F212:$BA212)/2-0.5","v":-0.5},{"$f":"IF(BF212<0,0,BF212)","v":0},null,null,null,null,{"$f":"INDEX($F$8:$BA$8,MATCH(\"?*\",INDEX(F212:BA212&\"\",),))","v":{"$error":"#N/A"}},{"$f":"LOOKUP(2,1/(F212:BA212<>\"\"),$F$8:$BA$8)","v":{"$error":"#N/A"}}]
[null,null,null,null,"MA1",null,null,null,null,null,null,null,null,null,null,null,null,null,null,null,null,null,null,null,null,null,null,null,null,null,null,null,null,null,null,null,null,null,null,null,null,null,null,null,null,null,null,null,null,null,null,null,null,null,null,null,null,null,{"$f":"SUM($F213:$BA213)/2-0.5","v":-0.5},{"$f":"IF(BG213<0,0,BG213)","v":0},null,null,null,{"$error":"#N/A"},{"$error":"#N/A"}]
[null,null,null,null,"MA2",null,null,null,null,null,null,null,null,null,null,null,null,null,null,null,null,null,null,null,null,null,null,null,null,null,null,null,null,null,null,null,null,null,null,null,null,null,null,null,null,null,null,null,null,null,null,null,null,null,null,null,null,null,null,{"$f":"SUM($F214:$BA214)/2-0.5","v":-0.5},{"$f":"IF(BH214<0,0,BH214)","v":0},null,null,{"$error":"#N/A"},{"$error":"#N/A"}]
[null,null,null,null,"MA3",null,null,null,null,null,null,null,null,null,null,null,null,null,null,null,null,null,null,null,null,null,null,null,null,null,null,null,null,null,null,null,null,null,null,null,null,null,null,null,null,null,null,null,null,null,null,null,null,null,null,null,null,null,null,null,{"$f":"SUM($F215:$BA215)/2-0.5","v":-0.5},{"$f":"IF(BI215<0,0,BI215)","v":0},null,{"$error":"#N/A"},{"$error":"#N/A"}]
[null,null,null,null,"ChMa",null,null,null,null,null,null,null,null,null,null,null,null,null,null,null,null,null,null,null,null,null,null,null,null,null,null,null,null,null,null,null,null,null,null,null,null,null,null,null,null,null,null,null,null,null,null,null,null,null,null,null,null,null,null,null,null,{"$f":"SUM($F216:$BA216)/2-0.5","v":-0.5},{"$f":"IF(BJ216<0,0,BJ216)","v":0},{"$error":"#N/A"},{"$error":"#N/A"}]
[null,null,{"$f":"C206+1","v":"2020-01-20"},{"$f":"C217","v":"2020-01-20"},"MA",1.24999999999997,"06:30:00","07:00:00","07:30:00","08:00:00","08:30:00","09:00:00","09:30:00","10:00:00","10:30:00","11:00:00","11:30:00","12:00:00","12:30:00","13:00:00","13:30:00","14:00:00","14:30:00","15:00:00","15:30:00","16:00:00","16:30:00","17:00:00","17:30:00","18:00:00","18:30:00","19:00:00","19:30:00","20:00:00","20:30:00","21:00:00","21:30:00","22:00:00","22:30:00","23:00:00","23:30:00",1,1.0208333333333299,1.0416666666666701,1.0625,1.0833333333333299,1.1041666666666701,1.12499999999999,1.1458333333333199,1.1666666666666501,1.18749999999998,1.2083333333333099,1.2291666666666401]
[null,null,null,null,"OlKa",null,null,null,null,null,null,null,null,null,null,null,null,null,null,null,null,null,null,null,null,null,null,null,null,null,null,null,null,null,null,null,null,null,null,null,null,null,null,null,null,null,null,null,null,null,null,null,null,null,null,null,null,null,null,null,null,null,null,{"$error":"#N/A"},{"$error":"#N/A"}]
[null,null,null,null,"JeWo",null,null,null,null,null,null,null,null,null,null,null,null,null,null,null,null,null,null,null,null,null,null,null,null,null,null,null,null,null,null,null,null,null,null,null,null,null,null,null,null,null,null,null,null,null,null,null,null,{"$f":"SUM($F219:$BA219)/2-0.5","v":-0.5},{"$f":"IF(BB219<0,0,BB219)","v":0},null,null,null,null,null,null,null,null,{"$error":"#N/A"},{"$error":"#N/A"}]
[null,null,null,null,"ChEm",null,null,null,null,null,null,null,null,null,null,null,null,null,null,null,null,null,null,null,null,null,null,null,null,null,null,null,null,null,null,null,null,null,null,null,null,null,null,null,null,null,null,null,null,null,null,null,null,null,{"$f":"SUM($F220:$BA220)/2-0.5","v":-0.5},{"$f":"IF(BC220<0,0,BC220)","v":0},null,null,null,null,null,null,null,{"$error":"#N/A"},{"$error":"#N/A"}]
[null,null,null,null,"MeNo",null,null,null,null,null,null,null,null,null,null,null,null,null,null,null,null,null,null,null,null,null,null,null,null,null,null,null,null,null,null,null,null,null,null,null,null,null,null,null,null,null,null,null,null,null,null,null,null,null,null,{"$f":"SUM($F221:$BA221)/2-0.5","v":-0.5},{"$f":"IF(BD221<0,0,BD221)","v":0},null,null,null,null,null,null,{"$error":"#N/A"},{"$error":"#N/A"}]
[null,null,null,null,"JuGr",null,null,null,null,null,null,null,null,null,null,null,null,null,null,null,null,null,null,null,null,null,null,null,null,null,null,null,null,null,null,null,null,null,null,null,null,null,null,null,null,null,null,null,null,null,null,null,null,null,null,null,{"$f":"SUM($F222:$BA222)/2-0.5","v":-0.5},{"$f":"IF(BE222<0,0,BE222)","v":0},null,null,null,null,null,{"$error":"#N/A"},{"$error":"#N/A"}]
[null,null,null,null,"NiCh",null,null,null,null,null,null,null,null,null,null,null,null,null,null,null,null,null,null,null,null,null,null,null,null,null,null,null,null,null,null,null,null,null,null,null,null,null,null,null,null,null,null,null,null,null,null,null,null,null,null,null,null,{"$f":"SUM($F223:$BA223)/2-0.5","v":-0.5},{"$f":"IF(BF223<0,0,BF223)","v":0},null,null,null,null,{"$error":"#N/A"},{"$error":"#N/A"}]
[null,null,null,null,"MA1",null,null,null,null,null,null,null,null,null,null,null,null,null,null,null,null,null,null,null,null,null,null,null,null,null,null,null,null,null,null,null,null,null,null,null,null,null,null,null,null,null,null,null,null,null,null,null,null,null,null,null,null,null,{"$f":"SUM($F224:$BA224)/2-0.5","v":-0.5},{"$f":"IF(BG224<0,0,BG224)","v":0},null,null,null,{"$error":"#N/A"},{"$error":"#N/A"}]
[null,null,null,null,"MA2",null,null,null,null,null,null,null,null,null,null,null,null,null,null,null,null,null,null,null,null,null,null,null,null,null,null,null,null,null,null,null,null,null,null,null,null,null,null,null,null,null,null,null,null,null,null,null,null,null,null,null,null,null,null,{"$f":"SUM($F225:$BA225)/2-0.5","v":-0.5},{"$f":"IF(BH225<0,0,BH225)","v":0},null,null,{"$error":"#N/A"},{"$error":"#N/A"}]
[null,null,null,null,"MA3",null,null,null,null,null,null,null,null,null,null,null,null,null,null,null,null,null,null,null,null,null,null,null,null,null,null,null,null,null,null,null,null,null,null,null,null,null,null,null,null,null,null,null,null,null,null,null,null,null,null,null,null,null,null,null,{"$f":"SUM($F226:$BA226)/2-0.5","v":-0.5},{"$f":"IF(BI226<0,0,BI226)","v":0},null,{"$error":"#N/A"},{"$error":"#N/A"}]
[null,null,null,null,"ChMa",null,null,null,null,null,null,null,null,null,null,null,null,null,null,null,null,null,null,null,null,null,null,null,null,null,null,null,null,null,null,null,null,null,null,null,null,null,null,null,null,null,null,null,null,null,null,null,null,null,null,null,null,null,null,null,null,{"$f":"SUM($F227:$BA227)/2-0.5","v":-0.5},{"$f":"IF(BJ227<0,0,BJ227)","v":0},{"$error":"#N/A"},{"$error":"#N/A"}]
[null,null,{"$f":"C217+1","v":"2020-01-21"},{"$f":"C228","v":"2020-01-21"},"MA",1.24999999999997,"06:30:00","07:00:00","07:30:00","08:00:00","08:30:00","09:00:00","09:30:00","10:00:00","10:30:00","11:00:00","11:30:00","12:00:00","12:30:00","13:00:00","13:30:00","14:00:00","14:30:00","15:00:00","15:30:00","16:00:00","16:30:00","17:00:00","17:30:00","18:00:00","18:30:00","19:00:00","19:30:00","20:00:00","20:30:00","21:00:00","21:30:00","22:00:00","22:30:00","23:00:00","23:30:00",1,1.0208333333333299,1.0416666666666701,1.0625,1.0833333333333299,1.1041666666666701,1.12499999999999,1.1458333333333199,1.1666666666666501,1.18749999999998,1.2083333333333099,1.2291666666666401]
[null,null,null,null,"OlKa",null,null,null,null,null,null,null,null,null,null,null,null,null,null,null,null,null,null,null,null,null,null,null,null,null,null,null,null,null,null,null,null,null,null,null,null,null,null,null,null,null,null,null,null,null,null,null,null,null,null,null,null,null,null,null,null,null,null,{"$error":"#N/A"},{"$error":"#N/A"}]
[null,null,null,null,"JeWo",null,null,null,null,null,null,null,null,null,null,null,null,null,null,null,null,null,null,null,null,null,null,null,null,null,null,null,null,null,null,null,null,null,null,null,null,null,null,null,null,null,null,null,null,null,null,null,null,{"$f":"SUM($F230:$BA230)/2-0.5","v":-0.5},{"$f":"IF(BB230<0,0,BB230)","v":0},null,null,null,null,null,null,null,null,{"$error":"#N/A"},{"$error":"#N/A"}]
[null,null,null,null,"ChEm",null,null,null,null,null,null,null,null,null,null,null,null,null,null,null,null,null,null,null,null,null,null,null,null,null,null,null,null,null,null,null,null,null,null,null,null,null,null,null,null,null,null,null,null,null,null,null,null,null,{"$f":"SUM($F231:$BA231)/2-0.5","v":-0.5},{"$f":"IF(BC231<0,0,BC231)","v":0},null,null,null,null,null,null,null,{"$error":"#N/A"},{"$error":"#N/A"}]
[null,null,null,null,"MeNo",null,null,null,null,null,null,null,null,null,null,null,null,null,null,null,null,null,null,null,null,null,null,null,null,null,null,null,null,null,null,null,null,null,null,null,null,null,null,null,null,null,null,null,null,null,null,null,null,null,null,{"$f":"SUM($F232:$BA232)/2-0.5","v":-0.5},{"$f":"IF(BD232<0,0,BD232)","v":0},null,null,null,null,null,null,{"$error":"#N/A"},{"$error":"#N/A"}]
[null,null,null,null,"JuGr",null,null,null,null,null,null,null,null,null,null,null,null,null,null,null,null,null,null,null,null,null,null,null,null,null,null,null,null,null,null,null,null,null,null,null,null,null,null,null,null,null,null,null,null,null,null,null,null,null,null,null,{"$f":"SUM($F233:$BA233)/2-0.5","v":-0.5},{"$f":"IF(BE233<0,0,BE233)","v":0},null,null,null,null,null,{"$error":"#N/A"},{"$error":"#N/A"}]
[null,null,null,null,"NiCh",null,null,null,null,null,null,null,null,null,null,null,null,null,null,null,null,null,null,null,null,null,null,null,null,null,null,null,null,null,null,null,null,null,null,null,null,null,null,null,null,null,null,null,null,null,null,null,null,null,null,null,null,{"$f":"SUM($F234:$BA234)/2-0.5","v":-0.5},{"$f":"IF(BF234<0,0,BF234)","v":0},null,null,null,null,{"$error":"#N/A"},{"$error":"#N/A"}]
[null,null,null,null,"MA1",null,null,null,null,null,null,null,null,null,null,null,null,null,null,null,null,null,null,null,null,null,null,null,null,null,null,null,null,null,null,null,null,null,null,null,null,null,null,null,null,null,null,null,null,null,null,null,null,null,null,null,null,null,{"$f":"SUM($F235:$BA235)/2-0.5","v":-0.5},{"$f":"IF(BG235<0,0,BG235)","v":0},null,null,null,{"$error":"#N/A"},{"$error":"#N/A"}]
[null,null,null,null,"MA2",null,null,null,null,null,null,null,null,null,null,null,null,null,null,null,null,null,null,null,null,null,null,null,null,null,null,null,null,null,null,null,null,null,null,null,null,null,null,null,null,null,null,null,null,null,null,null,null,null,null,null,null,null,null,{"$f":"SUM($F236:$BA236)/2-0.5","v":-0.5},{"$f":"IF(BH236<0,0,BH236)","v":0},null,null,{"$error":"#N/A"},{"$error":"#N/A"}]
[null,null,null,null,"MA3",null,null,null,null,null,null,null,null,null,null,null,null,null,null,null,null,null,null,null,null,null,null,null,null,null,null,null,null,null,null,null,null,null,null,null,null,null,null,null,null,null,null,null,null,null,null,null,null,null,null,null,null,null,null,null,{"$f":"SUM($F237:$BA237)/2-0.5","v":-0.5},{"$f":"IF(BI237<0,0,BI237)","v":0},null,{"$error":"#N/A"},{"$error":"#N/A"}]
[null,null,null,null,"ChMa",null,null,null,null,null,null,null,null,null,null,null,null,null,null,null,null,null,null,null,null,null,null,null,null,null,null,null,null,null,null,null,null,null,null,null,null,null,null,null,null,null,null,null,null,null,null,null,null,null,null,null,null,null,null,null,null,{"$f":"SUM($F238:$BA238)/2-0.5","v":-0.5},{"$f":"IF(BJ238<0,0,BJ238)","v":0},{"$error":"#N/A"},{"$error":"#N/A"}]
[null,null,{"$f":"C228+1","v":"2020-01-22"},{"$f":"C239","v":"2020-01-22"},"MA",1.24999999999997,"06:30:00","07:00:00","07:30:00","08:00:00","08:30:00","09:00:00","09:30:00","10:00:00","10:30:00","11:00:00","11:30:00","12:00:00","12:30:00","13:00:00","13:30:00","14:00:00","14:30:00","15:00:00","15:30:00","16:00:00","16:30:00","17:00:00","17:30:00","18:00:00","18:30:00","19:00:00","19:30:00","20:00:00","20:30:00","21:00:00","21:30:00","22:00:00","22:30:00","23:00:00","23:30:00",1,1.0208333333333299,1.0416666666666701,1.0625,1.0833333333333299,1.1041666666666701,1.12499999999999,1.1458333333333199,1.1666666666666501,1.18749999999998,1.2083333333333099,1.2291666666666401]
[null,null,null,null,"OlKa",null,null,null,null,null,null,null,null,null,null,null,null,null,null,null,null,null,null,null,null,null,null,null,null,null,null,null,null,null,null,null,null,null,null,null,null,null,null,null,null,null,null,null,null,null,null,null,null,null,null,null,null,null,null,null,null,null,null,{"$error":"#N/A"},{"$error":"#N/A"}]
[null,null,null,null,"JeWo",null,null,null,null,null,null,null,null,null,null,null,null,null,null,null,null,null,null,null,null,null,null,null,null,null,null,null,null,null,null,null,null,null,null,null,null,null,null,null,null,null,null,null,null,null,null,null,null,{"$f":"SUM($F241:$BA241)/2-0.5","v":-0.5},{"$f":"IF(BB241<0,0,BB241)","v":0},null,null,null,null,null,null,null,null,{"$error":"#N/A"},{"$error":"#N/A"}]
[null,null,null,null,"ChEm",null,null,null,null,null,null,null,null,null,null,null,null,null,null,null,null,null,null,null,null,null,null,null,null,null,null,null,null,null,null,null,null,null,null,null,null,null,null,null,null,null,null,null,null,null,null,null,null,null,{"$f":"SUM($F242:$BA242)/2-0.5","v":-0.5},{"$f":"IF(BC242<0,0,BC242)","v":0},null,null,null,null,null,null,null,{"$error":"#N/A"},{"$error":"#N/A"}]
[null,null,null,null,"MeNo",null,null,null,null,null,null,null,null,null,null,null,null,null,null,null,null,null,null,null,null,null,null,null,null,null,null,null,null,null,null,null,null,null,null,null,null,null,null,null,null,null,null,null,null,null,null,null,null,null,null,{"$f":"SUM($F243:$BA243)/2-0.5","v":-0.5},{"$f":"IF(BD243<0,0,BD243)","v":0},null,null,null,null,null,null,{"$error":"#N/A"},{"$error":"#N/A"}]
[null,null,null,null,"JuGr",null,null,null,null,null,null,null,null,null,null,null,null,null,null,null,null,null,null,null,null,null,null,null,null,null,null,null,null,null,null,null,null,null,null,null,null,null,null,null,null,null,null,null,null,null,null,null,null,null,null,null,{"$f":"SUM($F244:$BA244)/2-0.5","v":-0.5},{"$f":"IF(BE244<0,0,BE244)","v":0},null,null,null,null,null,{"$error":"#N/A"},{"$error":"#N/A"}]
[null,null,null,null,"NiCh",null,null,null,null,null,null,null,null,null,null,null,null,null,null,null,null,null,null,null,null,null,null,null,null,null,null,null,null,null,null,null,null,null,null,null,null,null,null,null,null,null,null,null,null,null,null,null,null,null,null,null,null,{"$f":"SUM($F245:$BA245)/2-0.5","v":-0.5},{"$f":"IF(BF245<0,0,BF245)","v":0},null,null,null,null,{"$error":"#N/A"},{"$error":"#N/A"}]
[null,null,null,null,"MA1",null,null,null,null,null,null,null,null,null,null,null,null,null,null,null,null,null,null,null,null,null,null,null,null,null,null,null,null,null,null,null,null,null,null,null,null,null,null,null,null,null,null,null,null,null,null,null,null,null,null,null,null,null,{"$f":"SUM($F246:$BA246)/2-0.5","v":-0.5},{"$f":"IF(BG246<0,0,BG246)","v":0},null,null,null,{"$error":"#N/A"},{"$error":"#N/A"}]
[null,null,null,null,"MA2",null,null,null,null,null,null,null,null,null,null,null,null,null,null,null,null,null,null,null,null,null,null,null,null,null,null,null,null,null,null,null,null,null,null,null,null,null,null,null,null,null,null,null,null,null,null,null,null,null,null,null,null,null,null,{"$f":"SUM($F247:$BA247)/2-0.5","v":-0.5},{"$f":"IF(BH247<0,0,BH247)","v":0},null,null,{"$error":"#N/A"},{"$error":"#N/A"}]
[null,null,null,null,"MA3",null,null,null,null,null,null,null,null,null,null,null,null,null,null,null,null,null,null,null,null,null,null,null,null,null,null,null,null,null,null,null,null,null,null,null,null,null,null,null,null,null,null,null,null,null,null,null,null,null,null,null,null,null,null,null,{"$f":"SUM($F248:$BA248)/2-0.5","v":-0.5},{"$f":"IF(BI248<0,0,BI248)","v":0},null,{"$error":"#N/A"},{"$error":"#N/A"}]
[null,null,null,null,"ChMa",null,null,null,null,null,null,null,null,null,null,null,null,null,null,null,null,null,null,null,null,null,null,null,null,null,null,null,null,null,null,null,null,null,null,null,null,null,null,null,null,null,null,null,null,null,null,null,null,null,null,null,null,null,null,null,null,{"$f":"SUM($F249:$BA249)/2-0.5","v":-0.5},{"$f":"IF(BJ249<0,0,BJ249)","v":0},{"$error":"#N/A"},{"$error":"#N/A"}]
[null,null,{"$f":"C239+1","v":"2020-01-23"},{"$f":"C250","v":"2020-01-23"},"MA",1.24999999999997,"06:30:00","07:00:00","07:30:00","08:00:00","08:30:00","09:00:00","09:30:00","10:00:00","10:30:00","11:00:00","11:30:00","12:00:00","12:30:00","13:00:00","13:30:00","14:00:00","14:30:00","15:00:00","15:30:00","16:00:00","16:30:00","17:00:00","17:30:00","18:00:00","18:30:00","19:00:00","19:30:00","20:00:00","20:30:00","21:00:00","21:30:00","22:00:00","22:30:00","23:00:00","23:30:00",1,1.0208333333333299,1.0416666666666701,1.0625,1.0833333333333299,1.1041666666666701,1.12499999999999,1.1458333333333199,1.1666666666666501,1.18749999999998,1.2083333333333099,1.2291666666666401]
[null,null,null,null,"OlKa",null,null,null,null,null,null,null,null,null,null,null,null,null,null,null,null,null,null,null,null,null,null,null,null,null,null,null,null,null,null,null,null,null,null,null,null,null,null,null,null,null,null,null,null,null,null,null,null,null,null,null,null,null,null,null,null,null,null,{"$error":"#N/A"},{"$error":"#N/A"}]
[null,null,null,null,"JeWo",null,null,null,null,null,null,null,null,null,null,null,null,null,null,null,null,null,null,null,null,null,null,null,null,null,null,null,null,null,null,null,null,null,null,null,null,null,null,null,null,null,null,null,null,null,null,null,null,{"$f":"SUM($F252:$BA252)/2-0.5","v":-0.5},{"$f":"IF(BB252<0,0,BB252)","v":0},null,null,null,null,null,null,null,null,{"$error":"#N/A"},{"$error":"#N/A"}]
[null,null,null,null,"ChEm",null,null,null,null,null,null,null,null,null,null,null,null,null,null,null,null,null,null,null,null,null,null,null,null,null,null,null,null,null,null,null,null,null,null,null,null,null,null,null,null,null,null,null,null,null,null,null,null,null,{"$f":"SUM($F253:$BA253)/2-0.5","v":-0.5},{"$f":"IF(BC253<0,0,BC253)","v":0},null,null,null,null,null,null,null,{"$error":"#N/A"},{"$error":"#N/A"}]
[null,null,null,null,"MeNo",null,null,null,null,null,null,null,null,null,null,null,null,null,null,null,null,null,null,null,null,null,null,null,null,null,null,null,null,null,null,null,null,null,null,null,null,null,null,null,null,null,null,null,null,null,null,null,null,null,null,{"$f":"SUM($F254:$BA254)/2-0.5","v":-0.5},{"$f":"IF(BD254<0,0,BD254)","v":0},null,null,null,null,null,null,{"$error":"#N/A"},{"$error":"#N/A"}]
[null,null,null,null,"JuGr",null,null,null,null,null,null,null,null,null,null,null,null,null,null,null,null,null,null,null,null,null,null,null,null,null,null,null,null,null,null,null,null,null,null,null,null,null,null,null,null,null,null,null,null,null,null,null,null,null,null,null,{"$f":"SUM($F255:$BA255)/2-0.5","v":-0.5},{"$f":"IF(BE255<0,0,BE255)","v":0},null,null,null,null,null,{"$error":"#N/A"},{"$error":"#N/A"}]
[null,null,null,null,"NiCh",null,null,null,null,null,null,null,null,null,null,null,null,null,null,null,null,null,null,null,null,null,null,null,null,null,null,null,null,null,null,null,null,null,null,null,null,null,null,null,null,null,null,null,null,null,null,null,null,null,null,null,null,{"$f":"SUM($F256:$BA256)/2-0.5","v":-0.5},{"$f":"IF(BF256<0,0,BF256)","v":0},null,null,null,null,{"$error":"#N/A"},{"$error":"#N/A"}]
[null,null,null,null,"MA1",null,null,null,null,null,null,null,null,null,null,null,null,null,null,null,null,null,null,null,null,null,null,null,null,null,null,null,null,null,null,null,null,null,null,null,null,null,null,null,null,null,null,null,null,null,null,null,null,null,null,null,null,null,{"$f":"SUM($F257:$BA257)/2-0.5","v":-0.5},{"$f":"IF(BG257<0,0,BG257)","v":0},null,null,null,{"$error":"#N/A"},{"$error":"#N/A"}]
[null,null,null,null,"MA2",null,null,null,null,null,null,null,null,null,null,null,null,null,null,null,null,null,null,null,null,null,null,null,null,null,null,null,null,null,null,null,null,null,null,null,null,null,null,null,null,null,null,null,null,null,null,null,null,null,null,null,null,null,null,{"$f":"SUM($F258:$BA258)/2-0.5","v":-0.5},{"$f":"IF(BH258<0,0,BH258)","v":0},null,null,{"$error":"#N/A"},{"$error":"#N/A"}]
[null,null,null,null,"MA3",null,null,null,null,null,null,null,null,null,null,null,null,null,null,null,null,null,null,null,null,null,null,null,null,null,null,null,null,null,null,null,null,null,null,null,null,null,null,null,null,null,null,null,null,null,null,null,null,null,null,null,null,null,null,null,{"$f":"SUM($F259:$BA259)/2-0.5","v":-0.5},{"$f":"IF(BI259<0,0,BI259)","v":0},null,{"$error":"#N/A"},{"$error":"#N/A"}]
[null,null,null,null,"ChMa",null,null,null,null,null,null,null,null,null,null,null,null,null,null,null,null,null,null,null,null,null,null,null,null,null,null,null,null,null,null,null,null,null,null,null,null,null,null,null,null,null,null,null,null,null,null,null,null,null,null,null,null,null,null,null,null,{"$f":"SUM($F260:$BA260)/2-0.5","v":-0.5},{"$f":"IF(BJ260<0,0,BJ260)","v":0},{"$error":"#N/A"},{"$error":"#N/A"}]
[null,null,{"$f":"C250+1","v":"2020-01-24"},{"$f":"C261","v":"2020-01-24"},"MA",1.24999999999997,"06:30:00","07:00:00","07:30:00","08:00:00","08:30:00","09:00:00","09:30:00","10:00:00","10:30:00","11:00:00","11:30:00","12:00:00","12:30:00","13:00:00","13:30:00","14:00:00","14:30:00","15:00:00","15:30:00","16:00:00","16:30:00","17:00:00","17:30:00","18:00:00","18:30:00","19:00:00","19:30:00","20:00:00","20:30:00","21:00:00","21:30:00","22:00:00","22:30:00","23:00:00","23:30:00",1,1.0208333333333299,1.0416666666666701,1.0625,1.0833333333333299,1.1041666666666701,1.12499999999999,1.1458333333333199,1.1666666666666501,1.18749999999998,1.2083333333333099,1.2291666666666401]
[null,null,null,null,"OlKa",null,null,null,null,null,null,null,null,null,null,null,null,null,null,null,null,null,null,null,null,null,null,null,null,null,null,null,null,null,null,null,null,null,null,null,null,null,null,null,null,null,null,null,null,null,null,null,null,null,null,null,null,null,null,null,null,null,null,{"$error":"#N/A"},{"$error":"#N/A"}]
[null,null,null,null,"JeWo",null,null,null,null,null,null,null,null,null,null,null,null,null,null,null,null,null,null,null,null,null,null,null,null,null,null,null,null,null,null,null,null,null,null,null,null,null,null,null,null,null,null,null,null,null,null,null,null,{"$f":"SUM($F263:$BA263)/2-0.5","v":-0.5},{"$f":"IF(BB263<0,0,BB263)","v":0},null,null,null,null,null,null,null,null,{"$error":"#N/A"},{"$error":"#N/A"}]
[null,null,null,null,"ChEm",null,null,null,null,null,null,null,null,null,null,null,null,null,null,null,null,null,null,null,null,null,null,null,null,null,null,null,null,null,null,null,null,null,null,null,null,null,null,null,null,null,null,null,null,null,null,null,null,null,{"$f":"SUM($F264:$BA264)/2-0.5","v":-0.5},{"$f":"IF(BC264<0,0,BC264)","v":0},null,null,null,null,null,null,null,{"$error":"#N/A"},{"$error":"#N/A"}]
[null,null,null,null,"MeNo",null,null,null,null,null,null,null,null,null,null,null,null,null,null,null,null,null,null,null,null,null,null,null,null,null,null,null,null,null,null,null,null,null,null,null,null,null,null,null,null,null,null,null,null,null,null,null,null,null,null,{"$f":"SUM($F265:$BA265)/2-0.5","v":-0.5},{"$f":"IF(BD265<0,0,BD265)","v":0},null,null,null,null,null,null,{"$error":"#N/A"},{"$error":"#N/A"}]
[null,null,null,null,"JuGr",null,null,null,null,null,null,null,null,null,null,null,null,null,null,null,null,null,null,null,null,null,null,null,null,null,null,null,null,null,null,null,null,null,null,null,null,null,null,null,null,null,null,null,null,null,null,null,null,null,null,null,{"$f":"SUM($F266:$BA266)/2-0.5","v":-0.5},{"$f":"IF(BE266<0,0,BE266)","v":0},null,null,null,null,null,{"$error":"#N/A"},{"$error":"#N/A"}]
[null,null,null,null,"NiCh",null,null,null,null,null,null,null,null,null,null,null,null,null,null,null,null,null,null,null,null,null,null,null,null,null,null,null,null,null,null,null,null,null,null,null,null,null,null,null,null,null,null,null,null,null,null,null,null,null,null,null,null,{"$f":"SUM($F267:$BA267)/2-0.5","v":-0.5},{"$f":"IF(BF267<0,0,BF267)","v":0},null,null,null,null,{"$error":"#N/A"},{"$error":"#N/A"}]
[null,null,null,null,"MA1",null,null,null,null,null,null,null,null,null,null,null,null,null,null,null,null,null,null,null,null,null,null,null,null,null,null,null,null,null,null,null,null,null,null,null,null,null,null,null,null,null,null,null,null,null,null,null,null,null,null,null,null,null,{"$f":"SUM($F268:$BA268)/2-0.5","v":-0.5},{"$f":"IF(BG268<0,0,BG268)","v":0},null,null,null,{"$error":"#N/A"},{"$error":"#N/A"}]
[null,null,null,null,"MA2",null,null,null,null,null,null,null,null,null,null,null,null,null,null,null,null,null,null,null,null,null,null,null,null,null,null,null,null,null,null,null,null,null,null,null,null,null,null,null,null,null,null,null,null,null,null,null,null,null,null,null,null,null,null,{"$f":"SUM($F269:$BA269)/2-0.5","v":-0.5},{"$f":"IF(BH269<0,0,BH269)","v":0},null,null,{"$error":"#N/A"},{"$error":"#N/A"}]
[null,null,null,null,"MA3",null,null,null,null,null,null,null,null,null,null,null,null,null,null,null,null,null,null,null,null,null,null,null,null,null,null,null,null,null,null,null,null,null,null,null,null,null,null,null,null,null,null,null,null,null,null,null,null,null,null,null,null,null,null,null,{"$f":"SUM($F270:$BA270)/2-0.5","v":-0.5},{"$f":"IF(BI270<0,0,BI270)","v":0},null,{"$error":"#N/A"},{"$error":"#N/A"}]
[null,null,null,null,"ChMa",null,null,null,null,null,null,null,null,null,null,null,null,null,null,null,null,null,null,null,null,null,null,null,null,null,null,null,null,null,null,null,null,null,null,null,null,null,null,null,null,null,null,null,null,null,null,null,null,null,null,null,null,null,null,null,null,{"$f":"SUM($F271:$BA271)/2-0.5","v":-0.5},{"$f":"IF(BJ271<0,0,BJ271)","v":0},{"$error":"#N/A"},{"$error":"#N/A"}]
[null,null,{"$f":"C261+1","v":"2020-01-25"},{"$f":"C272","v":"2020-01-25"},"MA",1.24999999999997,"06:30:00","07:00:00","07:30:00","08:00:00","08:30:00","09:00:00","09:30:00","10:00:00","10:30:00","11:00:00","11:30:00","12:00:00","12:30:00","13:00:00","13:30:00","14:00:00","14:30:00","15:00:00","15:30:00","16:00:00","16:30:00","17:00:00","17:30:00","18:00:00","18:30:00","19:00:00","19:30:00","20:00:00","20:30:00","21:00:00","21:30:00","22:00:00","22:30:00","23:00:00","23:30:00",1,1.0208333333333299,1.0416666666666701,1.0625,1.0833333333333299,1.1041666666666701,1.12499999999999,1.1458333333333199,1.1666666666666501,1.18749999999998,1.2083333333333099,1.2291666666666401]
[null,null,null,null,"OlKa",null,null,null,null,null,null,null,null,null,null,null,null,null,null,null,null,null,null,null,null,null,null,null,null,null,null,null,null,null,null,null,null,null,null,null,null,null,null,null,null,null,null,null,null,null,null,null,null,null,null,null,null,null,null,null,null,null,null,{"$error":"#N/A"},{"$error":"#N/A"}]
[null,null,null,null,"JeWo",null,null,null,null,null,null,null,null,null,null,null,null,null,null,null,null,null,null,null,null,null,null,null,null,null,null,null,null,null,null,null,null,null,null,null,null,null,null,null,null,null,null,null,null,null,null,null,null,{"$f":"SUM($F274:$BA274)/2-0.5","v":-0.5},{"$f":"IF(BB274<0,0,BB274)","v":0},null,null,null,null,null,null,null,null,{"$error":"#N/A"},{"$error":"#N/A"}]
[null,null,null,null,"ChEm",null,null,null,null,null,null,null,null,null,null,null,null,null,null,null,null,null,null,null,null,null,null,null,null,null,null,null,null,null,null,null,null,null,null,null,null,null,null,null,null,null,null,null,null,null,null,null,null,null,{"$f":"SUM($F275:$BA275)/2-0.5","v":-0.5},{"$f":"IF(BC275<0,0,BC275)","v":0},null,null,null,null,null,null,null,{"$error":"#N/A"},{"$error":"#N/A"}]
[null,null,null,null,"MeNo",null,null,null,null,null,null,null,null,null,null,null,null,null,null,null,null,null,null,null,null,null,null,null,null,null,null,null,null,null,null,null,null,null,null,null,null,null,null,null,null,null,null,null,null,null,null,null,null,null,null,{"$f":"SUM($F276:$BA276)/2-0.5","v":-0.5},{"$f":"IF(BD276<0,0,BD276)","v":0},null,null,null,null,null,null,{"$f":"INDEX($F$8:$BA$8,MATCH(\"?*\",INDEX(F276:BA276&\"\",),))","v":{"$error":"#N/A"}},{"$f":"LOOKUP(2,1/(F276:BA276<>\"\"),$F$8:$BA$8)","v":{"$error":"#N/A"}}]
[null,null,null,null,"JuGr",null,null,null,null,null,null,null,null,null,null,null,null,null,null,null,null,null,null,null,null,null,null,null,null,null,null,null,null,null,null,null,null,null,null,null,null,null,null,null,null,null,null,null,null,null,null,null,null,null,null,null,{"$f":"SUM($F277:$BA277)/2-0.5","v":-0.5},{"$f":"IF(BE277<0,0,BE277)","v":0},null,null,null,null,null,{"$error":"#N/A"},{"$error":"#N/A"}]
[null,null,null,null,"NiCh",null,null,null,null,null,null,null,null,null,null,null,null,null,null,null,null,null,null,null,null,null,null,null,null,null,null,null,null,null,null,null,null,null,null,null,null,null,null,null,null,null,null,null,null,null,null,null,null,null,null,null,null,{"$f":"SUM($F278:$BA278)/2-0.5","v":-0.5},{"$f":"IF(BF278<0,0,BF278)","v":0},null,null,null,null,{"$error":"#N/A"},{"$error":"#N/A"}]
[null,null,null,null,"MA1",null,null,null,null,null,null,null,null,null,null,null,null,null,null,null,null,null,null,null,null,null,null,null,null,null,null,null,null,null,null,null,null,null,null,null,null,null,null,null,null,null,null,null,null,null,null,null,null,null,null,null,null,null,{"$f":"SUM($F279:$BA279)/2-0.5","v":-0.5},{"$f":"IF(BG279<0,0,BG279)","v":0},null,null,null,{"$error":"#N/A"},{"$error":"#N/A"}]
[null,null,null,null,"MA2",null,null,null,null,null,null,null,null,null,null,null,null,null,null,null,null,null,null,null,null,null,null,null,null,null,null,null,null,null,null,null,null,null,null,null,null,null,null,null,null,null,null,null,null,null,null,null,null,null,null,null,null,null,null,{"$f":"SUM($F280:$BA280)/2-0.5","v":-0.5},{"$f":"IF(BH280<0,0,BH280)","v":0},null,null,{"$error":"#N/A"},{"$error":"#N/A"}]
[null,null,null,null,"MA3",null,null,null,null,null,null,null,null,null,null,null,null,null,null,null,null,null,null,null,null,null,null,null,null,null,null,null,null,null,null,null,null,null,null,null,null,null,null,null,null,null,null,null,null,null,null,null,null,null,null,null,null,null,null,null,{"$f":"SUM($F281:$BA281)/2-0.5","v":-0.5},{"$f":"IF(BI281<0,0,BI281)","v":0},null,{"$error":"#N/A"},{"$error":"#N/A"}]
[null,null,null,null,"ChMa",null,null,null,null,null,null,null,null,null,null,null,null,null,null,null,null,null,null,null,null,null,null,null,null,null,null,null,null,null,null,null,null,null,null,null,null,null,null,null,null,null,null,null,null,null,null,null,null,null,null,null,null,null,null,null,null,{"$f":"SUM($F282:$BA282)/2-0.5","v":-0.5},{"$f":"IF(BJ282<0,0,BJ282)","v":0},{"$error":"#N/A"},{"$error":"#N/A"}]
[null,null,{"$f":"C272+1","v":"2020-01-26"},{"$f":"C283","v":"2020-01-26"},"MA",1.24999999999997,"06:30:00","07:00:00","07:30:00","08:00:00","08:30:00","09:00:00","09:30:00","10:00:00","10:30:00","11:00:00","11:30:00","12:00:00","12:30:00","13:00:00","13:30:00","14:00:00","14:30:00","15:00:00","15:30:00","16:00:00","16:30:00","17:00:00","17:30:00","18:00:00","18:30:00","19:00:00","19:30:00","20:00:00","20:30:00","21:00:00","21:30:00","22:00:00","22:30:00","23:00:00","23:30:00",1,1.0208333333333299,1.0416666666666701,1.0625,1.0833333333333299,1.1041666666666701,1.12499999999999,1.1458333333333199,1.1666666666666501,1.18749999999998,1.2083333333333099,1.2291666666666401]
[null,null,null,null,"OlKa",null,null,null,null,null,null,null,null,null,null,null,null,null,null,null,null,null,null,null,null,null,null,null,null,null,null,null,null,null,null,null,null,null,null,null,null,null,null,null,null,null,null,null,null,null,null,null,null,null,null,null,null,null,null,null,null,null,null,{"$error":"#N/A"},{"$error":"#N/A"}]
[null,null,null,null,"JeWo",null,null,null,null,null,null,null,null,null,null,null,null,null,null,null,null,null,null,null,null,null,null,null,null,null,null,null,null,null,null,null,null,null,null,null,null,null,null,null,null,null,null,null,null,null,null,null,null,{"$f":"SUM($F285:$BA285)/2-0.5","v":-0.5},{"$f":"IF(BB285<0,0,BB285)","v":0},null,null,null,null,null,null,null,null,{"$error":"#N/A"},{"$error":"#N/A"}]
[null,null,null,null,"ChEm",null,null,null,null,null,null,null,null,null,null,null,null,null,null,null,null,null,null,null,null,null,null,null,null,null,null,null,null,null,null,null,null,null,null,null,null,null,null,null,null,null,null,null,null,null,null,null,null,null,{"$f":"SUM($F286:$BA286)/2-0.5","v":-0.5},{"$f":"IF(BC286<0,0,BC286)","v":0},null,null,null,null,null,null,null,{"$error":"#N/A"},{"$error":"#N/A"}]
[null,null,null,null,"MeNo",null,null,null,null,null,null,null,null,null,null,null,null,null,null,null,null,null,null,null,null,null,null,null,null,null,null,null,null,null,null,null,null,null,null,null,null,null,null,null,null,null,null,null,null,null,null,null,null,null,null,{"$f":"SUM($F287:$BA287)/2-0.5","v":-0.5},{"$f":"IF(BD287<0,0,BD287)","v":0},null,null,null,null,null,null,{"$error":"#N/A"},{"$error":"#N/A"}]
[null,null,null,null,"JuGr",null,null,null,null,null,null,null,null,null,null,null,null,null,null,null,null,null,null,null,null,null,null,null,null,null,null,null,null,null,null,null,null,null,null,null,null,null,null,null,null,null,null,null,null,null,null,null,null,null,null,null,{"$f":"SUM($F288:$BA288)/2-0.5","v":-0.5},{"$f":"IF(BE288<0,0,BE288)","v":0},null,null,null,null,null,{"$error":"#N/A"},{"$error":"#N/A"}]
[null,null,null,null,"NiCh",null,null,null,null,null,null,null,null,null,null,null,null,null,null,null,null,null,null,null,null,null,null,null,null,null,null,null,null,null,null,null,null,null,null,null,null,null,null,null,null,null,null,null,null,null,null,null,null,null,null,null,null,{"$f":"SUM($F289:$BA289)/2-0.5","v":-0.5},{"$f":"IF(BF289<0,0,BF289)","v":0},null,null,null,null,{"$error":"#N/A"},{"$error":"#N/A"}]
[null,null,null,null,"MA1",null,null,null,null,null,null,null,null,null,null,null,null,null,null,null,null,null,null,null,null,null,null,null,null,null,null,null,null,null,null,null,null,null,null,null,null,null,null,null,null,null,null,null,null,null,null,null,null,null,null,null,null,null,{"$f":"SUM($F290:$BA290)/2-0.5","v":-0.5},{"$f":"IF(BG290<0,0,BG290)","v":0},null,null,null,{"$error":"#N/A"},{"$error":"#N/A"}]
[null,null,null,null,"MA2",null,null,null,null,null,null,null,null,null,null,null,null,null,null,null,null,null,null,null,null,null,null,null,null,null,null,null,null,null,null,null,null,null,null,null,null,null,null,null,null,null,null,null,null,null,null,null,null,null,null,null,null,null,null,{"$f":"SUM($F291:$BA291)/2-0.5","v":-0.5},{"$f":"IF(BH291<0,0,BH291)","v":0},null,null,{"$error":"#N/A"},{"$error":"#N/A"}]
[null,null,null,null,"MA3",null,null,null,null,null,null,null,null,null,null,null,null,null,null,null,null,null,null,null,null,null,null,null,null,null,null,null,null,null,null,null,null,null,null,null,null,null,null,null,null,null,null,null,null,null,null,null,null,null,null,null,null,null,null,null,{"$f":"SUM($F292:$BA292)/2-0.5","v":-0.5},{"$f":"IF(BI292<0,0,BI292)","v":0},null,{"$error":"#N/A"},{"$error":"#N/A"}]
[null,null,null,null,"ChMa",null,null,null,null,null,null,null,null,null,null,null,null,null,null,null,null,null,null,null,null,null,null,null,null,null,null,null,null,null,null,null,null,null,null,null,null,null,null,null,null,null,null,null,null,null,null,null,null,null,null,null,null,null,null,null,null,{"$f":"SUM($F293:$BA293)/2-0.5","v":-0.5},{"$f":"IF(BJ293<0,0,BJ293)","v":0},{"$error":"#N/A"},{"$error":"#N/A"}]
[null,null,{"$f":"C283+1","v":"2020-01-27"},{"$f":"C294","v":"2020-01-27"},"MA",1.24999999999997,"06:30:00","07:00:00","07:30:00","08:00:00","08:30:00","09:00:00","09:30:00","10:00:00","10:30:00","11:00:00","11:30:00","12:00:00","12:30:00","13:00:00","13:30:00","14:00:00","14:30:00","15:00:00","15:30:00","16:00:00","16:30:00","17:00:00","17:30:00","18:00:00","18:30:00","19:00:00","19:30:00","20:00:00","20:30:00","21:00:00","21:30:00","22:00:00","22:30:00","23:00:00","23:30:00",1,1.0208333333333299,1.0416666666666701,1.0625,1.0833333333333299,1.1041666666666701,1.12499999999999,1.1458333333333199,1.1666666666666501,1.18749999999998,1.2083333333333099,1.2291666666666401]
[null,null,null,null,"OlKa",null,null,null,null,null,null,null,null,null,null,null,null,null,null,null,null,null,null,null,null,null,null,null,null,null,null,null,null,null,null,null,null,null,null,null,null,null,null,null,null,null,null,null,null,null,null,null,null,null,null,null,null,null,null,null,null,null,null,{"$error":"#N/A"},{"$error":"#N/A"}]
[null,null,null,null,"JeWo",null,null,null,null,null,null,null,null,null,null,null,null,null,null,null,null,null,null,null,null,null,null,null,null,null,null,null,null,null,null,null,null,null,null,null,null,null,null,null,null,null,null,null,null,null,null,null,null,{"$f":"SUM($F296:$BA296)/2-0.5","v":-0.5},{"$f":"IF(BB296<0,0,BB296)","v":0},null,null,null,null,null,null,null,null,{"$error":"#N/A"},{"$error":"#N/A"}]
[null,null,null,null,"ChEm",null,null,null,null,null,null,null,null,null,null,null,null,null,null,null,null,null,null,null,null,null,null,null,null,null,null,null,null,null,null,null,null,null,null,null,null,null,null,null,null,null,null,null,null,null,null,null,null,null,{"$f":"SUM($F297:$BA297)/2-0.5","v":-0.5},{"$f":"IF(BC297<0,0,BC297)","v":0},null,null,null,null,null,null,null,{"$error":"#N/A"},{"$error":"#N/A"}]
[null,null,null,null,"MeNo",null,null,null,null,null,null,null,null,null,null,null,null,null,null,null,null,null,null,null,null,null,null,null,null,null,null,null,null,null,null,null,null,null,null,null,null,null,null,null,null,null,null,null,null,null,null,null,null,null,null,{"$f":"SUM($F298:$BA298)/2-0.5","v":-0.5},{"$f":"IF(BD298<0,0,BD298)","v":0},null,null,null,null,null,null,{"$error":"#N/A"},{"$error":"#N/A"}]
[null,null,null,null,"JuGr",null,null,null,null,null,null,null,null,null,null,null,null,null,null,null,null,null,null,null,null,null,null,null,null,null,null,null,null,null,null,null,null,null,null,null,null,null,null,null,null,null,null,null,null,null,null,null,null,null,null,null,{"$f":"SUM($F299:$BA299)/2-0.5","v":-0.5},{"$f":"IF(BE299<0,0,BE299)","v":0},null,null,null,null,null,{"$error":"#N/A"},{"$error":"#N/A"}]
[null,null,null,null,"NiCh",null,null,null,null,null,null,null,null,null,null,null,null,null,null,null,null,null,null,null,null,null,null,null,null,null,null,null,null,null,null,null,null,null,null,null,null,null,null,null,null,null,null,null,null,null,null,null,null,null,null,null,null,{"$f":"SUM($F300:$BA300)/2-0.5","v":-0.5},{"$f":"IF(BF300<0,0,BF300)","v":0},null,null,null,null,{"$error":"#N/A"},{"$error":"#N/A"}]
[null,null,null,null,"MA1",null,null,null,null,null,null,null,null,null,null,null,null,null,null,null,null,null,null,null,null,null,null,null,null,null,null,null,null,null,null,null,null,null,null,null,null,null,null,null,null,null,null,null,null,null,null,null,null,null,null,null,null,null,{"$f":"SUM($F301:$BA301)/2-0.5","v":-0.5},{"$f":"IF(BG301<0,0,BG301)","v":0},null,null,null,{"$error":"#N/A"},{"$error":"#N/A"}]
[null,null,null,null,"MA2",null,null,null,null,null,null,null,null,null,null,null,null,null,null,null,null,null,null,null,null,null,null,null,null,null,null,null,null,null,null,null,null,null,null,null,null,null,null,null,null,null,null,null,null,null,null,null,null,null,null,null,null,null,null,{"$f":"SUM($F302:$BA302)/2-0.5","v":-0.5},{"$f":"IF(BH302<0,0,BH302)","v":0},null,null,{"$error":"#N/A"},{"$error":"#N/A"}]
[null,null,null,null,"MA3",null,null,null,null,null,null,null,null,null,null,null,null,null,null,null,null,null,null,null,null,null,null,null,null,null,null,null,null,null,null,null,null,null,null,null,null,null,null,null,null,null,null,null,null,null,null,null,null,null,null,null,null,null,null,null,{"$f":"SUM($F303:$BA303)/2-0.5","v":-0.5},{"$f":"IF(BI303<0,0,BI303)","v":0},null,{"$error":"#N/A"},{"$error":"#N/A"}]
[null,null,null,null,"ChMa",null,null,null,null,null,null,null,null,null,null,null,null,null,null,null,null,null,null,null,null,null,null,null,null,null,null,null,null,null,null,null,null,null,null,null,null,null,null,null,null,null,null,null,null,null,null,null,null,null,null,null,null,null,null,null,null,{"$f":"SUM($F304:$BA304)/2-0.5","v":-0.5},{"$f":"IF(BJ304<0,0,BJ304)","v":0},{"$error":"#N/A"},{"$error":"#N/A"}]
[null,null,{"$f":"C294+1","v":"2020-01-28"},{"$f":"C305","v":"2020-01-28"},"MA",1.24999999999997,"06:30:00","07:00:00","07:30:00","08:00:00","08:30:00","09:00:00","09:30:00","10:00:00","10:30:00","11:00:00","11:30:00","12:00:00","12:30:00","13:00:00","13:30:00","14:00:00","14:30:00","15:00:00","15:30:00","16:00:00","16:30:00","17:00:00","17:30:00","18:00:00","18:30:00","19:00:00","19:30:00","20:00:00","20:30:00","21:00:00","21:30:00","22:00:00","22:30:00","23:00:00","23:30:00",1,1.0208333333333299,1.0416666666666701,1.0625,1.0833333333333299,1.1041666666666701,1.12499999999999,1.1458333333333199,1.1666666666666501,1.18749999999998,1.2083333333333099,1.2291666666666401]
[null,null,null,null,"OlKa",null,null,null,null,null,null,null,null,null,null,null,null,null,null,null,null,null,null,null,null,null,null,null,null,null,null,null,null,null,null,null,null,null,null,null,null,null,null,null,null,null,null,null,null,null,null,null,null,null,null,null,null,null,null,null,null,null,null,{"$error":"#N/A"},{"$error":"#N/A"}]
[null,null,null,null,"JeWo",null,null,null,null,null,null,null,null,null,null,null,null,null,null,null,null,null,null,null,null,null,null,null,null,null,null,null,null,null,null,null,null,null,null,null,null,null,null,null,null,null,null,null,null,null,null,null,null,{"$f":"SUM($F307:$BA307)/2-0.5","v":-0.5},{"$f":"IF(BB307<0,0,BB307)","v":0},null,null,null,null,null,null,null,null,{"$error":"#N/A"},{"$error":"#N/A"}]
[null,null,null,null,"ChEm",null,null,null,null,null,null,null,null,null,null,null,null,null,null,null,null,null,null,null,null,null,null,null,null,null,null,null,null,null,null,null,null,null,null,null,null,null,null,null,null,null,null,null,null,null,null,null,null,null,{"$f":"SUM($F308:$BA308)/2-0.5","v":-0.5},{"$f":"IF(BC308<0,0,BC308)","v":0},null,null,null,null,null,null,null,{"$error":"#N/A"},{"$error":"#N/A"}]
[null,null,null,null,"MeNo",null,null,null,null,null,null,null,null,null,null,null,null,null,null,null,null,null,null,null,null,null,null,null,null,null,null,null,null,null,null,null,null,null,null,null,null,null,null,null,null,null,null,null,null,null,null,null,null,null,null,{"$f":"SUM($F309:$BA309)/2-0.5","v":-0.5},{"$f":"IF(BD309<0,0,BD309)","v":0},null,null,null,null,null,null,{"$error":"#N/A"},{"$error":"#N/A"}]
[null,null,null,null,"JuGr",null,null,null,null,null,null,null,null,null,null,null,null,null,null,null,null,null,null,null,null,null,null,null,null,null,null,null,null,null,null,null,null,null,null,null,null,null,null,null,null,null,null,null,null,null,null,null,null,null,null,null,{"$f":"SUM($F310:$BA310)/2-0.5","v":-0.5},{"$f":"IF(BE310<0,0,BE310)","v":0},null,null,null,null,null,{"$error":"#N/A"},{"$error":"#N/A"}]
[null,null,null,null,"NiCh",null,null,null,null,null,null,null,null,null,null,null,null,null,null,null,null,null,null,null,null,null,null,null,null,null,null,null,null,null,null,null,null,null,null,null,null,null,null,null,null,null,null,null,null,null,null,null,null,null,null,null,null,{"$f":"SUM($F311:$BA311)/2-0.5","v":-0.5},{"$f":"IF(BF311<0,0,BF311)","v":0},null,null,null,null,{"$error":"#N/A"},{"$error":"#N/A"}]
[null,null,null,null,"MA1",null,null,null,null,null,null,null,null,null,null,null,null,null,null,null,null,null,null,null,null,null,null,null,null,null,null,null,null,null,null,null,null,null,null,null,null,null,null,null,null,null,null,null,null,null,null,null,null,null,null,null,null,null,{"$f":"SUM($F312:$BA312)/2-0.5","v":-0.5},{"$f":"IF(BG312<0,0,BG312)","v":0},null,null,null,{"$error":"#N/A"},{"$error":"#N/A"}]
[null,null,null,null,"MA2",null,null,null,null,null,null,null,null,null,null,null,null,null,null,null,null,null,null,null,null,null,null,null,null,null,null,null,null,null,null,null,null,null,null,null,null,null,null,null,null,null,null,null,null,null,null,null,null,null,null,null,null,null,null,{"$f":"SUM($F313:$BA313)/2-0.5","v":-0.5},{"$f":"IF(BH313<0,0,BH313)","v":0},null,null,{"$error":"#N/A"},{"$error":"#N/A"}]
[null,null,null,null,"MA3",null,null,null,null,null,null,null,null,null,null,null,null,null,null,null,null,null,null,null,null,null,null,null,null,null,null,null,null,null,null,null,null,null,null,null,null,null,null,null,null,null,null,null,null,null,null,null,null,null,null,null,null,null,null,null,{"$f":"SUM($F314:$BA314)/2-0.5","v":-0.5},{"$f":"IF(BI314<0,0,BI314)","v":0},null,{"$error":"#N/A"},{"$error":"#N/A"}]
[null,null,null,null,"ChMa",null,null,null,null,null,null,null,null,null,null,null,null,null,null,null,null,null,null,null,null,null,null,null,null,null,null,null,null,null,null,null,null,null,null,null,null,null,null,null,null,null,null,null,null,null,null,null,null,null,null,null,null,null,null,null,null,{"$f":"SUM($F315:$BA315)/2-0.5","v":-0.5},{"$f":"IF(BJ315<0,0,BJ315)","v":0},{"$error":"#N/A"},{"$error":"#N/A"}]
[null,null,{"$f":"C305+1","v":"2020-01-29"},{"$f":"C316","v":"2020-01-29"},"MA",1.24999999999997,"06:30:00","07:00:00","07:30:00","08:00:00","08:30:00","09:00:00","09:30:00","10:00:00","10:30:00","11:00:00","11:30:00","12:00:00","12:30:00","13:00:00","13:30:00","14:00:00","14:30:00","15:00:00","15:30:00","16:00:00","16:30:00","17:00:00","17:30:00","18:00:00","18:30:00","19:00:00","19:30:00","20:00:00","20:30:00","21:00:00","21:30:00","22:00:00","22:30:00","23:00:00","23:30:00",1,1.0208333333333299,1.0416666666666701,1.0625,1.0833333333333299,1.1041666666666701,1.12499999999999,1.1458333333333199,1.1666666666666501,1.18749999999998,1.2083333333333099,1.2291666666666401]
[null,null,null,null,"OlKa",null,null,null,null,null,null,null,null,null,null,null,null,null,null,null,null,null,null,null,null,null,null,null,null,null,null,null,null,null,null,null,null,null,null,null,null,null,null,null,null,null,null,null,null,null,null,null,null,null,null,null,null,null,null,null,null,null,null,{"$error":"#N/A"},{"$error":"#N/A"}]
[null,null,null,null,"JeWo",null,null,null,null,null,null,null,null,null,null,null,null,null,null,null,null,null,null,null,null,null,null,null,null,null,null,null,null,null,null,null,null,null,null,null,null,null,null,null,null,null,null,null,null,null,null,null,null,{"$f":"SUM($F318:$BA318)/2-0.5","v":-0.5},{"$f":"IF(BB318<0,0,BB318)","v":0},null,null,null,null,null,null,null,null,{"$error":"#N/A"},{"$error":"#N/A"}]
[null,null,null,null,"ChEm",null,null,null,null,null,null,null,null,null,null,null,null,null,null,null,null,null,null,null,null,null,null,null,null,null,null,null,null,null,null,null,null,null,null,null,null,null,null,null,null,null,null,null,null,null,null,null,null,null,{"$f":"SUM($F319:$BA319)/2-0.5","v":-0.5},{"$f":"IF(BC319<0,0,BC319)","v":0},null,null,null,null,null,null,null,{"$error":"#N/A"},{"$error":"#N/A"}]
[null,null,null,null,"MeNo",null,null,null,null,null,null,null,null,null,null,null,null,null,null,null,null,null,null,null,null,null,null,null,null,null,null,null,null,null,null,null,null,null,null,null,null,null,null,null,null,null,null,null,null,null,null,null,null,null,null,{"$f":"SUM($F320:$BA320)/2-0.5","v":-0.5},{"$f":"IF(BD320<0,0,BD320)","v":0},null,null,null,null,null,null,{"$error":"#N/A"},{"$error":"#N/A"}]
[null,null,null,null,"JuGr",null,null,null,null,null,null,null,null,null,null,null,null,null,null,null,null,null,null,null,null,null,null,null,null,null,null,null,null,null,null,null,null,null,null,null,null,null,null,null,null,null,null,null,null,null,null,null,null,null,null,null,{"$f":"SUM($F321:$BA321)/2-0.5","v":-0.5},{"$f":"IF(BE321<0,0,BE321)","v":0},null,null,null,null,null,{"$error":"#N/A"},{"$error":"#N/A"}]
[null,null,null,null,"NiCh",null,null,null,null,null,null,null,null,null,null,null,null,null,null,null,null,null,null,null,null,null,null,null,null,null,null,null,null,null,null,null,null,null,null,null,null,null,null,null,null,null,null,null,null,null,null,null,null,null,null,null,null,{"$f":"SUM($F322:$BA322)/2-0.5","v":-0.5},{"$f":"IF(BF322<0,0,BF322)","v":0},null,null,null,null,{"$error":"#N/A"},{"$error":"#N/A"}]
[null,null,null,null,"MA1",null,null,null,null,null,null,null,null,null,null,null,null,null,null,null,null,null,null,null,null,null,null,null,null,null,null,null,null,null,null,null,null,null,null,null,null,null,null,null,null,null,null,null,null,null,null,null,null,null,null,null,null,null,{"$f":"SUM($F323:$BA323)/2-0.5","v":-0.5},{"$f":"IF(BG323<0,0,BG323)","v":0},null,null,null,{"$error":"#N/A"},{"$error":"#N/A"}]
[null,null,null,null,"MA2",null,null,null,null,null,null,null,null,null,null,null,null,null,null,null,null,null,null,null,null,null,null,null,null,null,null,null,null,null,null,null,null,null,null,null,null,null,null,null,null,null,null,null,null,null,null,null,null,null,null,null,null,null,null,{"$f":"SUM($F324:$BA324)/2-0.5","v":-0.5},{"$f":"IF(BH324<0,0,BH324)","v":0},null,null,{"$error":"#N/A"},{"$error":"#N/A"}]
[null,null,null,null,"MA3",null,null,null,null,null,null,null,null,null,null,null,null,null,null,null,null,null,null,null,null,null,null,null,null,null,null,null,null,null,null,null,null,null,null,null,null,null,null,null,null,null,null,null,null,null,null,null,null,null,null,null,null,null,null,null,{"$f":"SUM($F325:$BA325)/2-0.5","v":-0.5},{"$f":"IF(BI325<0,0,BI325)","v":0},null,{"$error":"#N/A"},{"$error":"#N/A"}]
[null,null,null,null,"ChMa",null,null,null,null,null,null,null,null,null,null,null,null,null,null,null,null,null,null,null,null,null,null,null,null,null,null,null,null,null,null,null,null,null,null,null,null,null,null,null,null,null,null,null,null,null,null,null,null,null,null,null,null,null,null,null,null,{"$f":"SUM($F326:$BA326)/2-0.5","v":-0.5},{"$f":"IF(BJ326<0,0,BJ326)","v":0},{"$error":"#N/A"},{"$error":"#N/A"}]
[null,null,{"$f":"C316+1","v":"2020-01-30"},{"$f":"C327","v":"2020-01-30"},"MA",1.24999999999997,"06:30:00","07:00:00","07:30:00","08:00:00","08:30:00","09:00:00","09:30:00","10:00:00","10:30:00","11:00:00","11:30:00","12:00:00","12:30:00","13:00:00","13:30:00","14:00:00","14:30:00","15:00:00","15:30:00","16:00:00","16:30:00","17:00:00","17:30:00","18:00:00","18:30:00","19:00:00","19:30:00","20:00:00","20:30:00","21:00:00","21:30:00","22:00:00","22:30:00","23:00:00","23:30:00",1,1.0208333333333299,1.0416666666666701,1.0625,1.0833333333333299,1.1041666666666701,1.12499999999999,1.1458333333333199,1.1666666666666501,1.18749999999998,1.2083333333333099,1.2291666666666401]
[null,null,null,null,"OlKa",null,null,null,null,null,null,null,null,null,null,null,null,null,null,null,null,null,null,null,null,null,null,null,null,null,null,null,null,null,null,null,null,null,null,null,null,null,null,null,null,null,null,null,null,null,null,null,null,null,null,null,null,null,null,null,null,null,null,{"$error":"#N/A"},{"$error":"#N/A"}]
[null,null,null,null,"JeWo",null,null,null,null,null,null,null,null,null,null,null,null,null,null,null,null,null,null,null,null,null,null,null,null,null,null,null,null,null,null,null,null,null,null,null,null,null,null,null,null,null,null,null,null,null,null,null,null,{"$f":"SUM($F329:$BA329)/2-0.5","v":-0.5},{"$f":"IF(BB329<0,0,BB329)","v":0},null,null,null,null,null,null,null,null,{"$error":"#N/A"},{"$error":"#N/A"}]
[null,null,null,null,"ChEm",null,null,null,null,null,null,null,null,null,null,null,null,null,null,null,null,null,null,null,null,null,null,null,null,null,null,null,null,null,null,null,null,null,null,null,null,null,null,null,null,null,null,null,null,null,null,null,null,null,{"$f":"SUM($F330:$BA330)/2-0.5","v":-0.5},{"$f":"IF(BC330<0,0,BC330)","v":0},null,null,null,null,null,null,null,{"$error":"#N/A"},{"$error":"#N/A"}]
[null,null,null,null,"MeNo",null,null,null,null,null,null,null,null,null,null,null,null,null,null,null,null,null,null,null,null,null,null,null,null,null,null,null,null,null,null,null,null,null,null,null,null,null,null,null,null,null,null,null,null,null,null,null,null,null,null,{"$f":"SUM($F331:$BA331)/2-0.5","v":-0.5},{"$f":"IF(BD331<0,0,BD331)","v":0},null,null,null,null,null,null,{"$error":"#N/A"},{"$error":"#N/A"}]
[null,null,null,null,"JuGr",null,null,null,null,null,null,null,null,null,null,null,null,null,null,null,null,null,null,null,null,null,null,null,null,null,null,null,null,null,null,null,null,null,null,null,null,null,null,null,null,null,null,null,null,null,null,null,null,null,null,null,{"$f":"SUM($F332:$BA332)/2-0.5","v":-0.5},{"$f":"IF(BE332<0,0,BE332)","v":0},null,null,null,null,null,{"$error":"#N/A"},{"$error":"#N/A"}]
[null,null,null,null,"NiCh",null,null,null,null,null,null,null,null,null,null,null,null,null,null,null,null,null,null,null,null,null,null,null,null,null,null,null,null,null,null,null,null,null,null,null,null,null,null,null,null,null,null,null,null,null,null,null,null,null,null,null,null,{"$f":"SUM($F333:$BA333)/2-0.5","v":-0.5},{"$f":"IF(BF333<0,0,BF333)","v":0},null,null,null,null,{"$error":"#N/A"},{"$error":"#N/A"}]
[null,null,null,null,"MA1",null,null,null,null,null,null,null,null,null,null,null,null,null,null,null,null,null,null,null,null,null,null,null,null,null,null,null,null,null,null,null,null,null,null,null,null,null,null,null,null,null,null,null,null,null,null,null,null,null,null,null,null,null,{"$f":"SUM($F334:$BA334)/2-0.5","v":-0.5},{"$f":"IF(BG334<0,0,BG334)","v":0},null,null,null,{"$error":"#N/A"},{"$error":"#N/A"}]
[null,null,null,null,"MA2",null,null,null,null,null,null,null,null,null,null,null,null,null,null,null,null,null,null,null,null,null,null,null,null,null,null,null,null,null,null,null,null,null,null,null,null,null,null,null,null,null,null,null,null,null,null,null,null,null,null,null,null,null,null,{"$f":"SUM($F335:$BA335)/2-0.5","v":-0.5},{"$f":"IF(BH335<0,0,BH335)","v":0},null,null,{"$error":"#N/A"},{"$error":"#N/A"}]
[null,null,null,null,"MA3",null,null,null,null,null,null,null,null,null,null,null,null,null,null,null,null,null,null,null,null,null,null,null,null,null,null,null,null,null,null,null,null,null,null,null,null,null,null,null,null,null,null,null,null,null,null,null,null,null,null,null,null,null,null,null,{"$f":"SUM($F336:$BA336)/2-0.5","v":-0.5},{"$f":"IF(BI336<0,0,BI336)","v":0},null,{"$error":"#N/A"},{"$error":"#N/A"}]
[null,null,null,null,"ChMa",null,null,null,null,null,null,null,null,null,null,null,null,null,null,null,null,null,null,null,null,null,null,null,null,null,null,null,null,null,null,null,null,null,null,null,null,null,null,null,null,null,null,null,null,null,null,null,null,null,null,null,null,null,null,null,null,{"$f":"SUM($F337:$BA337)/2-0.5","v":-0.5},{"$f":"IF(BJ337<0,0,BJ337)","v":0},{"$error":"#N/A"},{"$error":"#N/A"}]
[null,null,{"$f":"C327+1","v":"2020-01-31"},{"$f":"C338","v":"2020-01-31"},"MA",1.24999999999997,"06:30:00","07:00:00","07:30:00","08:00:00","08:30:00","09:00:00","09:30:00","10:00:00","10:30:00","11:00:00","11:30:00","12:00:00","12:30:00","13:00:00","13:30:00","14:00:00","14:30:00","15:00:00","15:30:00","16:00:00","16:30:00","17:00:00","17:30:00","18:00:00","18:30:00","19:00:00","19:30:00","20:00:00","20:30:00","21:00:00","21:30:00","22:00:00","22:30:00","23:00:00","23:30:00",1,1.0208333333333299,1.0416666666666701,1.0625,1.0833333333333299,1.1041666666666701,1.12499999999999,1.1458333333333199,1.1666666666666501,1.18749999999998,1.2083333333333099,1.2291666666666401]
[null,null,null,null,"OlKa",null,null,null,null,null,null,null,null,null,null,null,null,null,null,null,null,null,null,null,null,null,null,null,null,null,null,null,null,null,null,null,null,null,null,null,null,null,null,null,null,null,null,null,null,null,null,null,null,null,null,null,null,null,null,null,null,null,null,{"$f":"INDEX($F$8:$BA$8,MATCH(\"?*\",INDEX(F339:BA339&\"\",),))","v":{"$error":"#N/A"}},{"$f":"LOOKUP(2,1/(F339:BA339<>\"\"),$F$8:$BA$8)","v":{"$error":"#N/A"}}]
[null,null,null,null,"JeWo",null,null,null,null,null,null,null,null,null,null,null,null,null,null,null,null,null,null,null,null,null,null,null,null,null,null,null,null,null,null,null,null,null,null,null,null,null,null,null,null,null,null,null,null,null,null,null,null,{"$f":"SUM($F340:$BA340)/2-0.5","v":-0.5},{"$f":"IF(BB340<0,0,BB340)","v":0},null,null,null,null,null,null,null,null,{"$error":"#N/A"},{"$error":"#N/A"}]
[null,null,null,null,"ChEm",null,null,null,null,null,null,null,null,null,null,null,null,null,null,null,null,null,null,null,null,null,null,null,null,null,null,null,null,null,null,null,null,null,null,null,null,null,null,null,null,null,null,null,null,null,null,null,null,null,{"$f":"SUM($F341:$BA341)/2-0.5","v":-0.5},{"$f":"IF(BC341<0,0,BC341)","v":0},null,null,null,null,null,null,null,{"$error":"#N/A"},{"$error":"#N/A"}]
[null,null,null,null,"MeNo",null,null,null,null,null,null,null,null,null,null,null,null,null,null,null,null,null,null,null,null,null,null,null,null,null,null,null,null,null,null,null,null,null,null,null,null,null,null,null,null,null,null,null,null,null,null,null,null,null,null,{"$f":"SUM($F342:$BA342)/2-0.5","v":-0.5},{"$f":"IF(BD342<0,0,BD342)","v":0},null,null,null,null,null,null,{"$error":"#N/A"},{"$error":"#N/A"}]
[null,null,null,null,"JuGr",null,null,null,null,null,null,null,null,null,null,null,null,null,null,null,null,null,null,null,null,null,null,null,null,null,null,null,null,null,null,null,null,null,null,null,null,null,null,null,null,null,null,null,null,null,null,null,null,null,null,null,{"$f":"SUM($F343:$BA343)/2-0.5","v":-0.5},{"$f":"IF(BE343<0,0,BE343)","v":0},null,null,null,null,null,{"$error":"#N/A"},{"$error":"#N/A"}]
[null,null,null,null,"NiCh",null,null,null,null,null,null,null,null,null,null,null,null,null,null,null,null,null,null,null,null,null,null,null,null,null,null,null,null,null,null,null,null,null,null,null,null,null,null,null,null,null,null,null,null,null,null,null,null,null,null,null,null,{"$f":"SUM($F344:$BA344)/2-0.5","v":-0.5},{"$f":"IF(BF344<0,0,BF344)","v":0},null,null,null,null,{"$error":"#N/A"},{"$error":"#N/A"}]
[null,null,null,null,"MA1",null,null,null,null,null,null,null,null,null,null,null,null,null,null,null,null,null,null,null,null,null,null,null,null,null,null,null,null,null,null,null,null,null,null,null,null,null,null,null,null,null,null,null,null,null,null,null,null,null,null,null,null,null,{"$f":"SUM($F345:$BA345)/2-0.5","v":-0.5},{"$f":"IF(BG345<0,0,BG345)","v":0},null,null,null,{"$error":"#N/A"},{"$error":"#N/A"}]
[null,null,null,null,"MA2",null,null,null,null,null,null,null,null,null,null,null,null,null,null,null,null,null,null,null,null,null,null,null,null,null,null,null,null,null,null,null,null,null,null,null,null,null,null,null,null,null,null,null,null,null,null,null,null,null,null,null,null,null,null,{"$f":"SUM($F346:$BA346)/2-0.5","v":-0.5},{"$f":"IF(BH346<0,0,BH346)","v":0},null,null,{"$error":"#N/A"},{"$error":"#N/A"}]
[null,null,null,null,"MA3",null,null,null,null,null,null,null,null,null,null,null,null,null,null,null,null,null,null,null,null,null,null,null,null,null,null,null,null,null,null,null,null,null,null,null,null,null,null,null,null,null,null,null,null,null,null,null,null,null,null,null,null,null,null,null,{"$f":"SUM($F347:$BA347)/2-0.5","v":-0.5},{"$f":"IF(BI347<0,0,BI347)","v":0},null,{"$error":"#N/A"},{"$error":"#N/A"}]
[null,null,null,null,"ChMa",null,null,null,null,null,null,null,null,null,null,null,null,null,null,null,null,null,null,null,null,null,null,null,null,null,null,null,null,null,null,null,null,null,null,null,null,null,null,null,null,null,null,null,null,null,null,null,null,null,null,null,null,null,null,null,null,{"$f":"SUM($F348:$BA348)/2-0.5","v":-0.5},{"$f":"IF(BJ348<0,0,BJ348)","v":0},{"$error":"#N/A"},{"$error":"#N/A"}]

{"sheet":"Tabelle1","index":2,"n_rows":0,"n_cols":0,"rows_kept":0,"cut":false,"hidden":false,"merged":[]}